Workbook

Sheet Q (hidden)
B1: =B2*1 -> 2018 | C1: =C2*1 -> 2019 | D1: 2020 | E1: 2021 | F1: 2022 | G1: 2023 | H1: <-másold a letöltött tábla egészét a kékkel jelzettt mezőbe | I1: Utolsó év: | J1: 2023
A2: Nagycenk (249) | B2: 2018 | C2: 2019 | D2: 2020 | E2: 2021 | F2: 2022 | G2: 2023
A3: Lakónépesség (dec. 31.) (fő) | B3: 2129 | C3: 2256 | D3: 2476 | E3: 2613 | F3: 2684 | G3: 2763 | I3: =TYPE(B1) -> 1
A4: Állandó népesség (dec. 31.) (fő) | B4: 2160 | C4: 2272 | D4: 2454 | E4: 2567 | F4: 2702 | G4: 2765 | I4: =TYPE('Település Bemutatása - Népesség'!A3) -> 1
A5: Állandó népesség; férfiak összesen (dec. 31.) (fő) | B5: 1036 | C5: 1100 | D5: 1198 | E5: 1249 | F5: 1309 | G5: 1339 | H5: nyomd meg a CTRL+R billenytűparancsot
A6: Állandó népességből a férfiak aránya (százalék) | B6: 47.96 | C6: 48.42 | D6: 48.82 | E6: 48.66 | F6: 48.45 | G6: 48.43
A7: Állandó népesség; nők összesen (dec. 31.) (fő) | B7: 1124 | C7: 1172 | D7: 1256 | E7: 1318 | F7: 1393 | G7: 1426
A8: Állandó népességből a nők aránya (százalék) | B8: 52.04 | C8: 51.58 | D8: 51.18 | E8: 51.34 | F8: 51.55 | G8: 51.57
A9: Állandó népesség; 0-2 évesek (dec. 31.) (fő) | B9: 72 | C9: 79 | D9: 101 | E9: 105 | F9: 113 | G9: 113
A10: Állandó népességből a 0-2 évesek aránya (százalék) | B10: 3.33 | C10: 3.48 | D10: 4.12 | E10: 4.09 | F10: 4.18 | G10: 4.09
A11: Állandó népesség; 0-14 éves férfiak (dec. 31.) (fő) | B11: 179 | C11: 205 | D11: 230 | E11: 248 | F11: 271 | G11: 285
A12: Állandó népességből a 0-14 éves férfiak aránya (százalék) | B12: 8.29 | C12: 9.02 | D12: 9.37 | E12: 9.66 | F12: 10.03 | G12: 10.31
A13: Állandó népesség; 0-14 éves nők (dec. 31.) (fő) | B13: 167 | C13: 180 | D13: 209 | E13: 228 | F13: 255 | G13: 266
A14: Állandó népességből a 0-14 éves nők aránya (százalék) | B14: 7.73 | C14: 7.92 | D14: 8.52 | E14: 8.88 | F14: 9.44 | G14: 9.62
A15: Állandó népesség; 15-17 éves férfiak (dec. 31.) (fő) | B15: 25 | C15: 22 | D15: 32 | E15: 38 | F15: 45 | G15: 42
A16: Állandó népességből a 15-17 éves férfiak aránya (százalék) | B16: 1.16 | C16: 0.97 | D16: 1.3 | E16: 1.48 | F16: 1.67 | G16: 1.52
A17: Állandó népesség; 15-17 éves nők (dec. 31.) (fő) | B17: 37 | C17: 33 | D17: 33 | E17: 36 | F17: 44 | G17: 49
A18: Állandó népességből a 15-17 éves nők aránya (százalék) | B18: 1.71 | C18: 1.45 | D18: 1.34 | E18: 1.4 | F18: 1.63 | G18: 1.77
A19: Állandó népesség; 18-59 éves férfiak (dec. 31.) (fő) | B19: 633 | C19: 668 | D19: 713 | E19: 742 | F19: 774 | G19: 792
A20: Állandó népességből a 18-59 éves férfiak aránya (százalék) | B20: 29.31 | C20: 29.4 | D20: 29.05 | E20: 28.91 | F20: 28.65 | G20: 28.64
A21: Állandó népesség; 18-59 évesek (dec. 31.) (fő) | B21: 1267 | C21: 1336 | D21: 1423 | E21: 1490 | F21: 1572 | G21: 1611
A22: Állandó népességből a 18-59 éves nők aránya (százalék) | B22: 29.35 | C22: 29.4 | D22: 28.93 | E22: 29.14 | F22: 29.53 | G22: 29.62
A23: Állandó népesség; 60-64 éves férfiak (dec. 31.) (fő) | B23: 76 | C23: 64 | D23: 67 | E23: 62 | F23: 52 | G23: 51
A24: Állandó népességből a 60-64 éves férfiak aránya (százalék) | B24: 3.52 | C24: 2.82 | D24: 2.73 | E24: 2.42 | F24: 1.92 | G24: 1.84
A25: Állandó népesség; 60-64 éves nők (dec. 31.) (fő) | B25: 82 | C25: 78 | D25: 80 | E25: 71 | F25: 56 | G25: 55
A26: Állandó népességből a 60-64 éves nők aránya (százalék) | B26: 3.8 | C26: 3.43 | D26: 3.26 | E26: 2.77 | F26: 2.07 | G26: 1.99
A27: Állandó népesség; 65-X éves férfiak (dec. 31.) (fő) | B27: 123 | C27: 141 | D27: 156 | E27: 159 | F27: 167 | G27: 169
A28: Állandó népességből a 65-X éves férfiak aránya (százalék) | B28: 5.69 | C28: 6.21 | D28: 6.36 | E28: 6.19 | F28: 6.18 | G28: 6.11
A29: Állandó népesség; 65-X éves nők (dec. 31.) (fő) | B29: 204 | C29: 213 | D29: 224 | E29: 235 | F29: 240 | G29: 237
A30: Állandó népességből a 65-X éves nők aránya (százalék) | B30: 9.44 | C30: 9.38 | D30: 9.13 | E30: 9.15 | F30: 8.88 | G30: 8.57
A31: 65 év feletti népesség, 100 fő 0-14 éves korú népesség (fő) | B31: 94.51 | C31: 91.95 | D31: 86.56 | E31: 82.77 | F31: 77.38 | G31: 73.68
A32: Belföldi vándorlási egyenleg, ezer lakosra (ezrelék) | B32: 47.01 | C32: 51.08 | D32: 91.72 | E32: 58.95 | F32: 44.55 | G32: 30.48
A33: Természetes szaporodás, fogyás (ezrelék) | B33: -1.44 | C33: 2.28 | D33: 3.8 | E33: -3.14 | F33: 6.04 | G33: -1.84
A34: Nyilvántartott álláskereső férfi, 100 15-64 éves férfira (fő) | B34: 0.95 | C34: 1.19 | D34: 0.86 | E34: 0.48 | F34: 1.03 | G34: 1.47
A35: Nyilvántartott álláskereső nő, 100 15-64 éves nőre (fő) | B35: 1.33 | C35: 1.16 | D35: 2.31 | E35: 1.05 | F35: 1 | G35: 1.41
A36: Általános iskolai végzettségű nyilvántartott álláskeresők (fő) | B36: 5 | C36: 3 | D36: 5 | E36: 2 | F36: 1 | G36: 3
A37: Általános iskola 8 osztályánál kevesebb végzettséggel rendelkező nyilvántartott álláskeresők (fő) | B37: 0 | C37: 0 | D37: 0 | E37: 0 | F37: 0 | G37: 0
A38: Nyilvántartott álláskeresők: 0-18 éves (fő) | B38: 0 | C38: 0 | D38: 0 | E38: 0 | F38: 0 | G38: 0
A39: Nyilvántartott álláskeresők: 19-20 éves (fő) | B39: 1 | C39: 1 | D39: 1 | E39: 0 | F39: 0 | G39: 0
A40: Nyilvántartott álláskeresők: 21-25 éves (fő) | B40: 2 | C40: 4 | D40: 0 | E40: 1 | F40: 1 | G40: 1
A41: Nyilvántartott álláskeresők: 26-30 éves (fő) | B41: 2 | C41: 1 | D41: 1 | E41: 1 | F41: 0 | G41: 3
A42: Nyilvántartott álláskeresők: 31-35 éves (fő) | B42: 2 | C42: 0 | D42: 6 | E42: 0 | F42: 2 | G42: 1
A43: Nyilvántartott álláskeresők: 36-40 éves (fő) | B43: 0 | C43: 0 | D43: 5 | E43: 2 | F43: 4 | G43: 5
A44: Nyilvántartott álláskeresők: 41-45 éves (fő) | B44: 2 | C44: 2 | D44: 3 | E44: 1 | F44: 2 | G44: 5
A45: Nyilvántartott álláskeresők: 46-50 éves (fő) | B45: 0 | C45: 1 | D45: 1 | E45: 1 | F45: 1 | G45: 2
A46: Nyilvántartott álláskeresők: 51-55 éves (fő) | B46: 1 | C46: 2 | D46: 2 | E46: 2 | F46: 1 | G46: 3
A47: Nyilvántartott álláskeresők: 56-60 éves (fő) | B47: 1 | C47: 2 | D47: 1 | E47: 0 | F47: 1 | G47: 0
A48: Nyilvántartott álláskeresők: 61-X éves (fő) | B48: 6 | C48: 5 | D48: 6 | E48: 5 | F48: 6 | G48: 6
A49: Álláskeresési ellátásban részesülő nyilvántartott álláskeresők (fő) | B49: 13 | C49: 17 | D49: 16 | E49: 10 | F49: 14 | G49: 21
A50: Szociális támogatásban részesülő nyilvántartott álláskeresők (fő) | B50: 0 | C50: 0 | D50: 0 | E50: 0 | F50: 0 | G50: 0
A51: Ellátásban részesülő nyilvántartott álláskeresők (fő) | B51: 13 | C51: 17 | D51: 16 | E51: 10 | F51: 14 | G51: 21
A52: Aktív foglalkoztatáspolitikai eszközzel támogatottak (fő) | B52: 0 | C52: 2 | D52: 23 | E52: 3 | F52: 1 | G52: 0
A53: Nyilvántartott álláskeresők összesen (fő) | B53: 17 | C53: 18 | D53: 26 | E53: 13 | F53: 18 | G53: 26
A54: Nyilvántartott pályakezdő álláskeresők (fő) | B54: 0 | C54: 0 | D54: 1 | E54: 0 | F54: 0 | G54: 0
A55: Foglalkoztatást helyettesítő támogatásban részesítettek havi átlagos létszáma (fő) | B55: 0 | C55: 0 | D55: 0 | E55: 0.09 | F55: 0 | G55: 0
A56: Közfoglalkoztatásban részt vevő (havi adatok éves átlaga) (fő) | B56: 0 | C56: 0 | D56: 0 | E56: 0 | F56: 0 | G56: 0
A57: Egészségkárosodási és gyermekfelügyeleti támogatásban részesítettek havi átlagos létszáma (fő) | B57: 0.44 | C57: 1.23 | D57: 1.7 | E57: 2 | F57: 2 | G57: 2.39
A58: 180 napnál hosszabb ideje nyilvántartott álláskeresők aránya (százalék) | B58: 41.18 | C58: 27.78 | D58: 34.62 | E58: 30.77 | F58: 22.22 | G58: 19.23
A59: Nők aránya a 180 napon túli nyilvántartott álláskeresőkön belül (százalék) | B59: 57.14 | C59: 60 | D59: 66.67 | E59: 75 | F59: 75 | G59: 20
A60: SZJA adófizető, 100 lakosra (fő) | B60: 49.81 | C60: 42.61 | D60: 42.14 | E60: 42.58 | F60: 42.6 | G60: 42.35
A61: SZJA adófizetők aránya évi 1 millió Ft alatti jövedelmi sávban (százalék) | B61: 39.41 | C61: 29.13 | D61: 30.46 | E61: 30.19 | F61: 28.06 | G61: 26.13
A62: Megváltozott munkaképességűeknek járó ellátásban részesülő férfiak (fő) | B62: 24 | C62: 25 | D62: 25 | E62: 26 | F62: 24 | G62: 25
A63: Megváltozott munkaképességűeknek járó ellátásban részesülő nők (fő) | B63: 28 | C63: 24 | D63: 26 | E63: 25 | F63: 21 | G63: 21
A64: Nyugdíjban, ellátásban, járadékban és egyéb járandóságban részesülő férfiak (fő) | B64: 179 | C64: 184 | D64: 187 | E64: 186 | F64: 191 | G64: 193
A65: Nyugdíjban, ellátásban, járadékban és egyéb járandóságban részesülő nők (fő) | B65: 300 | C65: 307 | D65: 300 | E65: 297 | F65: 291 | G65: 287
A66: Árvaellátásban részesülő férfiak (fő) | B66: 2 | C66: 3 | D66: 4 | E66: 3 | F66: 5 | G66: 4
A67: Árvaellátásban részesülő nők (fő) | B67: 7 | C67: 6 | D67: 7 | E67: 5 | F67: 7 | G67: 8
A68: Életkoron alapuló ellátásban részesülő férfiak (fő) | B68: 11 | C68: 10 | D68: 9 | E68: 10 | F68: 9 | G68: 9
A69: Életkoron alapuló ellátásban részesülő nők (fő) | B69: 2 | C69: 0 | D69: 0 | E69: 0 | F69: 0 | G69: 0
A70: Öregségi nyugdíjban részesülő férfiak (fő) | B70: 139 | C70: 143 | D70: 145 | E70: 145 | F70: 150 | G70: 152
A71: Öregségi nyugdíjban részesülő nők (fő) | B71: 257 | C71: 269 | D71: 261 | E71: 260 | F71: 258 | G71: 251
A72: Özvegyi és szülői nyugdíjban részesülő férfiak (fő) | B72: 1 | C72: 1 | D72: 2 | E72: 0 | F72: 1 | G72: 1
A73: Özvegyi és szülői nyugdíjban részesülő nők (fő) | B73: 4 | C73: 4 | D73: 2 | E73: 3 | F73: 2 | G73: 4
A74: Lakásállomány (db) | B74: 842 | C74: 887 | D74: 989 | E74: 1016 | F74: 1027 | G74: 1067
A75: Közcsatornahálózatba bekapcsolt lakások aránya (százalék) | B75: 94.89 | C75: 96.05 | D75: 93.63 | E75: 93.9 | F75: 95.33 | G75: 95.22
A76: Közüzemi ivóvízvezeték-hálózatba bekapcsolt lakások aránya (százalék) | B76: 100 | C76: 100 | D76: 100 | E76: 100 | F76: 100 | G76: 100
A77: Egy és két szobás lakások aránya (százalék) | B77: 29.81 | C77: 28.52 | D77: 27.6 | E77: 26.87 | F77: 20.55 | G77: 19.87
A78: Épített lakások (üdülők nélkül) (db) | B78: 21 | C78: 45 | D78: 102 | E78: 28 | F78: 21 | G78: 40
A79: Az év folyamán épített lakás, 1000 lakásra (db) | B79: 24.94 | C79: 50.73 | D79: 103.13 | E79: 27.56 | F79: 20.45 | G79: 37.49
A80: Általános iskolai feladatellátási helyek (db) | B80: 1 | C80: 1 | D80: 1 | E80: 1 | F80: 1 | G80: 1
A81: Általános iskolai osztályok a gyógypedagógiai oktatásban (a nappali oktatásban) (db) | B81: 0 | C81: 0 | D81: 0 | E81: 0 | F81: 0 | G81: 0
A82: Általános iskolai osztályok a nappali oktatásban (db) | B82: 8 | C82: 8 | D82: 8 | E82: 8 | F82: 8 | G82: 8
A83: Egy osztályra jutó nappali tagozatos tanulók az általános iskolákban (fő) | B83: 16.13 | C83: 16.88 | D83: 18.88 | E83: 18.5 | F83: 19.38 | G83: 18.88
A84: A 8. évfolyamot eredményesen befejezte a nappali oktatásban (fő) | B84: 11 | C84: 10 | D84: 12 | E84: 21 | F84: 15 | G84: 19
A85: Más településről bejáró általános iskolai tanulók aránya a nappali oktatásban (százalék) | B85: 10.85 | C85: 12.59 | D85: 13.25 | E85: 6.08 | F85: 7.74 | G85: 5.3
A86: Óvodai gyermekcsoportok (db) | B86: 3 | C86: 4 | D86: 4 | E86: 4 | F86: 4 | G86: 4
A87: Óvodai gyermekcsoportok a gyógypedagógiai nevelésben (db) | B87: 0 | C87: 0 | D87: 0 | E87: 0 | F87: 0 | G87: 0
A88: Óvodába beírt gyermekek (fő) | B88: 75 | C88: 91 | D88: 98 | E88: 99 | F88: 109 | G88: 120
A89: Óvodai feladatellátási helyek (db) | B89: 1 | C89: 1 | D89: 1 | E89: 1 | F89: 1 | G89: 1
A90: Óvodába beírt gyermek, egy gyermekcsoportra (fő) | B90: 25 | C90: 22.75 | D90: 24.5 | E90: 24.75 | F90: 27.25 | G90: 30
A91: Óvodai férőhelyek (fő) | B91: 75 | C91: 100 | D91: 100 | E91: 100 | F91: 100 | G91: 120
A92: Gyógypedagógiai oktatásban részesülő óvodás gyermekek (integráltan oktatott sajátos nevelési igényű gyermekek nélkül) (fő) | B92: 0 | C92: 0 | D92: 0 | E92: 0 | F92: 0 | G92: 0
A93: Hátrányos helyzetű óvodás gyermekek (fő) | B93: 0 | C93: 0 | D93: 0 | E93: 0 | F93: 0 | G93: 0
A94: Hátrányos helyzetű óvodás gyermekek aránya (százalék) | B94: 0 | C94: 0 | D94: 0 | E94: 0 | F94: 0 | G94: 0
A95: Hátrányos helyzetű általános iskolai tanulók a nappali oktatásban (fő) | B95: 6 | C95: 4 | D95: 0 | E95: 0 | F95: 0 | G95: 0
A96: Hátrányos helyzetű általános iskolai tanulók aránya a nappali oktatásban (százalék) | B96: 4.65 | C96: 2.96 | D96: 0 | E96: 0 | F96: 0 | G96: 0
A97: Hátrányos helyzetű gimnáziumi tanulók a nappali oktatásban (fő) | B97: 0 | C97: 0 | D97: 0 | E97: 0 | F97: 0 | G97: 0
A98: Hátrányos helyzetű gimnáziumi tanulók aránya a nappali oktatásban (százalék) | B98: n.a. | C98: n.a. | D98: n.a. | E98: n.a. | F98: n.a. | G98: n.a.
A99: Hátrányos helyzetű szakközépiskolai, szakiskolai és készségfejlesztő iskolai tanuló a nappali oktatásban (fő) | B99: 0 | C99: 0 | D99: n.a. | E99: n.a. | F99: n.a. | G99: n.a.
A100: Hátrányos helyzetű szakközépiskolai, szakiskolai és készségfejlesztő iskolai tanulók aránya a nappali oktatásban (százalék) | B100: n.a. | C100: n.a. | D100: n.a. | E100: n.a. | F100: n.a. | G100: n.a.
A101: Hátrányos helyzetű szakgimnáziumi tanulók a nappali oktatásban (fő) | B101: 0 | C101: 0 | D101: n.a. | E101: n.a. | F101: n.a. | G101: n.a.
A102: Hátrányos helyzetű szakgimnáziumi tanulók aránya a nappali oktatásban (százalék) | B102: n.a. | C102: n.a. | D102: n.a. | E102: n.a. | F102: n.a. | G102: n.a.
A103: Tornateremmel, tornaszobával ellátott köznevelési intézmények (székhely szerint) (db) | B103: 1 | C103: 1 | D103: n.a. | E103: n.a. | F103: n.a. | G103: n.a.
A104: Sportcsarnok, sportpálya léte (igen-nem) | B104: 1 | C104: 1 | D104: 1 | E104: 1 | F104: 1 | G104: 1
A105: Települési könyvtárakból kölcsönzött könyvtári egységek (db) | B105: 243 | C105: 265 | D105: 15 | E105: 78 | F105: 110 | G105: 0
A106: Közművelődési intézmények (db) | B106: 1 | C106: 1 | D106: 1 | E106: 1 | F106: 1 | G106: 3
A107: Felnőttek és gyerekek részére szervezett háziorvosi szolgálatok (db) | B107: 1 | C107: 1 | D107: 1 | E107: 1 | F107: 1 | G107: 1
A108: Házi gyermekorvosok által ellátott szolgálatok (db) | B108: 0 | C108: 0 | D108: 0 | E108: 0 | F108: 0 | G108: 0
A109: Betöltött védőnői álláshelyek (db) | B109: 1 | C109: 1 | D109: 1 | E109: 1 | F109: 1 | G109: n.a.
A110: Csak felnőttek részére szervezett háziorvosi szolgálatok (db) | B110: 0 | C110: 0 | D110: 0 | E110: 0 | F110: 0 | G110: 0
A111: Gyógyszertárak és fiókgyógyszertárak (db) | B111: 1 | C111: 1 | D111: 1 | E111: 1 | F111: 1 | G111: 1
A112: Rendszeres gyermekvédelmi kedvezményben részesítettek havi átlagos létszáma (fő) | B112: 4 | C112: 0 | D112: 0 | E112: 0 | F112: 0 | G112: 0
A113: Szünidei étkeztetésben részesült gyermekek (fő) | B113: 0 | C113: 0 | D113: 0 | E113: 0 | F113: 0 | G113: 0
A114: Megállapított halmozottan hátrányos helyzetű gyermekek és nagykorúvá vált gyermekek (fő) | B114: 0 | C114: 0 | D114: 0 | E114: 0 | F114: 0 | G114: 0
A115: Megállapított hátrányos helyzetű gyermekek és nagykorúvá vált gyermekek (fő) | B115: 0 | C115: 0 | D115: 0 | E115: 0 | F115: 0 | G115: 0
A116: Veszélyeztetett kiskorú gyermekek (2016-tól érvényes módszertan) (fő) | B116: n.a. | C116: 0 | D116: 0 | E116: 1 | F116: 0 | G116: 1
A117: Védelembe vett gyermekek (2016-tól érvényes módszertan) (fő) | B117: 3 | C117: 1 | D117: 2 | E117: 0 | F117: 2 | G117: 7
A118: Bölcsődébe beírt gyermekek (2017-tól érvényes módszertan) (fő) | B118: 0 | C118: 0 | D118: 0 | E118: 0 | F118: 0 | G118: 0
A119: Bölcsődébe beíratott gyermekek a családi bölcsődékben (2017-tól érvényes módszertan) (fő) | B119: 0 | C119: 0 | D119: 0 | E119: 0 | F119: 0 | G119: 0
A120: Bölcsődébe beíratott gyermekek a munkahelyi bölcsődékben (2017-tól érvényes módszertan) (fő) | B120: 0 | C120: 0 | D120: 0 | E120: 0 | F120: 0 | G120: 0
A121: Bölcsődébe beíratott gyermekek a mini bölcsődékben (2017-tól érvényes módszertan) (fő) | B121: 0 | C121: 7 | D121: 8 | E121: 8 | F121: 8 | G121: 8
A122: Működő bölcsődei férőhelyek (2017-tól érvényes módszertan) (db) | B122: 0 | C122: 0 | D122: 0 | E122: 0 | F122: 0 | G122: 0
A123: Működő bölcsődei férőhelyek a családi bölcsődékben (2017-tól érvényes módszertan) (db) | B123: 0 | C123: 0 | D123: 0 | E123: 0 | F123: 0 | G123: 0
A124: Működő bölcsődei férőhelyek a munkahelyi bölcsődékben (2017-tól érvényes módszertan) (db) | B124: 0 | C124: 0 | D124: 0 | E124: 0 | F124: 0 | G124: 0
A125: Működő bölcsődei férőhelyek a mini bölcsődékben (2017-tól érvényes módszertan) (db) | B125: 0 | C125: 7 | D125: 8 | E125: 8 | F125: 8 | G125: 8
A126: Fogyatékosok nappali ellátásában részesülők (fő) | B126: 0 | C126: 0 | D126: 0 | E126: 0 | F126: 0 | G126: 0
A127: Idősek nappali ellátásában részesülők (fő) | B127: 0 | C127: 0 | D127: 0 | E127: 0 | F127: 0 | G127: 0
A128: Házi segítségnyújtásban részesülők (fő) | B128: 1 | C128: 1 | D128: 1 | E128: 2 | F128: 2 | G128: 3
A129: Szociális étkeztetésben részesülők (fő) | B129: 22 | C129: 25 | D129: 28 | E129: 17 | F129: 16 | G129: 21
A130: Közgyógyellátási igazolvánnyal rendelkezők (alanyi és normatív alapon kiadott) (fő) | B130: 22 | C130: 23 | D130: 18 | E130: 22 | F130: 24 | G130: 27
A131: Időskorúak járadékában részesítettek havi átlagos létszáma (fő) | B131: 0 | C131: 0 | D131: 0 | E131: 0 | F131: 0 | G131: 0
A132: Alanyi jogon megállapított ápolási díjban részesítettek havi átlagos létszáma (fő) | B132: 2.62 | C132: 1.04 | D132: 1.31 | E132: 3.33 | F132: 2.93 | G132: 3.48
A133: Települési támogatásban részesítettek (pénzbeli és természetbeni) (fő) | B133: 44 | C133: 46 | D133: 24 | E133: 27 | F133: 29 | G133: 48
A134: Egyéb önkormányzati támogatásban részesítettek (pénzbeli és természetbeni) (1000 Ft) | B134: 387 | C134: 417 | D134: 8 | E134: 11 | F134: 10 | G134: 11

Sheet Település Bemutatása - Népesség
A1: 1. számú táblázat - Lakónépesség száma az év végén | F1: =CONCATENATE("2. számú táblázat - Állandó népesség összetétele nemek és korcsoportok szerint"," (",Q!J1-2,")") -> 2. számú táblázat - Állandó népesség összetétele nemek és korcsoportok szerint (2021) | N1: 3. számú táblázat - Öregedési index | S1: 4. számú táblázat - Belföldi vándorlások | V1: 5. számú táblázat - Természetes szaporodás
A2: Év | B2: Fő (TS 001) | C2: Változás | F2: Korcsoport | G2: Fő | J2: Az állandó népességből a megfelelő korcsoportú nők és férfiak aránya (%) | N2: Év | O2: 65 év feletti állandó lakosok száma (fő) (TS 026 és TS 028 összesen) | P2: 0-14 éves korú állandó lakosok száma (fő) (TS 010 és TS 012 összesen) | Q2: Öregedési index % (TS 030) | S2: Év | T2: Állandó oda-, és elvándorlások különbségének 1000 állandó lakosra vetített száma (fő) (TS 031) | V2: Év | W2: Az élve születések és halálozások különbözetének 1000 lakosra vetített száma (fő) (TS 032)
A3: =Q!$J$1-5 -> 2018 | B3: =_xlfn.IFNA(VLOOKUP("Lakónépesség (dec. 31.) (fő)",Q!$A$1:$G$132,MATCH($A3,Q!$A$1:$G$1,FALSE),FALSE),"n.a.") -> 2129 | C3: bázis év | G3: Férfiak | H3: Nők | I3: Összesen (TS 003) | J3: Férfiak (TS 005) | K3: Nők (TS 007) | N3: =$A3 -> 2018 | O3: =_xlfn.IFNA(VLOOKUP("Állandó népesség; 65-X éves férfiak (dec. 31.) (fő)",Q!$A$1:$G$132,MATCH($N3,Q!$A$1:$G$1,FALSE),FALSE),"n.a.")+_xlfn.IFNA(VLOOKUP("Állandó népesség; 65-X éves nők (dec. 31.) (fő)",Q!$A$1:$G$132,MATCH($A3,Q!$A$1:$G$1,FALSE),FALSE),"n.a.") -> 327 | P3: =_xlfn.IFNA(VLOOKUP("Állandó népesség; 0-14 éves férfiak (dec. 31.) (fő)",Q!$A$1:$G$132,MATCH($N3,Q!$A$1:$G$1,FALSE),FALSE),"n.a.")+_xlfn.IFNA(VLOOKUP("Állandó népesség; 0-14 éves nők (dec. 31.) (fő)",Q!$A$1:$G$132,MATCH($A3,Q!$A$1:$G$1,FALSE),FALSE),"n.a.") -> 346 | Q3: =IF(ISERR((O3/P3)*1),"-",(O3/P3)*1) -> 0.9450867052 | S3: =$A3 -> 2018 | T3: =_xlfn.IFNA(VLOOKUP("Belföldi vándorlási egyenleg, ezer lakosra (ezrelék)",Q!$A$1:$G$132,MATCH($S3,Q!$A$1:$G$1,FALSE),FALSE),"n.a.") -> 47.01 | V3: =$A3 -> 2018 | W3: =_xlfn.IFNA(VLOOKUP("Természetes szaporodás, fogyás (ezrelék)",Q!$A$1:$G$132,MATCH($V3,Q!$A$1:$G$1,FALSE),FALSE),"n.a.") -> -1.44
A4: =Q!$J$1-4 -> 2019 | B4: =_xlfn.IFNA(VLOOKUP("Lakónépesség (dec. 31.) (fő)",Q!$A$1:$G$132,MATCH($A4,Q!$A$1:$G$1,FALSE),FALSE),"n.a.") -> 2256 | C4: =IF(ISERR((B4/B3)*1),"-",(B4/B3)*1) -> 1.059652419 | F4: Állandó népesség száma (férfiak TS 004, nők TS 006) | G4: =_xlfn.IFNA(VLOOKUP("Állandó népesség; férfiak összesen (dec. 31.) (fő)",Q!$A$1:$G$132,MATCH(Q!$J$1-2,Q!$A$1:$G$1,FALSE),FALSE),"n.a.") -> 1249 | H4: =_xlfn.IFNA(VLOOKUP("Állandó népesség; nők összesen (dec. 31.) (fő)",Q!$A$1:$G$132,MATCH(Q!$J$1-2,Q!$A$1:$G$1,FALSE),FALSE),"n.a.") -> 1318 | I4: =IF(SUM(G4,H4)=0,"-",SUM(G4,H4)) -> 2567 | J4: =IF(ISERR(G4/$I$4),"-",(G4/$I$4)) -> 0.486560187 | K4: =IF(ISERR(H4/$I$4),"-",(H4/$I$4)) -> 0.513439813 | N4: =$A4 -> 2019 | O4: =_xlfn.IFNA(VLOOKUP("Állandó népesség; 65-X éves férfiak (dec. 31.) (fő)",Q!$A$1:$G$132,MATCH($N4,Q!$A$1:$G$1,FALSE),FALSE),"n.a.")+_xlfn.IFNA(VLOOKUP("Állandó népesség; 65-X éves nők (dec. 31.) (fő)",Q!$A$1:$G$132,MATCH($A4,Q!$A$1:$G$1,FALSE),FALSE),"n.a.") -> 354 | P4: =_xlfn.IFNA(VLOOKUP("Állandó népesség; 0-14 éves férfiak (dec. 31.) (fő)",Q!$A$1:$G$132,MATCH($N4,Q!$A$1:$G$1,FALSE),FALSE),"n.a.")+_xlfn.IFNA(VLOOKUP("Állandó népesség; 0-14 éves nők (dec. 31.) (fő)",Q!$A$1:$G$132,MATCH($A4,Q!$A$1:$G$1,FALSE),FALSE),"n.a.") -> 385 | Q4: =IF(ISERR((O4/P4)*1),"-",(O4/P4)*1) -> 0.9194805195 | S4: =$A4 -> 2019 | T4: =_xlfn.IFNA(VLOOKUP("Belföldi vándorlási egyenleg, ezer lakosra (ezrelék)",Q!$A$1:$G$132,MATCH($S4,Q!$A$1:$G$1,FALSE),FALSE),"n.a.") -> 51.08 | V4: =$A4 -> 2019 | W4: =_xlfn.IFNA(VLOOKUP("Természetes szaporodás, fogyás (ezrelék)",Q!$A$1:$G$132,MATCH($V4,Q!$A$1:$G$1,FALSE),FALSE),"n.a.") -> 2.28
A5: =Q!$J$1-3 -> 2020 | B5: =_xlfn.IFNA(VLOOKUP("Lakónépesség (dec. 31.) (fő)",Q!$A$1:$G$132,MATCH($A5,Q!$A$1:$G$1,FALSE),FALSE),"n.a.") -> 2476 | C5: =IF(ISERR((B5/B4)*1),"-",(B5/B4)*1) -> 1.09751773 | F5: 0-2 évesek (összes száma TS 008, aránya TS 009) | I5: =_xlfn.IFNA(VLOOKUP("Állandó népesség; 0-2 évesek (dec. 31.) (fő)",Q!$A$1:$G$132,MATCH(Q!$J$1-2,Q!$A$1:$G$1,FALSE),FALSE),"n.a.") -> 105 | J5: =IF(ISERR(I5/$I$4),"-",(I5/$I$4)) -> 0.04090377873 | N5: 2020 | O5: =_xlfn.IFNA(VLOOKUP("Állandó népesség; 65-X éves férfiak (dec. 31.) (fő)",Q!$A$1:$G$132,MATCH($N5,Q!$A$1:$G$1,FALSE),FALSE),"n.a.")+_xlfn.IFNA(VLOOKUP("Állandó népesség; 65-X éves nők (dec. 31.) (fő)",Q!$A$1:$G$132,MATCH($A5,Q!$A$1:$G$1,FALSE),FALSE),"n.a.") -> 380 | P5: =_xlfn.IFNA(VLOOKUP("Állandó népesség; 0-14 éves férfiak (dec. 31.) (fő)",Q!$A$1:$G$132,MATCH($N5,Q!$A$1:$G$1,FALSE),FALSE),"n.a.")+_xlfn.IFNA(VLOOKUP("Állandó népesség; 0-14 éves nők (dec. 31.) (fő)",Q!$A$1:$G$132,MATCH($A5,Q!$A$1:$G$1,FALSE),FALSE),"n.a.") -> 439 | Q5: 0.8656036446 | S5: 2020 | T5: =_xlfn.IFNA(VLOOKUP("Belföldi vándorlási egyenleg, ezer lakosra (ezrelék)",Q!$A$1:$G$132,MATCH($S5,Q!$A$1:$G$1,FALSE),FALSE),"n.a.") -> 91.72 | V5: 2020 | W5: =_xlfn.IFNA(VLOOKUP("Természetes szaporodás, fogyás (ezrelék)",Q!$A$1:$G$132,MATCH($V5,Q!$A$1:$G$1,FALSE),FALSE),"n.a.") -> 3.8
A6: =Q!$J$1-2 -> 2021 | B6: =_xlfn.IFNA(VLOOKUP("Lakónépesség (dec. 31.) (fő)",Q!$A$1:$G$132,MATCH($A6,Q!$A$1:$G$1,FALSE),FALSE),"n.a.") -> 2613 | C6: 1.055331179 | F6: 0-14 éves (férfiak TS 010, aránya TS 011; nők TS 012, aránya TS 013) | G6: =_xlfn.IFNA(VLOOKUP("Állandó népesség; 0-14 éves férfiak (dec. 31.) (fő)",Q!$A$1:$G$132,MATCH(Q!$J$1-2,Q!$A$1:$G$1,FALSE),FALSE),"n.a.") -> 248 | H6: =_xlfn.IFNA(VLOOKUP("Állandó népesség; 0-14 éves nők (dec. 31.) (fő)",Q!$A$1:$G$132,MATCH(Q!$J$1-2,Q!$A$1:$G$1,FALSE),FALSE),"n.a.") -> 228 | I6: =IF(SUM(G6,H6)=0,"-",SUM(G6,H6)) -> 476 | J6: =IF(ISERR(G6/$I$4),"-",(G6/$I$4)) -> 0.09661082976 | K6: 0.08881963381 | N6: 2021 | O6: =_xlfn.IFNA(VLOOKUP("Állandó népesség; 65-X éves férfiak (dec. 31.) (fő)",Q!$A$1:$G$132,MATCH($N6,Q!$A$1:$G$1,FALSE),FALSE),"n.a.")+_xlfn.IFNA(VLOOKUP("Állandó népesség; 65-X éves nők (dec. 31.) (fő)",Q!$A$1:$G$132,MATCH($A6,Q!$A$1:$G$1,FALSE),FALSE),"n.a.") -> 394 | P6: =_xlfn.IFNA(VLOOKUP("Állandó népesség; 0-14 éves férfiak (dec. 31.) (fő)",Q!$A$1:$G$132,MATCH($N6,Q!$A$1:$G$1,FALSE),FALSE),"n.a.")+_xlfn.IFNA(VLOOKUP("Állandó népesség; 0-14 éves nők (dec. 31.) (fő)",Q!$A$1:$G$132,MATCH($A6,Q!$A$1:$G$1,FALSE),FALSE),"n.a.") -> 476 | Q6: 0.8277310924 | S6: 2021 | T6: =_xlfn.IFNA(VLOOKUP("Belföldi vándorlási egyenleg, ezer lakosra (ezrelék)",Q!$A$1:$G$132,MATCH($S6,Q!$A$1:$G$1,FALSE),FALSE),"n.a.") -> 58.95 | V6: 2021 | W6: =_xlfn.IFNA(VLOOKUP("Természetes szaporodás, fogyás (ezrelék)",Q!$A$1:$G$132,MATCH($V6,Q!$A$1:$G$1,FALSE),FALSE),"n.a.") -> -3.14
A7: =Q!$J$1-1 -> 2022 | B7: =_xlfn.IFNA(VLOOKUP("Lakónépesség (dec. 31.) (fő)",Q!$A$1:$G$132,MATCH($A7,Q!$A$1:$G$1,FALSE),FALSE),"n.a.") -> 2684 | C7: 1.027171833 | F7: 15-17 éves (férfiak TS 014, aránya TS 015; nők TS 016, aránya TS 017) | G7: =_xlfn.IFNA(VLOOKUP("Állandó népesség; 15-17 éves férfiak (dec. 31.) (fő)",Q!$A$1:$G$132,MATCH(Q!$J$1-2,Q!$A$1:$G$1,FALSE),FALSE),"n.a.") -> 38 | H7: =_xlfn.IFNA(VLOOKUP("Állandó népesség; 15-17 éves nők (dec. 31.) (fő)",Q!$A$1:$G$132,MATCH(Q!$J$1-2,Q!$A$1:$G$1,FALSE),FALSE),"n.a.") -> 36 | I7: 74 | J7: 0.0148032723 | K7: 0.01402415271 | N7: 2022 | O7: =_xlfn.IFNA(VLOOKUP("Állandó népesség; 65-X éves férfiak (dec. 31.) (fő)",Q!$A$1:$G$132,MATCH($N7,Q!$A$1:$G$1,FALSE),FALSE),"n.a.")+_xlfn.IFNA(VLOOKUP("Állandó népesség; 65-X éves nők (dec. 31.) (fő)",Q!$A$1:$G$132,MATCH($A7,Q!$A$1:$G$1,FALSE),FALSE),"n.a.") -> 407 | P7: =_xlfn.IFNA(VLOOKUP("Állandó népesség; 0-14 éves férfiak (dec. 31.) (fő)",Q!$A$1:$G$132,MATCH($N7,Q!$A$1:$G$1,FALSE),FALSE),"n.a.")+_xlfn.IFNA(VLOOKUP("Állandó népesség; 0-14 éves nők (dec. 31.) (fő)",Q!$A$1:$G$132,MATCH($A7,Q!$A$1:$G$1,FALSE),FALSE),"n.a.") -> 526 | Q7: 0.7737642586 | S7: 2022 | T7: =_xlfn.IFNA(VLOOKUP("Belföldi vándorlási egyenleg, ezer lakosra (ezrelék)",Q!$A$1:$G$132,MATCH($S7,Q!$A$1:$G$1,FALSE),FALSE),"n.a.") -> 44.55 | V7: 2022 | W7: =_xlfn.IFNA(VLOOKUP("Természetes szaporodás, fogyás (ezrelék)",Q!$A$1:$G$132,MATCH($V7,Q!$A$1:$G$1,FALSE),FALSE),"n.a.") -> 6.04
A8: =Q!$J$1 -> 2023 | B8: =_xlfn.IFNA(VLOOKUP("Lakónépesség (dec. 31.) (fő)",Q!$A$1:$G$132,MATCH($A8,Q!$A$1:$G$1,FALSE),FALSE),"n.a.") -> 2763 | C8: 1.029433681 | F8: 18-59 éves (férfiak TS 018, aránya TS 019; nők TS 020, aránya TS 021) | G8: =_xlfn.IFNA(VLOOKUP("Állandó népesség; 18-59 éves férfiak (dec. 31.) (fő)",Q!$A$1:$G$132,MATCH(Q!$J$1-2,Q!$A$1:$G$1,FALSE),FALSE),"n.a.") -> 742 | H8: =_xlfn.IFNA(VLOOKUP("Állandó népesség; 18-59 évesek (dec. 31.) (fő)",Q!$A$1:$G$132,MATCH(Q!$J$1-2,Q!$A$1:$G$1,FALSE),FALSE),"n.a.")-G8 -> 748 | I8: 1490 | J8: 0.2890533697 | K8: 0.2913907285 | N8: 2023 | O8: =_xlfn.IFNA(VLOOKUP("Állandó népesség; 65-X éves férfiak (dec. 31.) (fő)",Q!$A$1:$G$132,MATCH($N8,Q!$A$1:$G$1,FALSE),FALSE),"n.a.")+_xlfn.IFNA(VLOOKUP("Állandó népesség; 65-X éves nők (dec. 31.) (fő)",Q!$A$1:$G$132,MATCH($A8,Q!$A$1:$G$1,FALSE),FALSE),"n.a.") -> 406 | P8: =_xlfn.IFNA(VLOOKUP("Állandó népesség; 0-14 éves férfiak (dec. 31.) (fő)",Q!$A$1:$G$132,MATCH($N8,Q!$A$1:$G$1,FALSE),FALSE),"n.a.")+_xlfn.IFNA(VLOOKUP("Állandó népesség; 0-14 éves nők (dec. 31.) (fő)",Q!$A$1:$G$132,MATCH($A8,Q!$A$1:$G$1,FALSE),FALSE),"n.a.") -> 551 | Q8: 0.7368421053 | S8: 2023 | T8: =_xlfn.IFNA(VLOOKUP("Belföldi vándorlási egyenleg, ezer lakosra (ezrelék)",Q!$A$1:$G$132,MATCH($S8,Q!$A$1:$G$1,FALSE),FALSE),"n.a.") -> 30.48 | V8: 2023 | W8: =_xlfn.IFNA(VLOOKUP("Természetes szaporodás, fogyás (ezrelék)",Q!$A$1:$G$132,MATCH($V8,Q!$A$1:$G$1,FALSE),FALSE),"n.a.") -> -1.84
A9: Forrás: TeIR, KSH-TSTAR | F9: 60-64 éves (férfiak TS 022, aránya TS 023; nők TS 024, aránya TS 025) | G9: =_xlfn.IFNA(VLOOKUP("Állandó népesség; 60-64 éves férfiak (dec. 31.) (fő)",Q!$A$1:$G$132,MATCH(Q!$J$1-2,Q!$A$1:$G$1,FALSE),FALSE),"n.a.") -> 62 | H9: =_xlfn.IFNA(VLOOKUP("Állandó népesség; 60-64 éves nők (dec. 31.) (fő)",Q!$A$1:$G$132,MATCH(Q!$J$1-2,Q!$A$1:$G$1,FALSE),FALSE),"n.a.") -> 71 | I9: 133 | J9: 0.02415270744 | K9: 0.02765874562 | N9: Forrás: TeIR, KSH-TSTAR | S9: Forrás: TeIR, KSH-TSTAR | V9: Forrás: TeIR, KSH-TSTAR
F10: 65 év feletti (férfiak TS 026, aránya TS 027; nők TS 028, aránya TS 029) | G10: =_xlfn.IFNA(VLOOKUP("Állandó népesség; 65-X éves férfiak (dec. 31.) (fő)",Q!$A$1:$G$132,MATCH(Q!$J$1-2,Q!$A$1:$G$1,FALSE),FALSE),"n.a.") -> 159 | H10: =_xlfn.IFNA(VLOOKUP("Állandó népesség; 65-X éves nők (dec. 31.) (fő)",Q!$A$1:$G$132,MATCH(Q!$J$1-2,Q!$A$1:$G$1,FALSE),FALSE),"n.a.") -> 235 | I10: 394 | J10: =IF(ISERR(G10/$I$4),"-",(G10/$I$4)) -> 0.06194000779 | K10: =IF(ISERR(H10/$I$4),"-",(H10/$I$4)) -> 0.0915465524
F11: Forrás: TeIR, KSH-TSTAR

Sheet 3. Mélyszegények-Romák
A1: 3.1. számú táblázat - Jövedelmi helyzet | E1: 3.2. 1. számú táblázat - Munkanélküliségi ráta nemek szerint | J1: 3.2.2. számú táblázat - Nyilvántartott álláskeresők száma korcsoportok szerint | S1: 3.2.3. számú tábla - A 180 napnál hosszabb ideje nyilvántartott álláskeresők aránya | W1: 3.2.4. számú táblázat - Regisztrált munkanélküliek/nyilvántartott álláskeresők száma iskolai végzettség szerint | AF1: 3.2.5. számú táblázat - Foglalkoztatáspolitika | AJ1: 3.2.6. számú táblázat - Pályakezdő álláskeresők száma | AN1: 3.3. 1. számú táblázat - Passzív foglalkoztatás-politikai eszközök - Álláskeresők ellátásai I. | AT1: 3.3.2. számú táblázat - Passzív foglalkoztatás-politikai eszközök - Álláskeresők ellátásai II. | BB1: 3.3.3. számú táblázat - Egészségkárosodási és gyermekfelügyeleti támogatás | BE1: 3.4.1. számú táblázat - Lakásállomány | BM1: 3.4.2. számú táblázat - Bérlakás és szociális lakás állomány opcionális (önkormányzati adatok) | BV1: 3.4.3. számú táblázat - Lakhatást segítő támogatások | BZ1: 3.6.1. számú táblázat – Egészségügyi ellátás | CH1: 3.6.2. Népkonyha | CK1: =CONCATENATE("3.7.1. számú táblázat - Intézményi ellátottság"," (",Q!J1-2,")") -> 3.7.1. számú táblázat - Intézményi ellátottság (2021)
A2: Év | B2: Az SZJA adófizetők száma | C2: Az SZJA adófizetők közül a 0-1 millió forintos jövedelemsávba tartozók | E2: Év | F2: Nyilvántartott álláskeresők aránya az állandó népességben a 15-64 évesek körében | J2: Nyilvántartott álláskeresők száma összesen | K2: Év | L2: =Q!$J$1-5 -> 2018 | M2: =Q!$J$1-4 -> 2019 | N2: =Q!$J$1-3 -> 2020 | O2: =Q!$J$1-2 -> 2021 | P2: =Q!$J$1-1 -> 2022 | Q2: =Q!$J$1 -> 2023 | S2: Év | T2: 180 napnál hosszabb ideje regisztrált munkanélküliek aránya (TS 057) | U2: Nők aránya a 180 napon túli nyilvántartott álláskeresőkön belül (TS 058) | W2: Év | X2: Regisztrált munkanélküliek/nyilvántartott álláskeresők száma összesen (TS 052) | Y2: Regisztrált munkanélküliek/nyilvántartott álláskeresők megoszlása iskolai végzettség szerint | AF2: Év | AG2: Aktív foglalkoztatás-politikai eszközökkel támogatottak száma (TS 050) | AH2: Közfoglalakoztatottak száma (TS 055) | AJ2: Év | AK2: Nyilvántartott álláskeresők száma (TS 052) | AL2: Nyilvántartott pályakezdő álláskeresők száma (TS 053) | AN2: Év | AO2: Nyilvántartott álláskeresők száma (TS 052) | AQ2: Álláskeresési ellátásban részesülő nyilvántartott álláskeresők száma (TS 047) | AT2: Év | AU2: Szociális támogatásban részesülő nyilvántartott álláskeresők száma (TS 048) | AW2: Foglalkoztatást helyettesítő támogatásban részesítettek átlagos havi száma (TS 054) | AY2: Ellátásban részesülő nyilvántartott álláskeresők száma (TS 049) | BB2: Év | BC2: Egészségkárosodási és gyermekfelügyeleti támogatásban részesítettek havi átlagos száma (TS 056) | BE2: Év | BF2: Lakásállomány (db) (TS 073) | BG2: Épített lakások száma (TSv 077) | BH2: Épített lakások száma 1000 lakásra (TS 078) | BI2: 1-2 szobás lakások aránya (TS 076) | BJ2: A közüzemi szennyvízgyűjtő-hálózatba bekapcsolt lakások aránya (TS 074) | BK2: A közüzemi ivóvízvezeték-hálózatba bekapcsolt lakások aránya (TS 075) | BM2: Év | BN2: Lakásállomány (db) (TS 073) | BO2: Ebből elégtelen lakhatási körülményeket biztosító lakások száma | BP2: Bérlakás állomány (db) | BQ2: Ebből elégtelen lakhatási körülményeket biztosító lakások száma | BR2: Szociális lakásállomány (db) | BS2: Ebből elégtelen lakhatási körülményeket biztosító lakások száma | BT2: Egyéb lakáscélra használt nem lakáscélú ingatlanok (db) | BV2: Év | BW2: Települési támogatásban részesítettek száma (pénzbeli és természetbeni) (TS 136) | BX2: Egyéb önkormányzati támogatásban részesítettek száma (TS 137) | BZ2: Év | CA2: Felnőttek és gyermekek részére szervezett háziorvosi szolgálatok száma (TS 107) | CB2: Csak felnőttek részére szervezett háziorvosi szolgáltatások száma (TS 106) | CC2: A házi gyermekorvosok által ellátott szolgálatok száma (TS 108) | CD2: Gyógyszertárak és fiókgyógyszertárak száma (TS 110) | CE2: Közgyógyellátási igazolvánnyal rendelkezők száma (alanyi és normatív alapon kiadott) (TS 133) | CF2: Ápolási díj, alanyi jogon: támogatásban részesítettek évi átlagos száma (TS 135) | CH2: Év | CI2: Népkonyhán kiosztott ételadagok száma (db) | CK2: Tornateremmel, tornaszobával ellátott köznevelési intézmények száma (intézmény székhelye szerint) (TS 102) | CL2: Sportcsarnok, sportpálya léte (TS 103) | CM2: A települési könyvtárak kikölcsönzött egységeinek száma (TS 104) | CN2: Közművelődési intézmények száma (TS 105)
B3: az állandó népesség %-ában (TS 059) | C3: az SZJA adófizetők %-ában (TS 060) | F3: Férfiak aránya (TS 033) | G3: Nők aránya (TS 034) | H3: Összesen | K3: Fő összesen | L3: =SUM(L4,L6,L8,L10,L12,L14,L16,L18,L20,L22) -> 17 | M3: 18 | N3: 26 | O3: 13 | P3: 18 | Q3: 26 | Y3: 8 általánosnál alacsonyabb végzettség (TS 036) | AA3: Általános iskolai végzettség (TS 035) | AC3: 8 általánosnál magasabb iskolai végzettség | AG3: Fő | AH3: (éves átlag - fő) | AK3: Fő | AL3: Fő | AO3: Fő | AP3: 15-64 év közötti népesség %-ában | AQ3: Fő | AR3: Nyilvántartottak %-ában | AU3: Fő | AV3: Nyilvántartottak %-ában | AW3: Fő | AX3: Nyilvántartottak %-ában | AY3: Fő | AZ3: Nyilvántartottak %-ában | BC3: fő | BF3: db | BG3: db | BH3: db | BI3: % | BJ3: % | BK3: % | BN3: db | BO3: db | BP3: db | BQ3: db | BR3: db | BS3: db | BT3: db | BW3: Fő | BX3: Fő | CA3: db | CB3: db | CC3: db | CD3: db | CE3: Fő | CF3: Fő | CH3: =$A4 -> 2018 | CI3: n.a. | CK3: db | CL3: van/nincs | CM3: db | CN3: db
A4: =Q!$J$1-5 -> 2018 | B4: =_xlfn.IFNA(VLOOKUP("SZJA adófizető, 100 lakosra (fő)",Q!$A$1:$G$132,MATCH($A4,Q!$A$1:$G$1,FALSE),FALSE),"n.a.") -> 49.81 | C4: =_xlfn.IFNA(VLOOKUP("SZJA adófizetők aránya évi 1 millió Ft alatti jövedelmi sávban (százalék)",Q!$A$1:$G$132,MATCH($A4,Q!$A$1:$G$1,FALSE),FALSE),"n.a.") -> 39.41 | E4: =$A4 -> 2018 | F4: =_xlfn.IFNA(VLOOKUP("Nyilvántartott álláskereső férfi, 100 15-64 éves férfira (fő)",Q!$A$1:$G$132,MATCH($E4,Q!$A$1:$G$1,FALSE),FALSE),"n.a.") -> 0.95 | G4: =_xlfn.IFNA(VLOOKUP("Nyilvántartott álláskereső nő, 100 15-64 éves nőre (fő)",Q!$A$1:$G$132,MATCH($E4,Q!$A$1:$G$1,FALSE),FALSE),"n.a.") -> 1.33 | H4: =SUM(F4:G4)/200 -> 0.0114 | J4: 20 éves, vagy az alatti (TS 037) | K4: Fő | L4: =_xlfn.IFNA(VLOOKUP("Nyilvántartott álláskeresők: 0-18 éves (fő)",Q!$A$1:$G$132,MATCH(L$2,Q!$A$1:$G$1,FALSE),FALSE),"n.a.")+_xlfn.IFNA(VLOOKUP("Nyilvántartott álláskeresők: 19-20 éves (fő)",Q!$A$1:$G$132,MATCH(L$2,Q!$A$1:$G$1,FALSE),FALSE),"n.a.") -> 1 | M4: =_xlfn.IFNA(VLOOKUP("Nyilvántartott álláskeresők: 0-18 éves (fő)",Q!$A$1:$G$132,MATCH(M$2,Q!$A$1:$G$1,FALSE),FALSE),"n.a.")+_xlfn.IFNA(VLOOKUP("Nyilvántartott álláskeresők: 19-20 éves (fő)",Q!$A$1:$G$132,MATCH(M$2,Q!$A$1:$G$1,FALSE),FALSE),"n.a.") -> 1 | N4: =_xlfn.IFNA(VLOOKUP("Nyilvántartott álláskeresők: 0-18 éves (fő)",Q!$A$1:$G$132,MATCH(N$2,Q!$A$1:$G$1,FALSE),FALSE),"n.a.")+_xlfn.IFNA(VLOOKUP("Nyilvántartott álláskeresők: 19-20 éves (fő)",Q!$A$1:$G$132,MATCH(N$2,Q!$A$1:$G$1,FALSE),FALSE),"n.a.") -> 1 | O4: =_xlfn.IFNA(VLOOKUP("Nyilvántartott álláskeresők: 0-18 éves (fő)",Q!$A$1:$G$132,MATCH(O$2,Q!$A$1:$G$1,FALSE),FALSE),"n.a.")+_xlfn.IFNA(VLOOKUP("Nyilvántartott álláskeresők: 19-20 éves (fő)",Q!$A$1:$G$132,MATCH(O$2,Q!$A$1:$G$1,FALSE),FALSE),"n.a.") -> 0 | P4: =_xlfn.IFNA(VLOOKUP("Nyilvántartott álláskeresők: 0-18 éves (fő)",Q!$A$1:$G$132,MATCH(P$2,Q!$A$1:$G$1,FALSE),FALSE),"n.a.")+_xlfn.IFNA(VLOOKUP("Nyilvántartott álláskeresők: 19-20 éves (fő)",Q!$A$1:$G$132,MATCH(P$2,Q!$A$1:$G$1,FALSE),FALSE),"n.a.") -> 0 | Q4: =_xlfn.IFNA(VLOOKUP("Nyilvántartott álláskeresők: 0-18 éves (fő)",Q!$A$1:$G$132,MATCH(Q$2,Q!$A$1:$G$1,FALSE),FALSE),"n.a.")+_xlfn.IFNA(VLOOKUP("Nyilvántartott álláskeresők: 19-20 éves (fő)",Q!$A$1:$G$132,MATCH(Q$2,Q!$A$1:$G$1,FALSE),FALSE),"n.a.") -> 0 | T4: % | U4: % | X4: Fő | Y4: Fő | Z4: % | AA4: Fő | AB4: % | AC4: Fő | AD4: % | AF4: =$A4 -> 2018 | AG4: =_xlfn.IFNA(VLOOKUP("Aktív foglalkoztatáspolitikai eszközzel támogatottak (fő)",Q!$A$1:$G$132,MATCH($AF4,Q!$A$1:$G$1,FALSE),FALSE),"n.a.") -> 0 | AH4: =_xlfn.IFNA(VLOOKUP("Közfoglalkoztatásban részt vevő (havi adatok éves átlaga) (fő)",Q!$A$1:$G$132,MATCH($AF4,Q!$A$1:$G$1,FALSE),FALSE),"n.a.") -> 0 | AJ4: =$A4 -> 2018 | AK4: =_xlfn.IFNA(VLOOKUP("Nyilvántartott álláskeresők összesen (fő)",Q!$A$1:$G$132,MATCH($AJ4,Q!$A$1:$G$1,FALSE),FALSE),"n.a.") -> 17 | AL4: =_xlfn.IFNA(VLOOKUP("Nyilvántartott pályakezdő álláskeresők (fő)",Q!$A$1:$G$132,MATCH($AJ4,Q!$A$1:$G$1,FALSE),FALSE),"n.a.") -> 0 | AN4: =$A4 -> 2018 | AO4: =AK4 -> 17 | AP4: =IF(ISERR((AO4/('Település Bemutatása - Népesség'!B3-'Település Bemutatása - Népesség'!O3-'Település Bemutatása - Népesség'!P3))*1),"-",(AO4/('Település Bemutatása - Népesség'!B3-'Település Bemutatása - Népesség'!O3-'Település Bemutatása - Népesség'!P3))*1) -> 0.01167582418 | AQ4: =_xlfn.IFNA(VLOOKUP("Álláskeresési ellátásban részesülő nyilvántartott álláskeresők (fő)",Q!$A$1:$G$132,MATCH($AN4,Q!$A$1:$G$1,FALSE),FALSE),"n.a.") -> 13 | AR4: =IF(ISERR((AQ4/AO4)*1),"-",(AQ4/AO4)*1) -> 0.7647058824 | AT4: =$A4 -> 2018 | AU4: =_xlfn.IFNA(VLOOKUP("Szociális támogatásban részesülő nyilvántartott álláskeresők (fő)",Q!$A$1:$G$132,MATCH($AT4,Q!$A$1:$G$1,FALSE),FALSE),"n.a.") -> 0 | AV4: =IF(ISERR((AU4/$AO4)*1),"-",(AU4/$AO4)*1) -> 0 | AW4: =_xlfn.IFNA(VLOOKUP("Foglalkoztatást helyettesítő támogatásban részesítettek havi átlagos létszáma (fő)",Q!$A$1:$G$132,MATCH($AT4,Q!$A$1:$G$1,FALSE),FALSE),"n.a.") -> 0 | AX4: =IF(ISERR((AW4/$AO4)*1),"-",(AW4/$AO4)*1) -> 0 | AY4: =_xlfn.IFNA(VLOOKUP("Ellátásban részesülő nyilvántartott álláskeresők (fő)",Q!$A$1:$G$132,MATCH($AT4,Q!$A$1:$G$1,FALSE),FALSE),"n.a.") -> 13 | AZ4: =IF(ISERR((AY4/$AO4)*1),"-",(AY4/$AO4)*1) -> 0.7647058824 | BB4: =$A4 -> 2018 | BC4: =_xlfn.IFNA(VLOOKUP("Egészségkárosodási és gyermekfelügyeleti támogatásban részesítettek havi átlagos létszáma (fő)",Q!$A$1:$G$132,MATCH($AT4,Q!$A$1:$G$1,FALSE),FALSE),"n.a.") -> 0.44 | BE4: =$A4 -> 2018 | BF4: =_xlfn.IFNA(VLOOKUP("Lakásállomány (db)",Q!$A$1:$G$132,MATCH($BE4,Q!$A$1:$G$1,FALSE),FALSE),"n.a.") -> 842 | BG4: =_xlfn.IFNA(VLOOKUP("Épített lakások (üdülők nélkül) (db)",Q!$A$1:$G$132,MATCH($BE4,Q!$A$1:$G$1,FALSE),FALSE),"n.a.") -> 21 | BH4: =_xlfn.IFNA(VLOOKUP("Az év folyamán épített lakás, 1000 lakásra (db)",Q!$A$1:$G$132,MATCH($BE4,Q!$A$1:$G$1,FALSE),FALSE),"n.a.") -> 24.94 | BI4: =_xlfn.IFNA(VLOOKUP("Egy és két szobás lakások aránya (százalék)",Q!$A$1:$G$132,MATCH($BE4,Q!$A$1:$G$1,FALSE),FALSE),"n.a.") -> 29.81 | BJ4: =_xlfn.IFNA(VLOOKUP("Közcsatornahálózatba bekapcsolt lakások aránya (százalék)",Q!$A$1:$G$132,MATCH($BE4,Q!$A$1:$G$1,FALSE),FALSE),"n.a.") -> 94.89 | BK4: =_xlfn.IFNA(VLOOKUP("Közüzemi ivóvízvezeték-hálózatba bekapcsolt lakások aránya (százalék)",Q!$A$1:$G$132,MATCH($BE4,Q!$A$1:$G$1,FALSE),FALSE),"n.a.") -> 100 | BM4: =$A4 -> 2018 | BN4: =BF4 -> 842 | BO4: n.a. | BP4: n.a. | BQ4: n.a. | BR4: n.a. | BS4: n.a. | BT4: n.a. | BV4: =$A4 -> 2018 | BW4: 44 | BX4: =_xlfn.IFNA(VLOOKUP("Egyéb önkormányzati támogatásban részesítettek"&"*",Q!$A$1:$G$134,MATCH($BV4,Q!$A$1:$G$1,FALSE),FALSE),"n.a.") -> 387 | BZ4: =$A4 -> 2018 | CA4: =_xlfn.IFNA(VLOOKUP("Felnőttek és gyerekek részére szervezett háziorvosi szolgálatok (db)",Q!$A$1:$G$132,MATCH($BZ4,Q!$A$1:$G$1,FALSE),FALSE),"n.a.") -> 1 | CB4: =_xlfn.IFNA(VLOOKUP("Csak felnőttek részére szervezett háziorvosi szolgálatok (db)",Q!$A$1:$G$132,MATCH($BZ4,Q!$A$1:$G$1,FALSE),FALSE),"n.a.") -> 0 | CC4: =_xlfn.IFNA(VLOOKUP("Házi gyermekorvosok által ellátott szolgálatok (db)",Q!$A$1:$G$132,MATCH($BZ4,Q!$A$1:$G$1,FALSE),FALSE),"n.a.") -> 0 | CD4: =_xlfn.IFNA(VLOOKUP("Gyógyszertárak és fiókgyógyszertárak (db)",Q!$A$1:$G$132,MATCH($BZ4,Q!$A$1:$G$1,FALSE),FALSE),"n.a.") -> 1 | CE4: =_xlfn.IFNA(VLOOKUP("Közgyógyellátási igazolvánnyal rendelkezők (alanyi és normatív alapon kiadott) (fő)",Q!$A$1:$G$132,MATCH($BZ4,Q!$A$1:$G$1,FALSE),FALSE),"n.a.") -> 22 | CF4: =_xlfn.IFNA(VLOOKUP("Alanyi jogon megállapított ápolási díjban részesítettek havi átlagos létszáma (fő)",Q!$A$1:$G$132,MATCH($BZ4,Q!$A$1:$G$1,FALSE),FALSE),"n.a.") -> 2.62 | CH4: =$A5 -> 2019 | CI4: n.a. | CK4: =_xlfn.IFNA(VLOOKUP("Tornateremmel, tornaszobával ellátott köznevelési intézmények (székhely szerint) (db)",Q!$A$1:$G$132,MATCH(Q!$J$1-2,Q!$A$1:$G$1,FALSE),FALSE),"n.a.") -> n.a. | CL4: =IF(_xlfn.IFNA(VLOOKUP("Sportcsarnok, sportpálya léte (igen-nem)",Q!$A$1:$G$132,MATCH(Q!$J$1-2,Q!$A$1:$G$1,FALSE),FALSE),"n.a.")=1,"igen","nem") -> igen | CM4: =_xlfn.IFNA(VLOOKUP("Települési könyvtárakból kölcsönzött könyvtári egységek (db)",Q!$A$1:$G$132,MATCH(Q!$J$1-2,Q!$A$1:$G$1,FALSE),FALSE),"n.a.") -> 78 | CN4: =_xlfn.IFNA(VLOOKUP("Közművelődési intézmények (db)",Q!$A$1:$G$132,MATCH(Q!$J$1-2,Q!$A$1:$G$1,FALSE),FALSE),"n.a.") -> 1
A5: =Q!$J$1-4 -> 2019 | B5: =_xlfn.IFNA(VLOOKUP("SZJA adófizető, 100 lakosra (fő)",Q!$A$1:$G$132,MATCH($A5,Q!$A$1:$G$1,FALSE),FALSE),"n.a.") -> 42.61 | C5: =_xlfn.IFNA(VLOOKUP("SZJA adófizetők aránya évi 1 millió Ft alatti jövedelmi sávban (százalék)",Q!$A$1:$G$132,MATCH($A5,Q!$A$1:$G$1,FALSE),FALSE),"n.a.") -> 29.13 | E5: =$A5 -> 2019 | F5: =_xlfn.IFNA(VLOOKUP("Nyilvántartott álláskereső férfi, 100 15-64 éves férfira (fő)",Q!$A$1:$G$132,MATCH($E5,Q!$A$1:$G$1,FALSE),FALSE),"n.a.") -> 1.19 | G5: =_xlfn.IFNA(VLOOKUP("Nyilvántartott álláskereső nő, 100 15-64 éves nőre (fő)",Q!$A$1:$G$132,MATCH($E5,Q!$A$1:$G$1,FALSE),FALSE),"n.a.") -> 1.16 | H5: =SUM(F5:G5)/200 -> 0.01175 | K5: % | L5: =IF(ISERR((L4/L$3)),"-",(L4/L$3)) -> 0.05882352941 | M5: 0.05555555556 | N5: 0.03846153846 | O5: 0 | P5: 0 | Q5: 0 | S5: =$A4 -> 2018 | T5: =_xlfn.IFNA(VLOOKUP("180 napnál hosszabb ideje nyilvántartott álláskeresők aránya (százalék)",Q!$A$1:$G$132,MATCH($S5,Q!$A$1:$G$1,FALSE),FALSE),"n.a.") -> 41.18 | U5: =_xlfn.IFNA(VLOOKUP("Nők aránya a 180 napon túli nyilvántartott álláskeresőkön belül (százalék)",Q!$A$1:$G$132,MATCH($S5,Q!$A$1:$G$1,FALSE),FALSE),"n.a.") -> 57.14 | W5: =$A4 -> 2018 | X5: =$L$3 -> 17 | Y5: =_xlfn.IFNA(VLOOKUP("Általános iskola 8 osztályánál kevesebb végzettséggel rendelkező nyilvántartott álláskeresők (fő)",Q!$A$1:$G$132,MATCH($W5,Q!$A$1:$G$1,FALSE),FALSE),"n.a.") -> 0 | Z5: =IF(ISERR((Y5/X5)*1),"-",(Y5/X5)*1) -> 0 | AA5: =_xlfn.IFNA(VLOOKUP("Általános iskolai végzettségű nyilvántartott álláskeresők (fő)",Q!$A$1:$G$132,MATCH($W5,Q!$A$1:$G$1,FALSE),FALSE),"n.a.") -> 5 | AB5: =IF(ISERR((AA5/X5)*1),"-",(AA5/X5)*1) -> 0.2941176471 | AC5: =IFERROR(X5-(Y5+AA5),"-") -> 12 | AD5: =IF(ISERR((AC5/X5)*1),"-",(AC5/X5)*1) -> 0.7058823529 | AF5: =$A5 -> 2019 | AG5: =_xlfn.IFNA(VLOOKUP("Aktív foglalkoztatáspolitikai eszközzel támogatottak (fő)",Q!$A$1:$G$132,MATCH($AF5,Q!$A$1:$G$1,FALSE),FALSE),"n.a.") -> 2 | AH5: =_xlfn.IFNA(VLOOKUP("Közfoglalkoztatásban részt vevő (havi adatok éves átlaga) (fő)",Q!$A$1:$G$132,MATCH($AF5,Q!$A$1:$G$1,FALSE),FALSE),"n.a.") -> 0 | AJ5: =$A5 -> 2019 | AK5: =_xlfn.IFNA(VLOOKUP("Nyilvántartott álláskeresők összesen (fő)",Q!$A$1:$G$132,MATCH($AJ5,Q!$A$1:$G$1,FALSE),FALSE),"n.a.") -> 18 | AL5: =_xlfn.IFNA(VLOOKUP("Nyilvántartott pályakezdő álláskeresők (fő)",Q!$A$1:$G$132,MATCH($AJ5,Q!$A$1:$G$1,FALSE),FALSE),"n.a.") -> 0 | AN5: =$A5 -> 2019 | AO5: =AK5 -> 18 | AP5: =IF(ISERR((AO5/('Település Bemutatása - Népesség'!B4-'Település Bemutatása - Népesség'!O4-'Település Bemutatása - Népesség'!P4))*1),"-",(AO5/('Település Bemutatása - Népesség'!B4-'Település Bemutatása - Népesség'!O4-'Település Bemutatása - Népesség'!P4))*1) -> 0.01186552406 | AQ5: =_xlfn.IFNA(VLOOKUP("Álláskeresési ellátásban részesülő nyilvántartott álláskeresők (fő)",Q!$A$1:$G$132,MATCH($AN5,Q!$A$1:$G$1,FALSE),FALSE),"n.a.") -> 17 | AR5: =IF(ISERR((AQ5/AO5)*1),"-",(AQ5/AO5)*1) -> 0.9444444444 | AT5: =$A5 -> 2019 | AU5: =_xlfn.IFNA(VLOOKUP("Szociális támogatásban részesülő nyilvántartott álláskeresők (fő)",Q!$A$1:$G$132,MATCH($AT5,Q!$A$1:$G$1,FALSE),FALSE),"n.a.") -> 0 | AV5: 0 | AW5: =_xlfn.IFNA(VLOOKUP("Foglalkoztatást helyettesítő támogatásban részesítettek havi átlagos létszáma (fő)",Q!$A$1:$G$132,MATCH($AT5,Q!$A$1:$G$1,FALSE),FALSE),"n.a.") -> 0 | AX5: 0 | AY5: =_xlfn.IFNA(VLOOKUP("Ellátásban részesülő nyilvántartott álláskeresők (fő)",Q!$A$1:$G$132,MATCH($AT5,Q!$A$1:$G$1,FALSE),FALSE),"n.a.") -> 17 | AZ5: 0.9444444444 | BB5: =$A5 -> 2019 | BC5: =_xlfn.IFNA(VLOOKUP("Egészségkárosodási és gyermekfelügyeleti támogatásban részesítettek havi átlagos létszáma (fő)",Q!$A$1:$G$132,MATCH($AT5,Q!$A$1:$G$1,FALSE),FALSE),"n.a.") -> 1.23 | BE5: =$A5 -> 2019 | BF5: =_xlfn.IFNA(VLOOKUP("Lakásállomány (db)",Q!$A$1:$G$132,MATCH($BE5,Q!$A$1:$G$1,FALSE),FALSE),"n.a.") -> 887 | BG5: =_xlfn.IFNA(VLOOKUP("Épített lakások (üdülők nélkül) (db)",Q!$A$1:$G$132,MATCH($BE5,Q!$A$1:$G$1,FALSE),FALSE),"n.a.") -> 45 | BH5: =_xlfn.IFNA(VLOOKUP("Az év folyamán épített lakás, 1000 lakásra (db)",Q!$A$1:$G$132,MATCH($BE5,Q!$A$1:$G$1,FALSE),FALSE),"n.a.") -> 50.73 | BI5: =_xlfn.IFNA(VLOOKUP("Egy és két szobás lakások aránya (százalék)",Q!$A$1:$G$132,MATCH($BE5,Q!$A$1:$G$1,FALSE),FALSE),"n.a.") -> 28.52 | BJ5: =_xlfn.IFNA(VLOOKUP("Közcsatornahálózatba bekapcsolt lakások aránya (százalék)",Q!$A$1:$G$132,MATCH($BE5,Q!$A$1:$G$1,FALSE),FALSE),"n.a.") -> 96.05 | BK5: =_xlfn.IFNA(VLOOKUP("Közüzemi ivóvízvezeték-hálózatba bekapcsolt lakások aránya (százalék)",Q!$A$1:$G$132,MATCH($BE5,Q!$A$1:$G$1,FALSE),FALSE),"n.a.") -> 100 | BM5: =$A5 -> 2019 | BN5: 887 | BO5: n.a. | BP5: n.a. | BQ5: n.a. | BR5: n.a. | BS5: n.a. | BT5: n.a. | BV5: =$A5 -> 2019 | BW5: 46 | BX5: =_xlfn.IFNA(VLOOKUP("Egyéb önkormányzati támogatásban részesítettek"&"*",Q!$A$1:$G$134,MATCH($BV5,Q!$A$1:$G$1,FALSE),FALSE),"n.a.") -> 417 | BZ5: =$A5 -> 2019 | CA5: =_xlfn.IFNA(VLOOKUP("Felnőttek és gyerekek részére szervezett háziorvosi szolgálatok (db)",Q!$A$1:$G$132,MATCH($BZ5,Q!$A$1:$G$1,FALSE),FALSE),"n.a.") -> 1 | CB5: =_xlfn.IFNA(VLOOKUP("Csak felnőttek részére szervezett háziorvosi szolgálatok (db)",Q!$A$1:$G$132,MATCH($BZ5,Q!$A$1:$G$1,FALSE),FALSE),"n.a.") -> 0 | CC5: =_xlfn.IFNA(VLOOKUP("Házi gyermekorvosok által ellátott szolgálatok (db)",Q!$A$1:$G$132,MATCH($BZ5,Q!$A$1:$G$1,FALSE),FALSE),"n.a.") -> 0 | CD5: =_xlfn.IFNA(VLOOKUP("Gyógyszertárak és fiókgyógyszertárak (db)",Q!$A$1:$G$132,MATCH($BZ5,Q!$A$1:$G$1,FALSE),FALSE),"n.a.") -> 1 | CE5: =_xlfn.IFNA(VLOOKUP("Közgyógyellátási igazolvánnyal rendelkezők (alanyi és normatív alapon kiadott) (fő)",Q!$A$1:$G$132,MATCH($BZ5,Q!$A$1:$G$1,FALSE),FALSE),"n.a.") -> 23 | CF5: =_xlfn.IFNA(VLOOKUP("Alanyi jogon megállapított ápolási díjban részesítettek havi átlagos létszáma (fő)",Q!$A$1:$G$132,MATCH($BZ5,Q!$A$1:$G$1,FALSE),FALSE),"n.a.") -> 1.04 | CH5: =$A6 -> 2020 | CI5: n.a. | CK5: Forrás: TeIR, KSH Tstar
A6: =Q!$J$1-3 -> 2020 | B6: =_xlfn.IFNA(VLOOKUP("SZJA adófizető, 100 lakosra (fő)",Q!$A$1:$G$132,MATCH($A6,Q!$A$1:$G$1,FALSE),FALSE),"n.a.") -> 42.14 | C6: =_xlfn.IFNA(VLOOKUP("SZJA adófizetők aránya évi 1 millió Ft alatti jövedelmi sávban (százalék)",Q!$A$1:$G$132,MATCH($A6,Q!$A$1:$G$1,FALSE),FALSE),"n.a.") -> 30.46 | E6: 2020 | F6: =_xlfn.IFNA(VLOOKUP("Nyilvántartott álláskereső férfi, 100 15-64 éves férfira (fő)",Q!$A$1:$G$132,MATCH($E6,Q!$A$1:$G$1,FALSE),FALSE),"n.a.") -> 0.86 | G6: =_xlfn.IFNA(VLOOKUP("Nyilvántartott álláskereső nő, 100 15-64 éves nőre (fő)",Q!$A$1:$G$132,MATCH($E6,Q!$A$1:$G$1,FALSE),FALSE),"n.a.") -> 2.31 | H6: 0.01585 | J6: 21-25 év (TS 038) | K6: Fő | L6: =_xlfn.IFNA(VLOOKUP("Nyilvántartott álláskeresők: 21-25 éves (fő)",Q!$A$1:$G$132,MATCH(L$2,Q!$A$1:$G$1,FALSE),FALSE),"n.a.") -> 2 | M6: =_xlfn.IFNA(VLOOKUP("Nyilvántartott álláskeresők: 21-25 éves (fő)",Q!$A$1:$G$132,MATCH(M$2,Q!$A$1:$G$1,FALSE),FALSE),"n.a.") -> 4 | N6: =_xlfn.IFNA(VLOOKUP("Nyilvántartott álláskeresők: 21-25 éves (fő)",Q!$A$1:$G$132,MATCH(N$2,Q!$A$1:$G$1,FALSE),FALSE),"n.a.") -> 0 | O6: =_xlfn.IFNA(VLOOKUP("Nyilvántartott álláskeresők: 21-25 éves (fő)",Q!$A$1:$G$132,MATCH(O$2,Q!$A$1:$G$1,FALSE),FALSE),"n.a.") -> 1 | P6: =_xlfn.IFNA(VLOOKUP("Nyilvántartott álláskeresők: 21-25 éves (fő)",Q!$A$1:$G$132,MATCH(P$2,Q!$A$1:$G$1,FALSE),FALSE),"n.a.") -> 1 | Q6: =_xlfn.IFNA(VLOOKUP("Nyilvántartott álláskeresők: 21-25 éves (fő)",Q!$A$1:$G$132,MATCH(Q$2,Q!$A$1:$G$1,FALSE),FALSE),"n.a.") -> 1 | S6: =$A5 -> 2019 | T6: =_xlfn.IFNA(VLOOKUP("180 napnál hosszabb ideje nyilvántartott álláskeresők aránya (százalék)",Q!$A$1:$G$132,MATCH($S6,Q!$A$1:$G$1,FALSE),FALSE),"n.a.") -> 27.78 | U6: =_xlfn.IFNA(VLOOKUP("Nők aránya a 180 napon túli nyilvántartott álláskeresőkön belül (százalék)",Q!$A$1:$G$132,MATCH($S6,Q!$A$1:$G$1,FALSE),FALSE),"n.a.") -> 60 | W6: =$A5 -> 2019 | X6: =$M$3 -> 18 | Y6: =_xlfn.IFNA(VLOOKUP("Általános iskola 8 osztályánál kevesebb végzettséggel rendelkező nyilvántartott álláskeresők (fő)",Q!$A$1:$G$132,MATCH($W6,Q!$A$1:$G$1,FALSE),FALSE),"n.a.") -> 0 | Z6: =IF(ISERR((Y6/X6)*1),"-",(Y6/X6)*1) -> 0 | AA6: =_xlfn.IFNA(VLOOKUP("Általános iskolai végzettségű nyilvántartott álláskeresők (fő)",Q!$A$1:$G$132,MATCH($W6,Q!$A$1:$G$1,FALSE),FALSE),"n.a.") -> 3 | AB6: =IF(ISERR((AA6/X6)*1),"-",(AA6/X6)*1) -> 0.1666666667 | AC6: =IFERROR(X6-(Y6+AA6),"-") -> 15 | AD6: =IF(ISERR((AC6/X6)*1),"-",(AC6/X6)*1) -> 0.8333333333 | AF6: =$A6 -> 2020 | AG6: =_xlfn.IFNA(VLOOKUP("Aktív foglalkoztatáspolitikai eszközzel támogatottak (fő)",Q!$A$1:$G$132,MATCH($AF6,Q!$A$1:$G$1,FALSE),FALSE),"n.a.") -> 23 | AH6: =_xlfn.IFNA(VLOOKUP("Közfoglalkoztatásban részt vevő (havi adatok éves átlaga) (fő)",Q!$A$1:$G$132,MATCH($AF6,Q!$A$1:$G$1,FALSE),FALSE),"n.a.") -> 0 | AJ6: =$A6 -> 2020 | AK6: =_xlfn.IFNA(VLOOKUP("Nyilvántartott álláskeresők összesen (fő)",Q!$A$1:$G$132,MATCH($AJ6,Q!$A$1:$G$1,FALSE),FALSE),"n.a.") -> 26 | AL6: =_xlfn.IFNA(VLOOKUP("Nyilvántartott pályakezdő álláskeresők (fő)",Q!$A$1:$G$132,MATCH($AJ6,Q!$A$1:$G$1,FALSE),FALSE),"n.a.") -> 1 | AN6: =$A6 -> 2020 | AO6: 26 | AP6: =IF(ISERR((AO6/('Település Bemutatása - Népesség'!B5-'Település Bemutatása - Népesség'!O5-'Település Bemutatása - Népesség'!P5))*1),"-",(AO6/('Település Bemutatása - Népesség'!B5-'Település Bemutatása - Népesség'!O5-'Település Bemutatása - Népesség'!P5))*1) -> 0.01569100785 | AQ6: =_xlfn.IFNA(VLOOKUP("Álláskeresési ellátásban részesülő nyilvántartott álláskeresők (fő)",Q!$A$1:$G$132,MATCH($AN6,Q!$A$1:$G$1,FALSE),FALSE),"n.a.") -> 16 | AR6: 0.6153846154 | AT6: =$A6 -> 2020 | AU6: =_xlfn.IFNA(VLOOKUP("Szociális támogatásban részesülő nyilvántartott álláskeresők (fő)",Q!$A$1:$G$132,MATCH($AT6,Q!$A$1:$G$1,FALSE),FALSE),"n.a.") -> 0 | AV6: 0 | AW6: =_xlfn.IFNA(VLOOKUP("Foglalkoztatást helyettesítő támogatásban részesítettek havi átlagos létszáma (fő)",Q!$A$1:$G$132,MATCH($AT6,Q!$A$1:$G$1,FALSE),FALSE),"n.a.") -> 0 | AX6: 0 | AY6: =_xlfn.IFNA(VLOOKUP("Ellátásban részesülő nyilvántartott álláskeresők (fő)",Q!$A$1:$G$132,MATCH($AT6,Q!$A$1:$G$1,FALSE),FALSE),"n.a.") -> 16 | AZ6: 0.6153846154 | BB6: =$A6 -> 2020 | BC6: =_xlfn.IFNA(VLOOKUP("Egészségkárosodási és gyermekfelügyeleti támogatásban részesítettek havi átlagos létszáma (fő)",Q!$A$1:$G$132,MATCH($AT6,Q!$A$1:$G$1,FALSE),FALSE),"n.a.") -> 1.7 | BE6: =$A6 -> 2020 | BF6: =_xlfn.IFNA(VLOOKUP("Lakásállomány (db)",Q!$A$1:$G$132,MATCH($BE6,Q!$A$1:$G$1,FALSE),FALSE),"n.a.") -> 989 | BG6: =_xlfn.IFNA(VLOOKUP("Épített lakások (üdülők nélkül) (db)",Q!$A$1:$G$132,MATCH($BE6,Q!$A$1:$G$1,FALSE),FALSE),"n.a.") -> 102 | BH6: =_xlfn.IFNA(VLOOKUP("Az év folyamán épített lakás, 1000 lakásra (db)",Q!$A$1:$G$132,MATCH($BE6,Q!$A$1:$G$1,FALSE),FALSE),"n.a.") -> 103.13 | BI6: =_xlfn.IFNA(VLOOKUP("Egy és két szobás lakások aránya (százalék)",Q!$A$1:$G$132,MATCH($BE6,Q!$A$1:$G$1,FALSE),FALSE),"n.a.") -> 27.6 | BJ6: =_xlfn.IFNA(VLOOKUP("Közcsatornahálózatba bekapcsolt lakások aránya (százalék)",Q!$A$1:$G$132,MATCH($BE6,Q!$A$1:$G$1,FALSE),FALSE),"n.a.") -> 93.63 | BK6: =_xlfn.IFNA(VLOOKUP("Közüzemi ivóvízvezeték-hálózatba bekapcsolt lakások aránya (százalék)",Q!$A$1:$G$132,MATCH($BE6,Q!$A$1:$G$1,FALSE),FALSE),"n.a.") -> 100 | BM6: =$A6 -> 2020 | BN6: 989 | BO6: n.a. | BP6: n.a. | BQ6: n.a. | BR6: n.a. | BS6: n.a. | BT6: n.a. | BV6: =$A6 -> 2020 | BW6: 24 | BX6: =_xlfn.IFNA(VLOOKUP("Egyéb önkormányzati támogatásban részesítettek"&"*",Q!$A$1:$G$134,MATCH($BV6,Q!$A$1:$G$1,FALSE),FALSE),"n.a.") -> 8 | BZ6: =$A6 -> 2020 | CA6: =_xlfn.IFNA(VLOOKUP("Felnőttek és gyerekek részére szervezett háziorvosi szolgálatok (db)",Q!$A$1:$G$132,MATCH($BZ6,Q!$A$1:$G$1,FALSE),FALSE),"n.a.") -> 1 | CB6: =_xlfn.IFNA(VLOOKUP("Csak felnőttek részére szervezett háziorvosi szolgálatok (db)",Q!$A$1:$G$132,MATCH($BZ6,Q!$A$1:$G$1,FALSE),FALSE),"n.a.") -> 0 | CC6: =_xlfn.IFNA(VLOOKUP("Házi gyermekorvosok által ellátott szolgálatok (db)",Q!$A$1:$G$132,MATCH($BZ6,Q!$A$1:$G$1,FALSE),FALSE),"n.a.") -> 0 | CD6: =_xlfn.IFNA(VLOOKUP("Gyógyszertárak és fiókgyógyszertárak (db)",Q!$A$1:$G$132,MATCH($BZ6,Q!$A$1:$G$1,FALSE),FALSE),"n.a.") -> 1 | CE6: =_xlfn.IFNA(VLOOKUP("Közgyógyellátási igazolvánnyal rendelkezők (alanyi és normatív alapon kiadott) (fő)",Q!$A$1:$G$132,MATCH($BZ6,Q!$A$1:$G$1,FALSE),FALSE),"n.a.") -> 18 | CF6: =_xlfn.IFNA(VLOOKUP("Alanyi jogon megállapított ápolási díjban részesítettek havi átlagos létszáma (fő)",Q!$A$1:$G$132,MATCH($BZ6,Q!$A$1:$G$1,FALSE),FALSE),"n.a.") -> 1.31 | CH6: 2021 | CI6: n.a.
A7: =Q!$J$1-2 -> 2021 | B7: =_xlfn.IFNA(VLOOKUP("SZJA adófizető, 100 lakosra (fő)",Q!$A$1:$G$132,MATCH($A7,Q!$A$1:$G$1,FALSE),FALSE),"n.a.") -> 42.58 | C7: =_xlfn.IFNA(VLOOKUP("SZJA adófizetők aránya évi 1 millió Ft alatti jövedelmi sávban (százalék)",Q!$A$1:$G$132,MATCH($A7,Q!$A$1:$G$1,FALSE),FALSE),"n.a.") -> 30.19 | E7: 2021 | F7: =_xlfn.IFNA(VLOOKUP("Nyilvántartott álláskereső férfi, 100 15-64 éves férfira (fő)",Q!$A$1:$G$132,MATCH($E7,Q!$A$1:$G$1,FALSE),FALSE),"n.a.") -> 0.48 | G7: =_xlfn.IFNA(VLOOKUP("Nyilvántartott álláskereső nő, 100 15-64 éves nőre (fő)",Q!$A$1:$G$132,MATCH($E7,Q!$A$1:$G$1,FALSE),FALSE),"n.a.") -> 1.05 | H7: 0.00765 | K7: % | L7: =IF(ISERR((L6/L$3)),"-",(L6/L$3)) -> 0.1176470588 | M7: 0.2222222222 | N7: 0 | O7: 0.07692307692 | P7: 0.05555555556 | Q7: 0.03846153846 | S7: 2020 | T7: =_xlfn.IFNA(VLOOKUP("180 napnál hosszabb ideje nyilvántartott álláskeresők aránya (százalék)",Q!$A$1:$G$132,MATCH($S7,Q!$A$1:$G$1,FALSE),FALSE),"n.a.") -> 34.62 | U7: =_xlfn.IFNA(VLOOKUP("Nők aránya a 180 napon túli nyilvántartott álláskeresőkön belül (százalék)",Q!$A$1:$G$132,MATCH($S7,Q!$A$1:$G$1,FALSE),FALSE),"n.a.") -> 66.67 | W7: 2020 | X7: =$N$3 -> 26 | Y7: =_xlfn.IFNA(VLOOKUP("Általános iskola 8 osztályánál kevesebb végzettséggel rendelkező nyilvántartott álláskeresők (fő)",Q!$A$1:$G$132,MATCH($W7,Q!$A$1:$G$1,FALSE),FALSE),"n.a.") -> 0 | Z7: 0 | AA7: =_xlfn.IFNA(VLOOKUP("Általános iskolai végzettségű nyilvántartott álláskeresők (fő)",Q!$A$1:$G$132,MATCH($W7,Q!$A$1:$G$1,FALSE),FALSE),"n.a.") -> 5 | AB7: 0.1923076923 | AC7: 21 | AD7: 0.8076923077 | AF7: 2021 | AG7: =_xlfn.IFNA(VLOOKUP("Aktív foglalkoztatáspolitikai eszközzel támogatottak (fő)",Q!$A$1:$G$132,MATCH($AF7,Q!$A$1:$G$1,FALSE),FALSE),"n.a.") -> 3 | AH7: =_xlfn.IFNA(VLOOKUP("Közfoglalkoztatásban részt vevő (havi adatok éves átlaga) (fő)",Q!$A$1:$G$132,MATCH($AF7,Q!$A$1:$G$1,FALSE),FALSE),"n.a.") -> 0 | AJ7: 2021 | AK7: =_xlfn.IFNA(VLOOKUP("Nyilvántartott álláskeresők összesen (fő)",Q!$A$1:$G$132,MATCH($AJ7,Q!$A$1:$G$1,FALSE),FALSE),"n.a.") -> 13 | AL7: =_xlfn.IFNA(VLOOKUP("Nyilvántartott pályakezdő álláskeresők (fő)",Q!$A$1:$G$132,MATCH($AJ7,Q!$A$1:$G$1,FALSE),FALSE),"n.a.") -> 0 | AN7: 2021 | AO7: 13 | AP7: =IF(ISERR((AO7/('Település Bemutatása - Népesség'!B6-'Település Bemutatása - Népesség'!O6-'Település Bemutatása - Népesség'!P6))*1),"-",(AO7/('Település Bemutatása - Népesség'!B6-'Település Bemutatása - Népesség'!O6-'Település Bemutatása - Népesség'!P6))*1) -> 0.007458405049 | AQ7: =_xlfn.IFNA(VLOOKUP("Álláskeresési ellátásban részesülő nyilvántartott álláskeresők (fő)",Q!$A$1:$G$132,MATCH($AN7,Q!$A$1:$G$1,FALSE),FALSE),"n.a.") -> 10 | AR7: 0.7692307692 | AT7: 2021 | AU7: =_xlfn.IFNA(VLOOKUP("Szociális támogatásban részesülő nyilvántartott álláskeresők (fő)",Q!$A$1:$G$132,MATCH($AT7,Q!$A$1:$G$1,FALSE),FALSE),"n.a.") -> 0 | AV7: 0 | AW7: =_xlfn.IFNA(VLOOKUP("Foglalkoztatást helyettesítő támogatásban részesítettek havi átlagos létszáma (fő)",Q!$A$1:$G$132,MATCH($AT7,Q!$A$1:$G$1,FALSE),FALSE),"n.a.") -> 0.09 | AX7: 0.006923076923 | AY7: =_xlfn.IFNA(VLOOKUP("Ellátásban részesülő nyilvántartott álláskeresők (fő)",Q!$A$1:$G$132,MATCH($AT7,Q!$A$1:$G$1,FALSE),FALSE),"n.a.") -> 10 | AZ7: 0.7692307692 | BB7: 2021 | BC7: =_xlfn.IFNA(VLOOKUP("Egészségkárosodási és gyermekfelügyeleti támogatásban részesítettek havi átlagos létszáma (fő)",Q!$A$1:$G$132,MATCH($AT7,Q!$A$1:$G$1,FALSE),FALSE),"n.a.") -> 2 | BE7: 2021 | BF7: =_xlfn.IFNA(VLOOKUP("Lakásállomány (db)",Q!$A$1:$G$132,MATCH($BE7,Q!$A$1:$G$1,FALSE),FALSE),"n.a.") -> 1016 | BG7: =_xlfn.IFNA(VLOOKUP("Épített lakások (üdülők nélkül) (db)",Q!$A$1:$G$132,MATCH($BE7,Q!$A$1:$G$1,FALSE),FALSE),"n.a.") -> 28 | BH7: =_xlfn.IFNA(VLOOKUP("Az év folyamán épített lakás, 1000 lakásra (db)",Q!$A$1:$G$132,MATCH($BE7,Q!$A$1:$G$1,FALSE),FALSE),"n.a.") -> 27.56 | BI7: =_xlfn.IFNA(VLOOKUP("Egy és két szobás lakások aránya (százalék)",Q!$A$1:$G$132,MATCH($BE7,Q!$A$1:$G$1,FALSE),FALSE),"n.a.") -> 26.87 | BJ7: =_xlfn.IFNA(VLOOKUP("Közcsatornahálózatba bekapcsolt lakások aránya (százalék)",Q!$A$1:$G$132,MATCH($BE7,Q!$A$1:$G$1,FALSE),FALSE),"n.a.") -> 93.9 | BK7: =_xlfn.IFNA(VLOOKUP("Közüzemi ivóvízvezeték-hálózatba bekapcsolt lakások aránya (százalék)",Q!$A$1:$G$132,MATCH($BE7,Q!$A$1:$G$1,FALSE),FALSE),"n.a.") -> 100 | BM7: 2021 | BN7: 1016 | BO7: n.a. | BP7: n.a. | BQ7: n.a. | BR7: n.a. | BS7: n.a. | BT7: n.a. | BV7: 2021 | BW7: 27 | BX7: =_xlfn.IFNA(VLOOKUP("Egyéb önkormányzati támogatásban részesítettek"&"*",Q!$A$1:$G$134,MATCH($BV7,Q!$A$1:$G$1,FALSE),FALSE),"n.a.") -> 11 | BZ7: 2021 | CA7: =_xlfn.IFNA(VLOOKUP("Felnőttek és gyerekek részére szervezett háziorvosi szolgálatok (db)",Q!$A$1:$G$132,MATCH($BZ7,Q!$A$1:$G$1,FALSE),FALSE),"n.a.") -> 1 | CB7: =_xlfn.IFNA(VLOOKUP("Csak felnőttek részére szervezett háziorvosi szolgálatok (db)",Q!$A$1:$G$132,MATCH($BZ7,Q!$A$1:$G$1,FALSE),FALSE),"n.a.") -> 0 | CC7: =_xlfn.IFNA(VLOOKUP("Házi gyermekorvosok által ellátott szolgálatok (db)",Q!$A$1:$G$132,MATCH($BZ7,Q!$A$1:$G$1,FALSE),FALSE),"n.a.") -> 0 | CD7: =_xlfn.IFNA(VLOOKUP("Gyógyszertárak és fiókgyógyszertárak (db)",Q!$A$1:$G$132,MATCH($BZ7,Q!$A$1:$G$1,FALSE),FALSE),"n.a.") -> 1 | CE7: =_xlfn.IFNA(VLOOKUP("Közgyógyellátási igazolvánnyal rendelkezők (alanyi és normatív alapon kiadott) (fő)",Q!$A$1:$G$132,MATCH($BZ7,Q!$A$1:$G$1,FALSE),FALSE),"n.a.") -> 22 | CF7: =_xlfn.IFNA(VLOOKUP("Alanyi jogon megállapított ápolási díjban részesítettek havi átlagos létszáma (fő)",Q!$A$1:$G$132,MATCH($BZ7,Q!$A$1:$G$1,FALSE),FALSE),"n.a.") -> 3.33 | CH7: 2022 | CI7: n.a.
A8: =Q!$J$1-1 -> 2022 | B8: =_xlfn.IFNA(VLOOKUP("SZJA adófizető, 100 lakosra (fő)",Q!$A$1:$G$132,MATCH($A8,Q!$A$1:$G$1,FALSE),FALSE),"n.a.") -> 42.6 | C8: =_xlfn.IFNA(VLOOKUP("SZJA adófizetők aránya évi 1 millió Ft alatti jövedelmi sávban (százalék)",Q!$A$1:$G$132,MATCH($A8,Q!$A$1:$G$1,FALSE),FALSE),"n.a.") -> 28.06 | E8: 2022 | F8: =_xlfn.IFNA(VLOOKUP("Nyilvántartott álláskereső férfi, 100 15-64 éves férfira (fő)",Q!$A$1:$G$132,MATCH($E8,Q!$A$1:$G$1,FALSE),FALSE),"n.a.") -> 1.03 | G8: =_xlfn.IFNA(VLOOKUP("Nyilvántartott álláskereső nő, 100 15-64 éves nőre (fő)",Q!$A$1:$G$132,MATCH($E8,Q!$A$1:$G$1,FALSE),FALSE),"n.a.") -> 1 | H8: 0.01015 | J8: 26-30 év (TS 039) | K8: Fő | L8: =_xlfn.IFNA(VLOOKUP("Nyilvántartott álláskeresők: 26-30 éves (fő)",Q!$A$1:$G$132,MATCH(L$2,Q!$A$1:$G$1,FALSE),FALSE),"n.a.") -> 2 | M8: =_xlfn.IFNA(VLOOKUP("Nyilvántartott álláskeresők: 26-30 éves (fő)",Q!$A$1:$G$132,MATCH(M$2,Q!$A$1:$G$1,FALSE),FALSE),"n.a.") -> 1 | N8: =_xlfn.IFNA(VLOOKUP("Nyilvántartott álláskeresők: 26-30 éves (fő)",Q!$A$1:$G$132,MATCH(N$2,Q!$A$1:$G$1,FALSE),FALSE),"n.a.") -> 1 | O8: =_xlfn.IFNA(VLOOKUP("Nyilvántartott álláskeresők: 26-30 éves (fő)",Q!$A$1:$G$132,MATCH(O$2,Q!$A$1:$G$1,FALSE),FALSE),"n.a.") -> 1 | P8: =_xlfn.IFNA(VLOOKUP("Nyilvántartott álláskeresők: 26-30 éves (fő)",Q!$A$1:$G$132,MATCH(P$2,Q!$A$1:$G$1,FALSE),FALSE),"n.a.") -> 0 | Q8: =_xlfn.IFNA(VLOOKUP("Nyilvántartott álláskeresők: 26-30 éves (fő)",Q!$A$1:$G$132,MATCH(Q$2,Q!$A$1:$G$1,FALSE),FALSE),"n.a.") -> 3 | S8: 2021 | T8: =_xlfn.IFNA(VLOOKUP("180 napnál hosszabb ideje nyilvántartott álláskeresők aránya (százalék)",Q!$A$1:$G$132,MATCH($S8,Q!$A$1:$G$1,FALSE),FALSE),"n.a.") -> 30.77 | U8: =_xlfn.IFNA(VLOOKUP("Nők aránya a 180 napon túli nyilvántartott álláskeresőkön belül (százalék)",Q!$A$1:$G$132,MATCH($S8,Q!$A$1:$G$1,FALSE),FALSE),"n.a.") -> 75 | W8: 2021 | X8: =$O$3 -> 13 | Y8: =_xlfn.IFNA(VLOOKUP("Általános iskola 8 osztályánál kevesebb végzettséggel rendelkező nyilvántartott álláskeresők (fő)",Q!$A$1:$G$132,MATCH($W8,Q!$A$1:$G$1,FALSE),FALSE),"n.a.") -> 0 | Z8: 0 | AA8: =_xlfn.IFNA(VLOOKUP("Általános iskolai végzettségű nyilvántartott álláskeresők (fő)",Q!$A$1:$G$132,MATCH($W8,Q!$A$1:$G$1,FALSE),FALSE),"n.a.") -> 2 | AB8: 0.1538461538 | AC8: 11 | AD8: 0.8461538462 | AF8: 2022 | AG8: =_xlfn.IFNA(VLOOKUP("Aktív foglalkoztatáspolitikai eszközzel támogatottak (fő)",Q!$A$1:$G$132,MATCH($AF8,Q!$A$1:$G$1,FALSE),FALSE),"n.a.") -> 1 | AH8: =_xlfn.IFNA(VLOOKUP("Közfoglalkoztatásban részt vevő (havi adatok éves átlaga) (fő)",Q!$A$1:$G$132,MATCH($AF8,Q!$A$1:$G$1,FALSE),FALSE),"n.a.") -> 0 | AJ8: 2022 | AK8: =_xlfn.IFNA(VLOOKUP("Nyilvántartott álláskeresők összesen (fő)",Q!$A$1:$G$132,MATCH($AJ8,Q!$A$1:$G$1,FALSE),FALSE),"n.a.") -> 18 | AL8: =_xlfn.IFNA(VLOOKUP("Nyilvántartott pályakezdő álláskeresők (fő)",Q!$A$1:$G$132,MATCH($AJ8,Q!$A$1:$G$1,FALSE),FALSE),"n.a.") -> 0 | AN8: 2022 | AO8: 18 | AP8: =IF(ISERR((AO8/('Település Bemutatása - Népesség'!B7-'Település Bemutatása - Népesség'!O7-'Település Bemutatása - Népesség'!P7))*1),"-",(AO8/('Település Bemutatása - Népesség'!B7-'Település Bemutatása - Népesség'!O7-'Település Bemutatása - Népesség'!P7))*1) -> 0.01027984009 | AQ8: =_xlfn.IFNA(VLOOKUP("Álláskeresési ellátásban részesülő nyilvántartott álláskeresők (fő)",Q!$A$1:$G$132,MATCH($AN8,Q!$A$1:$G$1,FALSE),FALSE),"n.a.") -> 14 | AR8: 0.7777777778 | AT8: 2022 | AU8: =_xlfn.IFNA(VLOOKUP("Szociális támogatásban részesülő nyilvántartott álláskeresők (fő)",Q!$A$1:$G$132,MATCH($AT8,Q!$A$1:$G$1,FALSE),FALSE),"n.a.") -> 0 | AV8: 0 | AW8: =_xlfn.IFNA(VLOOKUP("Foglalkoztatást helyettesítő támogatásban részesítettek havi átlagos létszáma (fő)",Q!$A$1:$G$132,MATCH($AT8,Q!$A$1:$G$1,FALSE),FALSE),"n.a.") -> 0 | AX8: 0 | AY8: =_xlfn.IFNA(VLOOKUP("Ellátásban részesülő nyilvántartott álláskeresők (fő)",Q!$A$1:$G$132,MATCH($AT8,Q!$A$1:$G$1,FALSE),FALSE),"n.a.") -> 14 | AZ8: 0.7777777778 | BB8: 2022 | BC8: =_xlfn.IFNA(VLOOKUP("Egészségkárosodási és gyermekfelügyeleti támogatásban részesítettek havi átlagos létszáma (fő)",Q!$A$1:$G$132,MATCH($AT8,Q!$A$1:$G$1,FALSE),FALSE),"n.a.") -> 2 | BE8: 2022 | BF8: =_xlfn.IFNA(VLOOKUP("Lakásállomány (db)",Q!$A$1:$G$132,MATCH($BE8,Q!$A$1:$G$1,FALSE),FALSE),"n.a.") -> 1027 | BG8: =_xlfn.IFNA(VLOOKUP("Épített lakások (üdülők nélkül) (db)",Q!$A$1:$G$132,MATCH($BE8,Q!$A$1:$G$1,FALSE),FALSE),"n.a.") -> 21 | BH8: =_xlfn.IFNA(VLOOKUP("Az év folyamán épített lakás, 1000 lakásra (db)",Q!$A$1:$G$132,MATCH($BE8,Q!$A$1:$G$1,FALSE),FALSE),"n.a.") -> 20.45 | BI8: =_xlfn.IFNA(VLOOKUP("Egy és két szobás lakások aránya (százalék)",Q!$A$1:$G$132,MATCH($BE8,Q!$A$1:$G$1,FALSE),FALSE),"n.a.") -> 20.55 | BJ8: =_xlfn.IFNA(VLOOKUP("Közcsatornahálózatba bekapcsolt lakások aránya (százalék)",Q!$A$1:$G$132,MATCH($BE8,Q!$A$1:$G$1,FALSE),FALSE),"n.a.") -> 95.33 | BK8: =_xlfn.IFNA(VLOOKUP("Közüzemi ivóvízvezeték-hálózatba bekapcsolt lakások aránya (százalék)",Q!$A$1:$G$132,MATCH($BE8,Q!$A$1:$G$1,FALSE),FALSE),"n.a.") -> 100 | BM8: 2022 | BN8: 1027 | BO8: n.a. | BP8: n.a. | BQ8: n.a. | BR8: n.a. | BS8: n.a. | BT8: n.a. | BV8: 2022 | BW8: 29 | BX8: =_xlfn.IFNA(VLOOKUP("Egyéb önkormányzati támogatásban részesítettek"&"*",Q!$A$1:$G$134,MATCH($BV8,Q!$A$1:$G$1,FALSE),FALSE),"n.a.") -> 10 | BZ8: 2022 | CA8: =_xlfn.IFNA(VLOOKUP("Felnőttek és gyerekek részére szervezett háziorvosi szolgálatok (db)",Q!$A$1:$G$132,MATCH($BZ8,Q!$A$1:$G$1,FALSE),FALSE),"n.a.") -> 1 | CB8: =_xlfn.IFNA(VLOOKUP("Csak felnőttek részére szervezett háziorvosi szolgálatok (db)",Q!$A$1:$G$132,MATCH($BZ8,Q!$A$1:$G$1,FALSE),FALSE),"n.a.") -> 0 | CC8: =_xlfn.IFNA(VLOOKUP("Házi gyermekorvosok által ellátott szolgálatok (db)",Q!$A$1:$G$132,MATCH($BZ8,Q!$A$1:$G$1,FALSE),FALSE),"n.a.") -> 0 | CD8: =_xlfn.IFNA(VLOOKUP("Gyógyszertárak és fiókgyógyszertárak (db)",Q!$A$1:$G$132,MATCH($BZ8,Q!$A$1:$G$1,FALSE),FALSE),"n.a.") -> 1 | CE8: =_xlfn.IFNA(VLOOKUP("Közgyógyellátási igazolvánnyal rendelkezők (alanyi és normatív alapon kiadott) (fő)",Q!$A$1:$G$132,MATCH($BZ8,Q!$A$1:$G$1,FALSE),FALSE),"n.a.") -> 24 | CF8: =_xlfn.IFNA(VLOOKUP("Alanyi jogon megállapított ápolási díjban részesítettek havi átlagos létszáma (fő)",Q!$A$1:$G$132,MATCH($BZ8,Q!$A$1:$G$1,FALSE),FALSE),"n.a.") -> 2.93 | CH8: 2023 | CI8: n.a.
A9: =Q!$J$1 -> 2023 | B9: =_xlfn.IFNA(VLOOKUP("SZJA adófizető, 100 lakosra (fő)",Q!$A$1:$G$132,MATCH($A9,Q!$A$1:$G$1,FALSE),FALSE),"n.a.") -> 42.35 | C9: =_xlfn.IFNA(VLOOKUP("SZJA adófizetők aránya évi 1 millió Ft alatti jövedelmi sávban (százalék)",Q!$A$1:$G$132,MATCH($A9,Q!$A$1:$G$1,FALSE),FALSE),"n.a.") -> 26.13 | E9: 2023 | F9: =_xlfn.IFNA(VLOOKUP("Nyilvántartott álláskereső férfi, 100 15-64 éves férfira (fő)",Q!$A$1:$G$132,MATCH($E9,Q!$A$1:$G$1,FALSE),FALSE),"n.a.") -> 1.47 | G9: =_xlfn.IFNA(VLOOKUP("Nyilvántartott álláskereső nő, 100 15-64 éves nőre (fő)",Q!$A$1:$G$132,MATCH($E9,Q!$A$1:$G$1,FALSE),FALSE),"n.a.") -> 1.41 | H9: 0.0144 | K9: % | L9: =IF(ISERR((L8/L$3)),"-",(L8/L$3)) -> 0.1176470588 | M9: 0.05555555556 | N9: 0.03846153846 | O9: 0.07692307692 | P9: 0 | Q9: 0.1153846154 | S9: 2022 | T9: =_xlfn.IFNA(VLOOKUP("180 napnál hosszabb ideje nyilvántartott álláskeresők aránya (százalék)",Q!$A$1:$G$132,MATCH($S9,Q!$A$1:$G$1,FALSE),FALSE),"n.a.") -> 22.22 | U9: =_xlfn.IFNA(VLOOKUP("Nők aránya a 180 napon túli nyilvántartott álláskeresőkön belül (százalék)",Q!$A$1:$G$132,MATCH($S9,Q!$A$1:$G$1,FALSE),FALSE),"n.a.") -> 75 | W9: 2022 | X9: =$P$3 -> 18 | Y9: =_xlfn.IFNA(VLOOKUP("Általános iskola 8 osztályánál kevesebb végzettséggel rendelkező nyilvántartott álláskeresők (fő)",Q!$A$1:$G$132,MATCH($W9,Q!$A$1:$G$1,FALSE),FALSE),"n.a.") -> 0 | Z9: 0 | AA9: =_xlfn.IFNA(VLOOKUP("Általános iskolai végzettségű nyilvántartott álláskeresők (fő)",Q!$A$1:$G$132,MATCH($W9,Q!$A$1:$G$1,FALSE),FALSE),"n.a.") -> 1 | AB9: 0.05555555556 | AC9: 17 | AD9: 0.9444444444 | AF9: 2023 | AG9: =_xlfn.IFNA(VLOOKUP("Aktív foglalkoztatáspolitikai eszközzel támogatottak (fő)",Q!$A$1:$G$132,MATCH($AF9,Q!$A$1:$G$1,FALSE),FALSE),"n.a.") -> 0 | AH9: =_xlfn.IFNA(VLOOKUP("Közfoglalkoztatásban részt vevő (havi adatok éves átlaga) (fő)",Q!$A$1:$G$132,MATCH($AF9,Q!$A$1:$G$1,FALSE),FALSE),"n.a.") -> 0 | AJ9: 2023 | AK9: =_xlfn.IFNA(VLOOKUP("Nyilvántartott álláskeresők összesen (fő)",Q!$A$1:$G$132,MATCH($AJ9,Q!$A$1:$G$1,FALSE),FALSE),"n.a.") -> 26 | AL9: =_xlfn.IFNA(VLOOKUP("Nyilvántartott pályakezdő álláskeresők (fő)",Q!$A$1:$G$132,MATCH($AJ9,Q!$A$1:$G$1,FALSE),FALSE),"n.a.") -> 0 | AN9: 2023 | AO9: 26 | AP9: =IF(ISERR((AO9/('Település Bemutatása - Népesség'!B8-'Település Bemutatása - Népesség'!O8-'Település Bemutatása - Népesség'!P8))*1),"-",(AO9/('Település Bemutatása - Népesség'!B8-'Település Bemutatása - Népesség'!O8-'Település Bemutatása - Népesség'!P8))*1) -> 0.01439645626 | AQ9: =_xlfn.IFNA(VLOOKUP("Álláskeresési ellátásban részesülő nyilvántartott álláskeresők (fő)",Q!$A$1:$G$132,MATCH($AN9,Q!$A$1:$G$1,FALSE),FALSE),"n.a.") -> 21 | AR9: 0.8076923077 | AT9: 2023 | AU9: =_xlfn.IFNA(VLOOKUP("Szociális támogatásban részesülő nyilvántartott álláskeresők (fő)",Q!$A$1:$G$132,MATCH($AT9,Q!$A$1:$G$1,FALSE),FALSE),"n.a.") -> 0 | AV9: 0 | AW9: =_xlfn.IFNA(VLOOKUP("Foglalkoztatást helyettesítő támogatásban részesítettek havi átlagos létszáma (fő)",Q!$A$1:$G$132,MATCH($AT9,Q!$A$1:$G$1,FALSE),FALSE),"n.a.") -> 0 | AX9: 0 | AY9: =_xlfn.IFNA(VLOOKUP("Ellátásban részesülő nyilvántartott álláskeresők (fő)",Q!$A$1:$G$132,MATCH($AT9,Q!$A$1:$G$1,FALSE),FALSE),"n.a.") -> 21 | AZ9: 0.8076923077 | BB9: 2023 | BC9: =_xlfn.IFNA(VLOOKUP("Egészségkárosodási és gyermekfelügyeleti támogatásban részesítettek havi átlagos létszáma (fő)",Q!$A$1:$G$132,MATCH($AT9,Q!$A$1:$G$1,FALSE),FALSE),"n.a.") -> 2.39 | BE9: 2023 | BF9: =_xlfn.IFNA(VLOOKUP("Lakásállomány (db)",Q!$A$1:$G$132,MATCH($BE9,Q!$A$1:$G$1,FALSE),FALSE),"n.a.") -> 1067 | BG9: =_xlfn.IFNA(VLOOKUP("Épített lakások (üdülők nélkül) (db)",Q!$A$1:$G$132,MATCH($BE9,Q!$A$1:$G$1,FALSE),FALSE),"n.a.") -> 40 | BH9: =_xlfn.IFNA(VLOOKUP("Az év folyamán épített lakás, 1000 lakásra (db)",Q!$A$1:$G$132,MATCH($BE9,Q!$A$1:$G$1,FALSE),FALSE),"n.a.") -> 37.49 | BI9: =_xlfn.IFNA(VLOOKUP("Egy és két szobás lakások aránya (százalék)",Q!$A$1:$G$132,MATCH($BE9,Q!$A$1:$G$1,FALSE),FALSE),"n.a.") -> 19.87 | BJ9: =_xlfn.IFNA(VLOOKUP("Közcsatornahálózatba bekapcsolt lakások aránya (százalék)",Q!$A$1:$G$132,MATCH($BE9,Q!$A$1:$G$1,FALSE),FALSE),"n.a.") -> 95.22 | BK9: =_xlfn.IFNA(VLOOKUP("Közüzemi ivóvízvezeték-hálózatba bekapcsolt lakások aránya (százalék)",Q!$A$1:$G$132,MATCH($BE9,Q!$A$1:$G$1,FALSE),FALSE),"n.a.") -> 100 | BM9: 2023 | BN9: 1067 | BO9: n.a. | BP9: n.a. | BQ9: n.a. | BR9: n.a. | BS9: n.a. | BT9: n.a. | BV9: 2023 | BW9: 48 | BX9: =_xlfn.IFNA(VLOOKUP("Egyéb önkormányzati támogatásban részesítettek"&"*",Q!$A$1:$G$134,MATCH($BV9,Q!$A$1:$G$1,FALSE),FALSE),"n.a.") -> 11 | BZ9: 2023 | CA9: =_xlfn.IFNA(VLOOKUP("Felnőttek és gyerekek részére szervezett háziorvosi szolgálatok (db)",Q!$A$1:$G$132,MATCH($BZ9,Q!$A$1:$G$1,FALSE),FALSE),"n.a.") -> 1 | CB9: =_xlfn.IFNA(VLOOKUP("Csak felnőttek részére szervezett háziorvosi szolgálatok (db)",Q!$A$1:$G$132,MATCH($BZ9,Q!$A$1:$G$1,FALSE),FALSE),"n.a.") -> 0 | CC9: =_xlfn.IFNA(VLOOKUP("Házi gyermekorvosok által ellátott szolgálatok (db)",Q!$A$1:$G$132,MATCH($BZ9,Q!$A$1:$G$1,FALSE),FALSE),"n.a.") -> 0 | CD9: =_xlfn.IFNA(VLOOKUP("Gyógyszertárak és fiókgyógyszertárak (db)",Q!$A$1:$G$132,MATCH($BZ9,Q!$A$1:$G$1,FALSE),FALSE),"n.a.") -> 1 | CE9: =_xlfn.IFNA(VLOOKUP("Közgyógyellátási igazolvánnyal rendelkezők (alanyi és normatív alapon kiadott) (fő)",Q!$A$1:$G$132,MATCH($BZ9,Q!$A$1:$G$1,FALSE),FALSE),"n.a.") -> 27 | CF9: =_xlfn.IFNA(VLOOKUP("Alanyi jogon megállapított ápolási díjban részesítettek havi átlagos létszáma (fő)",Q!$A$1:$G$132,MATCH($BZ9,Q!$A$1:$G$1,FALSE),FALSE),"n.a.") -> 3.48 | CH9: Forrás: Önkormányzati adat
A10: Forrás: TeIR, KSH Tstar | E10: Forrás: TeIR, Nemzeti Munkaügyi Hivatal | J10: 31-35 év (TS 040) | K10: Fő | L10: =_xlfn.IFNA(VLOOKUP("Nyilvántartott álláskeresők: 31-35 éves (fő)",Q!$A$1:$G$132,MATCH(L$2,Q!$A$1:$G$1,FALSE),FALSE),"n.a.") -> 2 | M10: =_xlfn.IFNA(VLOOKUP("Nyilvántartott álláskeresők: 31-35 éves (fő)",Q!$A$1:$G$132,MATCH(M$2,Q!$A$1:$G$1,FALSE),FALSE),"n.a.") -> 0 | N10: =_xlfn.IFNA(VLOOKUP("Nyilvántartott álláskeresők: 31-35 éves (fő)",Q!$A$1:$G$132,MATCH(N$2,Q!$A$1:$G$1,FALSE),FALSE),"n.a.") -> 6 | O10: =_xlfn.IFNA(VLOOKUP("Nyilvántartott álláskeresők: 31-35 éves (fő)",Q!$A$1:$G$132,MATCH(O$2,Q!$A$1:$G$1,FALSE),FALSE),"n.a.") -> 0 | P10: =_xlfn.IFNA(VLOOKUP("Nyilvántartott álláskeresők: 31-35 éves (fő)",Q!$A$1:$G$132,MATCH(P$2,Q!$A$1:$G$1,FALSE),FALSE),"n.a.") -> 2 | Q10: =_xlfn.IFNA(VLOOKUP("Nyilvántartott álláskeresők: 31-35 éves (fő)",Q!$A$1:$G$132,MATCH(Q$2,Q!$A$1:$G$1,FALSE),FALSE),"n.a.") -> 1 | S10: 2023 | T10: =_xlfn.IFNA(VLOOKUP("180 napnál hosszabb ideje nyilvántartott álláskeresők aránya (százalék)",Q!$A$1:$G$132,MATCH($S10,Q!$A$1:$G$1,FALSE),FALSE),"n.a.") -> 19.23 | U10: =_xlfn.IFNA(VLOOKUP("Nők aránya a 180 napon túli nyilvántartott álláskeresőkön belül (százalék)",Q!$A$1:$G$132,MATCH($S10,Q!$A$1:$G$1,FALSE),FALSE),"n.a.") -> 20 | W10: 2023 | X10: =$Q$3 -> 26 | Y10: =_xlfn.IFNA(VLOOKUP("Általános iskola 8 osztályánál kevesebb végzettséggel rendelkező nyilvántartott álláskeresők (fő)",Q!$A$1:$G$132,MATCH($W10,Q!$A$1:$G$1,FALSE),FALSE),"n.a.") -> 0 | Z10: 0 | AA10: =_xlfn.IFNA(VLOOKUP("Általános iskolai végzettségű nyilvántartott álláskeresők (fő)",Q!$A$1:$G$132,MATCH($W10,Q!$A$1:$G$1,FALSE),FALSE),"n.a.") -> 3 | AB10: 0.1153846154 | AC10: 23 | AD10: 0.8846153846 | AF10: Forrás: TeIR, Nemzeti Munkaügyi Hivatal | AJ10: Forrás: TeIR, Nemzeti Munkaügyi Hivatal | AN10: Forrás: TeIR, Nemzeti Munkaügyi Hivatal | AT10: Forrás: TeIR, Nemzeti Munkaügyi Hivatal | BB10: Forrás: TeIR, KSH | BE10: Forrás: TeIR, KSH Tstar, önkormányzati adatok | BM10: Forrás: TeIR, KSH Tstar, önkormányzati adatok | BV10: Forrás: TeIR, KSH Tstar | BZ10: Forrás: TeIR, KSH Tstar
K11: % | L11: =IF(ISERR((L10/L$3)),"-",(L10/L$3)) -> 0.1176470588 | M11: 0 | N11: 0.2307692308 | O11: 0 | P11: 0.1111111111 | Q11: 0.03846153846 | S11: Forrás: TeIR, Nemzeti Munkaügyi Hivatal | W11: Forrás: TeIR, Nemzeti Munkaügyi Hivatal
J12: 36-40 év (TS 041) | K12: Fő | L12: =_xlfn.IFNA(VLOOKUP("Nyilvántartott álláskeresők: 36-40 éves (fő)",Q!$A$1:$G$132,MATCH(L$2,Q!$A$1:$G$1,FALSE),FALSE),"n.a.") -> 0 | M12: =_xlfn.IFNA(VLOOKUP("Nyilvántartott álláskeresők: 36-40 éves (fő)",Q!$A$1:$G$132,MATCH(M$2,Q!$A$1:$G$1,FALSE),FALSE),"n.a.") -> 0 | N12: =_xlfn.IFNA(VLOOKUP("Nyilvántartott álláskeresők: 36-40 éves (fő)",Q!$A$1:$G$132,MATCH(N$2,Q!$A$1:$G$1,FALSE),FALSE),"n.a.") -> 5 | O12: =_xlfn.IFNA(VLOOKUP("Nyilvántartott álláskeresők: 36-40 éves (fő)",Q!$A$1:$G$132,MATCH(O$2,Q!$A$1:$G$1,FALSE),FALSE),"n.a.") -> 2 | P12: =_xlfn.IFNA(VLOOKUP("Nyilvántartott álláskeresők: 36-40 éves (fő)",Q!$A$1:$G$132,MATCH(P$2,Q!$A$1:$G$1,FALSE),FALSE),"n.a.") -> 4 | Q12: =_xlfn.IFNA(VLOOKUP("Nyilvántartott álláskeresők: 36-40 éves (fő)",Q!$A$1:$G$132,MATCH(Q$2,Q!$A$1:$G$1,FALSE),FALSE),"n.a.") -> 5
K13: % | L13: =IF(ISERR((L12/L$3)),"-",(L12/L$3)) -> 0 | M13: 0 | N13: 0.1923076923 | O13: 0.1538461538 | P13: 0.2222222222 | Q13: 0.1923076923
J14: 41-45 év (TS 042) | K14: Fő | L14: =_xlfn.IFNA(VLOOKUP("Nyilvántartott álláskeresők: 41-45 éves (fő)",Q!$A$1:$G$132,MATCH(L$2,Q!$A$1:$G$1,FALSE),FALSE),"n.a.") -> 2 | M14: =_xlfn.IFNA(VLOOKUP("Nyilvántartott álláskeresők: 41-45 éves (fő)",Q!$A$1:$G$132,MATCH(M$2,Q!$A$1:$G$1,FALSE),FALSE),"n.a.") -> 2 | N14: =_xlfn.IFNA(VLOOKUP("Nyilvántartott álláskeresők: 41-45 éves (fő)",Q!$A$1:$G$132,MATCH(N$2,Q!$A$1:$G$1,FALSE),FALSE),"n.a.") -> 3 | O14: =_xlfn.IFNA(VLOOKUP("Nyilvántartott álláskeresők: 41-45 éves (fő)",Q!$A$1:$G$132,MATCH(O$2,Q!$A$1:$G$1,FALSE),FALSE),"n.a.") -> 1 | P14: =_xlfn.IFNA(VLOOKUP("Nyilvántartott álláskeresők: 41-45 éves (fő)",Q!$A$1:$G$132,MATCH(P$2,Q!$A$1:$G$1,FALSE),FALSE),"n.a.") -> 2 | Q14: =_xlfn.IFNA(VLOOKUP("Nyilvántartott álláskeresők: 41-45 éves (fő)",Q!$A$1:$G$132,MATCH(Q$2,Q!$A$1:$G$1,FALSE),FALSE),"n.a.") -> 5
K15: % | L15: =IF(ISERR((L14/L$3)),"-",(L14/L$3)) -> 0.1176470588 | M15: 0.1111111111 | N15: 0.1153846154 | O15: 0.07692307692 | P15: 0.1111111111 | Q15: 0.1923076923
J16: 46-50 év (TS 043) | K16: Fő | L16: =_xlfn.IFNA(VLOOKUP("Nyilvántartott álláskeresők: 46-50 éves (fő)",Q!$A$1:$G$132,MATCH(L$2,Q!$A$1:$G$1,FALSE),FALSE),"n.a.") -> 0 | M16: =_xlfn.IFNA(VLOOKUP("Nyilvántartott álláskeresők: 46-50 éves (fő)",Q!$A$1:$G$132,MATCH(M$2,Q!$A$1:$G$1,FALSE),FALSE),"n.a.") -> 1 | N16: =_xlfn.IFNA(VLOOKUP("Nyilvántartott álláskeresők: 46-50 éves (fő)",Q!$A$1:$G$132,MATCH(N$2,Q!$A$1:$G$1,FALSE),FALSE),"n.a.") -> 1 | O16: =_xlfn.IFNA(VLOOKUP("Nyilvántartott álláskeresők: 46-50 éves (fő)",Q!$A$1:$G$132,MATCH(O$2,Q!$A$1:$G$1,FALSE),FALSE),"n.a.") -> 1 | P16: =_xlfn.IFNA(VLOOKUP("Nyilvántartott álláskeresők: 46-50 éves (fő)",Q!$A$1:$G$132,MATCH(P$2,Q!$A$1:$G$1,FALSE),FALSE),"n.a.") -> 1 | Q16: =_xlfn.IFNA(VLOOKUP("Nyilvántartott álláskeresők: 46-50 éves (fő)",Q!$A$1:$G$132,MATCH(Q$2,Q!$A$1:$G$1,FALSE),FALSE),"n.a.") -> 2
K17: % | L17: =IF(ISERR((L16/L$3)),"-",(L16/L$3)) -> 0 | M17: 0.05555555556 | N17: 0.03846153846 | O17: 0.07692307692 | P17: 0.05555555556 | Q17: 0.07692307692
J18: 51-55 év (TS 044) | K18: Fő | L18: =_xlfn.IFNA(VLOOKUP("Nyilvántartott álláskeresők: 51-55 éves (fő)",Q!$A$1:$G$132,MATCH(L$2,Q!$A$1:$G$1,FALSE),FALSE),"n.a.") -> 1 | M18: =_xlfn.IFNA(VLOOKUP("Nyilvántartott álláskeresők: 51-55 éves (fő)",Q!$A$1:$G$132,MATCH(M$2,Q!$A$1:$G$1,FALSE),FALSE),"n.a.") -> 2 | N18: =_xlfn.IFNA(VLOOKUP("Nyilvántartott álláskeresők: 51-55 éves (fő)",Q!$A$1:$G$132,MATCH(N$2,Q!$A$1:$G$1,FALSE),FALSE),"n.a.") -> 2 | O18: =_xlfn.IFNA(VLOOKUP("Nyilvántartott álláskeresők: 51-55 éves (fő)",Q!$A$1:$G$132,MATCH(O$2,Q!$A$1:$G$1,FALSE),FALSE),"n.a.") -> 2 | P18: =_xlfn.IFNA(VLOOKUP("Nyilvántartott álláskeresők: 51-55 éves (fő)",Q!$A$1:$G$132,MATCH(P$2,Q!$A$1:$G$1,FALSE),FALSE),"n.a.") -> 1 | Q18: =_xlfn.IFNA(VLOOKUP("Nyilvántartott álláskeresők: 51-55 éves (fő)",Q!$A$1:$G$132,MATCH(Q$2,Q!$A$1:$G$1,FALSE),FALSE),"n.a.") -> 3
K19: % | L19: =IF(ISERR((L18/L$3)),"-",(L18/L$3)) -> 0.05882352941 | M19: 0.1111111111 | N19: 0.07692307692 | O19: 0.1538461538 | P19: 0.05555555556 | Q19: 0.1153846154
J20: 56-60 év (TS 045) | K20: Fő | L20: =_xlfn.IFNA(VLOOKUP("Nyilvántartott álláskeresők: 56-60 éves (fő)",Q!$A$1:$G$132,MATCH(L$2,Q!$A$1:$G$1,FALSE),FALSE),"n.a.") -> 1 | M20: =_xlfn.IFNA(VLOOKUP("Nyilvántartott álláskeresők: 56-60 éves (fő)",Q!$A$1:$G$132,MATCH(M$2,Q!$A$1:$G$1,FALSE),FALSE),"n.a.") -> 2 | N20: =_xlfn.IFNA(VLOOKUP("Nyilvántartott álláskeresők: 56-60 éves (fő)",Q!$A$1:$G$132,MATCH(N$2,Q!$A$1:$G$1,FALSE),FALSE),"n.a.") -> 1 | O20: =_xlfn.IFNA(VLOOKUP("Nyilvántartott álláskeresők: 56-60 éves (fő)",Q!$A$1:$G$132,MATCH(O$2,Q!$A$1:$G$1,FALSE),FALSE),"n.a.") -> 0 | P20: =_xlfn.IFNA(VLOOKUP("Nyilvántartott álláskeresők: 56-60 éves (fő)",Q!$A$1:$G$132,MATCH(P$2,Q!$A$1:$G$1,FALSE),FALSE),"n.a.") -> 1 | Q20: =_xlfn.IFNA(VLOOKUP("Nyilvántartott álláskeresők: 56-60 éves (fő)",Q!$A$1:$G$132,MATCH(Q$2,Q!$A$1:$G$1,FALSE),FALSE),"n.a.") -> 0
K21: % | L21: =IF(ISERR((L20/L$3)),"-",(L20/L$3)) -> 0.05882352941 | M21: 0.1111111111 | N21: 0.03846153846 | O21: 0 | P21: 0.05555555556 | Q21: 0
J22: 61 éves, vagy afeletti (TS 046) | K22: Fő | L22: =_xlfn.IFNA(VLOOKUP("Nyilvántartott álláskeresők: 61-X éves (fő)",Q!$A$1:$G$132,MATCH(L$2,Q!$A$1:$G$1,FALSE),FALSE),"n.a.") -> 6 | M22: =_xlfn.IFNA(VLOOKUP("Nyilvántartott álláskeresők: 61-X éves (fő)",Q!$A$1:$G$132,MATCH(M$2,Q!$A$1:$G$1,FALSE),FALSE),"n.a.") -> 5 | N22: =_xlfn.IFNA(VLOOKUP("Nyilvántartott álláskeresők: 61-X éves (fő)",Q!$A$1:$G$132,MATCH(N$2,Q!$A$1:$G$1,FALSE),FALSE),"n.a.") -> 6 | O22: =_xlfn.IFNA(VLOOKUP("Nyilvántartott álláskeresők: 61-X éves (fő)",Q!$A$1:$G$132,MATCH(O$2,Q!$A$1:$G$1,FALSE),FALSE),"n.a.") -> 5 | P22: =_xlfn.IFNA(VLOOKUP("Nyilvántartott álláskeresők: 61-X éves (fő)",Q!$A$1:$G$132,MATCH(P$2,Q!$A$1:$G$1,FALSE),FALSE),"n.a.") -> 6 | Q22: =_xlfn.IFNA(VLOOKUP("Nyilvántartott álláskeresők: 61-X éves (fő)",Q!$A$1:$G$132,MATCH(Q$2,Q!$A$1:$G$1,FALSE),FALSE),"n.a.") -> 6
K23: % | L23: =IF(ISERR((L22/L$3)),"-",(L22/L$3)) -> 0.3529411765 | M23: 0.2777777778 | N23: 0.2307692308 | O23: 0.3846153846 | P23: 0.3333333333 | Q23: 0.2307692308
J24: Forrás: TeIR, Nemzeti Munkaügyi Hivatal

Sheet 4. Gyermekek
B1: 4.1. számú táblázat - Gyermekkorú népesség összetétele nemek és korcsoportok szerint (2.számú táblázatból) | I1: 4.1.1. számú táblázat - Védelembe vett és veszélyeztetett kiskorú gyermekek | M1: 4.1.2. számú táblázat - Rendszeres gyermekvédelmi kedvezményben részesítettek | P1: 4.1.3. számú táblázat - Árvaellátás | U1: 4.1.4. számú táblázat – Kedvezményes óvodai - iskolai juttatásokban részesülők száma (A táblázat kitöltése és elemzése opcionális.) | AC1: 4.3.1. számú táblázat – Védőnői álláshelyek száma | AH1: 4.3.2. számú táblázat – Gyermekorvosi ellátás | AO1: 4.3.3. a.) számú táblázat - Bölcsődék és bölcsődébe beíratott gyermekek száma | AS1: 4.3.3. b.) számú táblázat - Bölcsődék és bölcsődébe beíratott gyermekek száma | BC1: 4.4. a) 1.számú táblázat - Hátrányos és halmozottan hátrányos helyzetű óvodás gyermekek | BH1: 4.4. a) 2. számú táblázat - Hátrányos és halmozottan hátrányos helyzetű általános iskolai tanulók | BM1: 4.4. a) 3. számú táblázat - Hátrányos és halmozottan hátrányos helyzet a középszintű oktatásban | BU1: 4.4. a) 4. számú táblázat - Hátrányos és halmozottan hátrányos helyzet | BY1: 4.4.1. számú táblázat - Óvodai nevelés adatai (A táblázat kitöltése és elemzése opcionális.) | CC1: 4.4.2. számú táblázat - Óvodai nevelés adatai | CN1: 4.4.4. számú táblázat - Általános iskolák adatai: osztályok, gyógypedagógiai osztályok, feladatellátási helyek | CU1: 4.4.5. számú táblázat - A 8. évfolyamot eredményesen befejeők a nappali oktatásban | CY1: 4.4.6. számú táblázat - Gyermekjóléti, hátránykompenzáló szolgáltatások
B2: Korcsoport | C2: Fő | F2: Az állandó népességből a megfelelő korcsoportú nők és férfiak aránya (%) | I2: Év | J2: Védelembe vett kiskorú gyermekek száma (TS 116) | K2: Veszélyeztetett kiskorú gyermekek száma (TS 115) | M2: Év | N2: Rendszeres gyermekvédelmi kedvezményben részesítettek évi átlagos száma (TS 111) | P2: Év | Q2: Árvaellátásban részesülő férfiak száma (fő) (TS 065) | R2: Árvaellátásban részesülő nők száma (fő) (TS 066) | S2: Árvaellátásban részesülők összesen | U2: Év | V2: Ingyenes étkezésben résztvevők száma óvoda | W2: Ingyenes étkezésben résztvevők száma iskola 1-8. évfolyam | X2: 50 százalékos mértékű kedvezményes étkezésre jogosultak száma 1-13. évfolyam | Y2: Ingyenes tankönyv-ellátásban részesülők száma | Z2: Óvodáztatási támogatásban részesülők száma | AA2: Nyári étkeztetésben részesülők száma | AC2: Év | AD2: Betöltött védőnői álláshelyek száma (TS 109) | AE2: 0-3 év közötti gyermekek száma | AF2: Átlagos gyermekszám védőnőnként | AH2: Év | AI2: Felnőttek és gyermekek részére szervezett háziorvosi szolgálatok száma (TS 107) | AJ2: Csak felnőttek részére szervezett háziorvosi szolgáltatások száma (TS 106) | AK2: A házi gyermekorvosok által ellátott szolgálatok száma (TS 108) | AL2: Gyermekorvos által ellátott gyerekek száma | AM2: Felnőtt házi orvos által ellátott gyerekek száma | AO2: Év | AP2: Működő, önkormányzati bölcsődei férőhelyek száma | AQ2: Önkormányzati bölcsődébe beírt gyerekek száma | AS2: Év | AT2: Működő munkahelyi bölcsődei férőhelyek száma (TS 126) | AU2: Munkahelyi bölcsődébe beírt gyerekek száma (TS 122) | AV2: Működő családi bölcsödei férőhelyek száma (TS 125) | AW2: Családi bölcsődébe beírt gyerekek száma (TS 121) | AX2: Működő mini bölcsődei férőhelyek száma (TS 127) | AY2: Mini bölcsődébe beírt gyerekek száma (TS 123) | AZ2: Működő (összes) bölcsődei férőhelyek száma (TS 124) | BA2: Bölcsődébe (összes) beírt gyermekek száma (TS 120) | BC2: Év | BD2: Óvodába beírt gyermekek száma (gyógypedagógiai neveléssel együtt) (TS 087) | BE2: Hátrányos és halmozottan hátrányos helyzetű óvodás gyermekek száma (gyógypedagógiai neveléssel együtt) (TS 092) | BF2: Hátrányos és halmozottan hátrányos helyzetű óvodás gyermekek aránya az óvodás gyermekeken belül (TS 093) | BH2: Év | BI2: Általános iskolai tanulók száma a nappali oktatásban | BJ2: Hátrányos és halmozottan hátrányos helyzetű általános iskolai tanulók száma (gyógypedagógiai oktatással együtt) (TS 094) | BK2: Hátrányos és halmozottan hátrányos helyzetű tanulók aránya az általános iskolai tanulókon belül (TS 095) | BM2: Év | BN2: Hátrányos és halmozottan hátrányos helyzetű gimnáziumi tanulók száma (TS 096) | BO2: Hátrányos és halmozottan hátrányos helyzetű tanulók aránya a gimnáziumi tanulókon belül (TS 097) | BP2: Hátrányos és halmozottan hátrányos helyzetű szakközépiskolai tanulók és hátrányos helyzetű szakiskolai és készségfejlesztő iskolai tanulók száma a nappali oktatásban (TS 098) | BQ2: Hátrányos és halmozottan hátrányos helyzetű szakközépiskolai tanulók és hátrányos helyzetű szakiskolai és készségfejlesztő iskolai tanulók aránya a tanulók számához viszonyítva (TS 099) | BR2: Hátrányos és halmozottan hátrányos helyzetű szakgimnáziumi tanulók száma (TS 100) | BS2: Hátrányos és halmozottan hátrányos helyzetű tanulók aránya a szakgimnáziumi tanulókon belül (TS 101) | BU2: Év | BV2: Megállapított hátrányos helyzetű gyermekek és nagykorúvá vált gyermekek száma (TS 114) | BW2: Megállapított halmozottan hátrányos helyzetű gyermekek és nagykorúvá vált gyermekek száma (TS 113) | BY2: ÓVODAI ELLÁTOTTSÁG | CC2: Év | CD2: 3-6 éves korú gyermekek száma | CE2: Óvodai gyermekcsoportok száma - gyógypedagógiai neveléssel együtt (TS 085) | CF2: Óvodai férőhelyek száma (gyógypedagógiai neveléssel együtt) (TS 090) | CG2: Óvodai feladatellátási helyek száma (gyógypedagógiai neveléssel együtt) (TS 088) | CH2: Óvodába beírt gyermekek száma (gyógypedagógiai neveléssel együtt) (TS 087) | CI2: Óvodai gyógypedagógiai gyermekcsoportok száma (TS 086) | CJ2: Gyógypedagógiai oktatásban részesülő óvodás gyermekek száma az integráltan oktatott SNI gyermekek nélkül (TS 091) | CK2: Egy óvodai gyermekcsoportra jutó gyermekek száma (TS 089) | CN2: Tanév | CO2: Az általános iskolai osztályok száma a gyógypedagógiai oktatásban (a nappali oktatásban) (TS 080) | CP2: Az általános iskolai osztályok száma (a gyógypedagógiai oktatással együtt) (TS 081) | CQ2: Általános iskolai feladat-ellátási helyek száma (gyógypedagógiai oktatással együtt) (TS 079) | CR2: Egy általános iskolai osztályra jutó tanulók száma a nappali oktatásban (gyógypedagógiai oktatással együtt) (TS 082) | CS2: Más településről bejáró általános iskolai tanulók aránya a nappali oktatásban (TS 084) | CU2: Tanév | CV2: A 8. évfolyamot eredményesen befejezte a nappali oktatásban (TS 083) | CY2: Év | CZ2: Biztos kezdet gyerekházat rendszeresen igénybe vevő gyermekek száma | DA2: Tanoda szolgáltatást rendszeresen igénybe vevő gyermekek száma | DB2: Család- és gyermekjóléti szolgáltatást igénybe vevő kiskorúak száma | DC2: Szünidei étkeztetésben részesülő gyermekek száma (TS 112)
C3: Férfiak | D3: Nők | E3: Összesen (TS 003) | F3: Férfiak (TS 005) | G3: Nők (TS 007) | J3: Fő | K3: Fő | N3: Fő | Q3: Fő | R3: Fő | S3: Fő | V3: Fő | W3: Fő | X3: Fő | Y3: Fő | Z3: Fő | AA3: Fő | AD3: db | AE3: Fő | AF3: Fő | AI3: db | AJ3: db | AK3: db | AL3: Fő | AM3: Fő | AP3: db | AQ3: Fő | AT3: db | AU3: Fő | AV3: db | AW3: Fő | AX3: db | AY3: Fő | AZ3: db | BA3: Fő | BD3: Fő | BE3: Fő | BF3: % | BI3: Fő | BJ3: Fő | BK3: % | BN3: Fő | BO3: % | BP3: Fő | BQ3: % | BR3: Fő | BS3: % | BV3: fő | BW3: fő | BY3: Az óvoda telephelyeinek száma (db) | BZ3: n.a. | CD3: fő | CE3: db | CF3: db | CG3: db | CH3: fő | CI3: db | CJ3: fő | CK3: fő | CO3: db | CP3: db | CQ3: db | CR3: fő | CS3: % | CV3: Fő | CZ3: Fő | DA3: Fő | DB3: Fő | DC3: Fő
C4: Fő | D4: Fő | E4: Fő | F4: % | G4: % | I4: =Q!$J$1-5 -> 2018 | J4: =_xlfn.IFNA(VLOOKUP("Védelembe vett gyermekek (2016-tól érvényes módszertan) (fő)",Q!$A$1:$G$132,MATCH($I4,Q!$A$1:$G$1,FALSE),FALSE),"n.a.") -> 3 | K4: =_xlfn.IFNA(VLOOKUP("Veszélyeztetett kiskorú gyermekek (2016-tól érvényes módszertan) (fő)",Q!$A$1:$G$132,MATCH($I4,Q!$A$1:$G$1,FALSE),FALSE),"n.a.") -> n.a. | M4: =Q!$J$1-5 -> 2018 | N4: =_xlfn.IFNA(VLOOKUP("Rendszeres gyermekvédelmi kedvezményben részesítettek havi átlagos létszáma (fő)",Q!$A$1:$G$132,MATCH($M4,Q!$A$1:$G$1,FALSE),FALSE),"n.a.") -> 4 | P4: =Q!$J$1-5 -> 2018 | Q4: =_xlfn.IFNA(VLOOKUP("Árvaellátásban részesülő férfiak (fő)",Q!$A$1:$G$132,MATCH($P4,Q!$A$1:$G$1,FALSE),FALSE),"n.a.") -> 2 | R4: =_xlfn.IFNA(VLOOKUP("Árvaellátásban részesülő nők (fő)",Q!$A$1:$G$132,MATCH($P4,Q!$A$1:$G$1,FALSE),FALSE),"n.a.") -> 7 | S4: =IF(SUM(Q4,R4)=0,"-",SUM(Q4,R4)) -> 9 | U4: =Q!$J$1-5 -> 2018 | V4: n.a. | W4: n.a. | X4: n.a. | Y4: n.a. | Z4: n.a. | AA4: n.a. | AC4: =Q!$J$1-5 -> 2018 | AD4: =_xlfn.IFNA(VLOOKUP("Betöltött védőnői álláshelyek (db)",Q!$A$1:$G$132,MATCH($AC4,Q!$A$1:$G$1,FALSE),FALSE),"n.a.") -> 1 | AE4: n.a. | AF4: =IF(ISERR((AE4/AD4)),"-",(AE4/AD4)) -> - | AH4: =Q!$J$1-5 -> 2018 | AI4: ='3. Mélyszegények-Romák'!CA4 -> 1 | AJ4: ='3. Mélyszegények-Romák'!CB4 -> 0 | AK4: ='3. Mélyszegények-Romák'!CC4 -> 0 | AL4: n.a. | AM4: n.a. | AO4: =Q!$J$1-5 -> 2018 | AP4: n.a. | AQ4: n.a. | AS4: =Q!$J$1-5 -> 2018 | AT4: =_xlfn.IFNA(VLOOKUP("Működő bölcsődei férőhelyek a munkahelyi bölcsődékben (2017-tól érvényes módszertan) (db)",Q!$A$1:$G$132,MATCH($AS4,Q!$A$1:$G$1,FALSE),FALSE),"n.a.") -> 0 | AU4: =_xlfn.IFNA(VLOOKUP("Bölcsődébe beíratott gyermekek a munkahelyi bölcsődékben (2017-tól érvényes módszertan) (fő)",Q!$A$1:$G$132,MATCH($AS4,Q!$A$1:$G$1,FALSE),FALSE),"n.a.") -> 0 | AV4: =_xlfn.IFNA(VLOOKUP("Működő bölcsődei férőhelyek a családi bölcsődékben (2017-tól érvényes módszertan) (db)",Q!$A$1:$G$132,MATCH($AS4,Q!$A$1:$G$1,FALSE),FALSE),"n.a.") -> 0 | AW4: =_xlfn.IFNA(VLOOKUP("Bölcsődébe beíratott gyermekek a családi bölcsődékben (2017-tól érvényes módszertan) (fő)",Q!$A$1:$G$132,MATCH($AS4,Q!$A$1:$G$1,FALSE),FALSE),"n.a.") -> 0 | AX4: =_xlfn.IFNA(VLOOKUP("Működő bölcsődei férőhelyek a mini bölcsődékben (2017-tól érvényes módszertan) (db)",Q!$A$1:$G$132,MATCH($AS4,Q!$A$1:$G$1,FALSE),FALSE),"n.a.") -> 0 | AY4: =_xlfn.IFNA(VLOOKUP("Bölcsődébe beíratott gyermekek a mini bölcsődékben (2017-tól érvényes módszertan) (fő)",Q!$A$1:$G$132,MATCH($AS4,Q!$A$1:$G$1,FALSE),FALSE),"n.a.") -> 0 | AZ4: =_xlfn.IFNA(VLOOKUP("Működő bölcsődei férőhelyek (2017-tól érvényes módszertan) (db)",Q!$A$1:$G$132,MATCH($AS4,Q!$A$1:$G$1,FALSE),FALSE),"n.a.") -> 0 | BA4: =_xlfn.IFNA(VLOOKUP("Bölcsődébe beírt gyermekek (2017-tól érvényes módszertan) (fő)",Q!$A$1:$G$132,MATCH($AS4,Q!$A$1:$G$1,FALSE),FALSE),"n.a.") -> 0 | BC4: =Q!$J$1-5 -> 2018 | BD4: =_xlfn.IFNA(VLOOKUP("Óvodába beírt gyermekek (fő)",Q!$A$1:$G$132,MATCH($BC4,Q!$A$1:$G$1,FALSE),FALSE),"n.a.") -> 75 | BE4: =_xlfn.IFNA(VLOOKUP("Hátrányos helyzetű óvodás gyermekek (fő)",Q!$A$1:$G$132,MATCH($BC4,Q!$A$1:$G$1,FALSE),FALSE),"n.a.") -> 0 | BF4: =_xlfn.IFNA(VLOOKUP("Hátrányos helyzetű óvodás gyermekek aránya (százalék)",Q!$A$1:$G$132,MATCH($BC4,Q!$A$1:$G$1,FALSE),FALSE),"n.a.") -> 0 | BH4: =Q!$J$1-5 -> 2018 | BI4: n.a. | BJ4: =_xlfn.IFNA(VLOOKUP("Hátrányos helyzetű általános iskolai tanulók a nappali oktatásban (fő)",Q!$A$1:$G$132,MATCH($BC4,Q!$A$1:$G$1,FALSE),FALSE),"n.a.") -> 6 | BK4: =_xlfn.IFNA(VLOOKUP("Hátrányos helyzetű általános iskolai tanulók aránya a nappali oktatásban (százalék)",Q!$A$1:$G$132,MATCH($BC4,Q!$A$1:$G$1,FALSE),FALSE),"n.a.") -> 4.65 | BM4: =Q!$J$1-5 -> 2018 | BN4: =_xlfn.IFNA(VLOOKUP("Hátrányos helyzetű gimnáziumi tanulók a nappali oktatásban (fő)",Q!$A$1:$G$132,MATCH($BC4,Q!$A$1:$G$1,FALSE),FALSE),"n.a.") -> 0 | BO4: =_xlfn.IFNA(VLOOKUP("Hátrányos helyzetű gimnáziumi tanulók aránya a nappali oktatásban (százalék)",Q!$A$1:$G$132,MATCH($BC4,Q!$A$1:$G$1,FALSE),FALSE),"n.a.") -> n.a. | BP4: =_xlfn.IFNA(VLOOKUP("Hátrányos helyzetű szakközépiskolai, szakiskolai és készségfejlesztő iskolai tanuló a nappali oktatásban (fő)",Q!$A$1:$G$132,MATCH($BC4,Q!$A$1:$G$1,FALSE),FALSE),"n.a.") -> 0 | BQ4: =_xlfn.IFNA(VLOOKUP("Hátrányos helyzetű szakközépiskolai, szakiskolai és készségfejlesztő iskolai tanulók aránya a nappali oktatásban (százalék)",Q!$A$1:$G$132,MATCH($BC4,Q!$A$1:$G$1,FALSE),FALSE),"n.a.") -> n.a. | BR4: =_xlfn.IFNA(VLOOKUP("Hátrányos helyzetű szakgimnáziumi tanulók a nappali oktatásban (fő)",Q!$A$1:$G$132,MATCH($BC4,Q!$A$1:$G$1,FALSE),FALSE),"n.a.") -> 0 | BS4: =_xlfn.IFNA(VLOOKUP("Hátrányos helyzetű szakgimnáziumi tanulók aránya a nappali oktatásban (százalék)",Q!$A$1:$G$132,MATCH($BC4,Q!$A$1:$G$1,FALSE),FALSE),"n.a.") -> n.a. | BU4: =Q!$J$1-5 -> 2018 | BV4: =_xlfn.IFNA(VLOOKUP("Megállapított hátrányos helyzetű gyermekek és nagykorúvá vált gyermekek (fő)",Q!$A$1:$G$132,MATCH($BU4,Q!$A$1:$G$1,FALSE),FALSE),"n.a.") -> 0 | BW4: =_xlfn.IFNA(VLOOKUP("Megállapított halmozottan hátrányos helyzetű gyermekek és nagykorúvá vált gyermekek (fő)",Q!$A$1:$G$132,MATCH($BU4,Q!$A$1:$G$1,FALSE),FALSE),"n.a.") -> 0 | BY4: Hány településről járnak be a gyermekek (db) | BZ4: n.a. | CC4: =Q!$J$1-5 -> 2018 | CD4: n.a. | CE4: =_xlfn.IFNA(VLOOKUP("Óvodai gyermekcsoportok (db)",Q!$A$1:$G$132,MATCH($CC4,Q!$A$1:$G$1,FALSE),FALSE),"n.a.") -> 3 | CF4: =_xlfn.IFNA(VLOOKUP("Óvodai férőhelyek (fő)",Q!$A$1:$G$132,MATCH($CC4,Q!$A$1:$G$1,FALSE),FALSE),"n.a.") -> 75 | CG4: =_xlfn.IFNA(VLOOKUP("Óvodai feladatellátási helyek (db)",Q!$A$1:$G$132,MATCH($CC4,Q!$A$1:$G$1,FALSE),FALSE),"n.a.") -> 1 | CH4: =_xlfn.IFNA(VLOOKUP("Óvodába beírt gyermekek (fő)",Q!$A$1:$G$132,MATCH($CC4,Q!$A$1:$G$1,FALSE),FALSE),"n.a.") -> 75 | CI4: =_xlfn.IFNA(VLOOKUP("Óvodai gyermekcsoportok a gyógypedagógiai nevelésben (db)",Q!$A$1:$G$132,MATCH($CC4,Q!$A$1:$G$1,FALSE),FALSE),"n.a.") -> 0 | CJ4: =_xlfn.IFNA(VLOOKUP("Gyógypedagógiai oktatásban részesülő óvodás gyermekek (integráltan oktatott sajátos nevelési igényű gyermekek nélkül) (fő)",Q!$A$1:$G$132,MATCH($CC4,Q!$A$1:$G$1,FALSE),FALSE),"n.a.") -> 0 | CK4: =_xlfn.IFNA(VLOOKUP("Óvodába beírt gyermek, egy gyermekcsoportra (fő)",Q!$A$1:$G$132,MATCH($CC4,Q!$A$1:$G$1,FALSE),FALSE),"n.a.") -> 25 | CN4: =Q!$J$1-5 -> 2018 | CO4: =_xlfn.IFNA(VLOOKUP("Általános iskolai osztályok a gyógypedagógiai oktatásban (a nappali oktatásban) (db)",Q!$A$1:$G$132,MATCH($CN4,Q!$A$1:$G$1,FALSE),FALSE),"n.a.") -> 0 | CP4: =_xlfn.IFNA(VLOOKUP("Általános iskolai osztályok a nappali oktatásban (db)",Q!$A$1:$G$132,MATCH($CN4,Q!$A$1:$G$1,FALSE),FALSE),"n.a.") -> 8 | CQ4: =_xlfn.IFNA(VLOOKUP("Általános iskolai feladatellátási helyek (db)",Q!$A$1:$G$132,MATCH($CN4,Q!$A$1:$G$1,FALSE),FALSE),"n.a.") -> 1 | CR4: =_xlfn.IFNA(VLOOKUP("Egy osztályra jutó nappali tagozatos tanulók az általános iskolákban (fő)",Q!$A$1:$G$132,MATCH($CN4,Q!$A$1:$G$1,FALSE),FALSE),"n.a.") -> 16.13 | CS4: =_xlfn.IFNA(VLOOKUP("Más településről bejáró általános iskolai tanulók aránya a nappali oktatásban (százalék)",Q!$A$1:$G$132,MATCH($CN4,Q!$A$1:$G$1,FALSE),FALSE),"n.a.") -> 10.85 | CU4: =Q!$J$1-5 -> 2018 | CV4: =_xlfn.IFNA(VLOOKUP("A 8. évfolyamot eredményesen befejezte a nappali oktatásban (fő)",Q!$A$1:$G$132,MATCH($CN4,Q!$A$1:$G$1,FALSE),FALSE),"n.a.") -> 11 | CY4: =Q!$J$1-5 -> 2018 | CZ4: n.a. | DA4: n.a. | DB4: n.a. | DC4: =_xlfn.IFNA(VLOOKUP("Szünidei étkeztetésben részesült gyermekek (fő)",Q!$A$1:$G$132,MATCH($CN4,Q!$A$1:$G$1,FALSE),FALSE),"n.a.") -> 0
B5: Állandó népesség száma (férfiak TS 004, nők TS 006) | C5: ='Település Bemutatása - Népesség'!G4 -> 1249 | D5: ='Település Bemutatása - Népesség'!H4 -> 1318 | E5: =IF(SUM(C5,D5)=0,"-",SUM(C5,D5)) -> 2567 | F5: ='Település Bemutatása - Népesség'!J4 -> 0.486560187 | G5: ='Település Bemutatása - Népesség'!K4 -> 0.513439813 | I5: =Q!$J$1-4 -> 2019 | J5: =_xlfn.IFNA(VLOOKUP("Védelembe vett gyermekek (2016-tól érvényes módszertan) (fő)",Q!$A$1:$G$132,MATCH($I5,Q!$A$1:$G$1,FALSE),FALSE),"n.a.") -> 1 | K5: =_xlfn.IFNA(VLOOKUP("Veszélyeztetett kiskorú gyermekek (2016-tól érvényes módszertan) (fő)",Q!$A$1:$G$132,MATCH($I5,Q!$A$1:$G$1,FALSE),FALSE),"n.a.") -> 0 | M5: =Q!$J$1-4 -> 2019 | N5: =_xlfn.IFNA(VLOOKUP("Rendszeres gyermekvédelmi kedvezményben részesítettek havi átlagos létszáma (fő)",Q!$A$1:$G$132,MATCH($M5,Q!$A$1:$G$1,FALSE),FALSE),"n.a.") -> 0 | P5: =Q!$J$1-4 -> 2019 | Q5: =_xlfn.IFNA(VLOOKUP("Árvaellátásban részesülő férfiak (fő)",Q!$A$1:$G$132,MATCH($P5,Q!$A$1:$G$1,FALSE),FALSE),"n.a.") -> 3 | R5: =_xlfn.IFNA(VLOOKUP("Árvaellátásban részesülő nők (fő)",Q!$A$1:$G$132,MATCH($P5,Q!$A$1:$G$1,FALSE),FALSE),"n.a.") -> 6 | S5: =IF(SUM(Q5,R5)=0,"-",SUM(Q5,R5)) -> 9 | U5: =Q!$J$1-4 -> 2019 | V5: n.a. | W5: n.a. | X5: n.a. | Y5: n.a. | Z5: n.a. | AA5: n.a. | AC5: =Q!$J$1-4 -> 2019 | AD5: =_xlfn.IFNA(VLOOKUP("Betöltött védőnői álláshelyek (db)",Q!$A$1:$G$132,MATCH($AC5,Q!$A$1:$G$1,FALSE),FALSE),"n.a.") -> 1 | AE5: n.a. | AF5: =IF(ISERR((AE5/AD5)),"-",(AE5/AD5)) -> - | AH5: =Q!$J$1-4 -> 2019 | AI5: ='3. Mélyszegények-Romák'!CA5 -> 1 | AJ5: ='3. Mélyszegények-Romák'!CB5 -> 0 | AK5: ='3. Mélyszegények-Romák'!CC5 -> 0 | AL5: n.a. | AM5: n.a. | AO5: =Q!$J$1-4 -> 2019 | AP5: n.a. | AQ5: n.a. | AS5: =Q!$J$1-4 -> 2019 | AT5: =_xlfn.IFNA(VLOOKUP("Működő bölcsődei férőhelyek a munkahelyi bölcsődékben (2017-tól érvényes módszertan) (db)",Q!$A$1:$G$132,MATCH($AS5,Q!$A$1:$G$1,FALSE),FALSE),"n.a.") -> 0 | AU5: =_xlfn.IFNA(VLOOKUP("Bölcsődébe beíratott gyermekek a munkahelyi bölcsődékben (2017-tól érvényes módszertan) (fő)",Q!$A$1:$G$132,MATCH($AS5,Q!$A$1:$G$1,FALSE),FALSE),"n.a.") -> 0 | AV5: =_xlfn.IFNA(VLOOKUP("Működő bölcsődei férőhelyek a családi bölcsődékben (2017-tól érvényes módszertan) (db)",Q!$A$1:$G$132,MATCH($AS5,Q!$A$1:$G$1,FALSE),FALSE),"n.a.") -> 0 | AW5: =_xlfn.IFNA(VLOOKUP("Bölcsődébe beíratott gyermekek a családi bölcsődékben (2017-tól érvényes módszertan) (fő)",Q!$A$1:$G$132,MATCH($AS5,Q!$A$1:$G$1,FALSE),FALSE),"n.a.") -> 0 | AX5: =_xlfn.IFNA(VLOOKUP("Működő bölcsődei férőhelyek a mini bölcsődékben (2017-tól érvényes módszertan) (db)",Q!$A$1:$G$132,MATCH($AS5,Q!$A$1:$G$1,FALSE),FALSE),"n.a.") -> 7 | AY5: =_xlfn.IFNA(VLOOKUP("Bölcsődébe beíratott gyermekek a mini bölcsődékben (2017-tól érvényes módszertan) (fő)",Q!$A$1:$G$132,MATCH($AS5,Q!$A$1:$G$1,FALSE),FALSE),"n.a.") -> 7 | AZ5: =_xlfn.IFNA(VLOOKUP("Működő bölcsődei férőhelyek (2017-tól érvényes módszertan) (db)",Q!$A$1:$G$132,MATCH($AS5,Q!$A$1:$G$1,FALSE),FALSE),"n.a.") -> 0 | BA5: =_xlfn.IFNA(VLOOKUP("Bölcsődébe beírt gyermekek (2017-tól érvényes módszertan) (fő)",Q!$A$1:$G$132,MATCH($AS5,Q!$A$1:$G$1,FALSE),FALSE),"n.a.") -> 0 | BC5: =Q!$J$1-4 -> 2019 | BD5: =_xlfn.IFNA(VLOOKUP("Óvodába beírt gyermekek (fő)",Q!$A$1:$G$132,MATCH($BC5,Q!$A$1:$G$1,FALSE),FALSE),"n.a.") -> 91 | BE5: =_xlfn.IFNA(VLOOKUP("Hátrányos helyzetű óvodás gyermekek (fő)",Q!$A$1:$G$132,MATCH($BC5,Q!$A$1:$G$1,FALSE),FALSE),"n.a.") -> 0 | BF5: =_xlfn.IFNA(VLOOKUP("Hátrányos helyzetű óvodás gyermekek aránya (százalék)",Q!$A$1:$G$132,MATCH($BC5,Q!$A$1:$G$1,FALSE),FALSE),"n.a.") -> 0 | BH5: =Q!$J$1-4 -> 2019 | BI5: n.a. | BJ5: =_xlfn.IFNA(VLOOKUP("Hátrányos helyzetű általános iskolai tanulók a nappali oktatásban (fő)",Q!$A$1:$G$132,MATCH($BC5,Q!$A$1:$G$1,FALSE),FALSE),"n.a.") -> 4 | BK5: =_xlfn.IFNA(VLOOKUP("Hátrányos helyzetű általános iskolai tanulók aránya a nappali oktatásban (százalék)",Q!$A$1:$G$132,MATCH($BC5,Q!$A$1:$G$1,FALSE),FALSE),"n.a.") -> 2.96 | BM5: =Q!$J$1-4 -> 2019 | BN5: =_xlfn.IFNA(VLOOKUP("Hátrányos helyzetű gimnáziumi tanulók a nappali oktatásban (fő)",Q!$A$1:$G$132,MATCH($BC5,Q!$A$1:$G$1,FALSE),FALSE),"n.a.") -> 0 | BO5: =_xlfn.IFNA(VLOOKUP("Hátrányos helyzetű gimnáziumi tanulók aránya a nappali oktatásban (százalék)",Q!$A$1:$G$132,MATCH($BC5,Q!$A$1:$G$1,FALSE),FALSE),"n.a.") -> n.a. | BP5: =_xlfn.IFNA(VLOOKUP("Hátrányos helyzetű szakközépiskolai, szakiskolai és készségfejlesztő iskolai tanuló a nappali oktatásban (fő)",Q!$A$1:$G$132,MATCH($BC5,Q!$A$1:$G$1,FALSE),FALSE),"n.a.") -> 0 | BQ5: =_xlfn.IFNA(VLOOKUP("Hátrányos helyzetű szakközépiskolai, szakiskolai és készségfejlesztő iskolai tanulók aránya a nappali oktatásban (százalék)",Q!$A$1:$G$132,MATCH($BC5,Q!$A$1:$G$1,FALSE),FALSE),"n.a.") -> n.a. | BR5: =_xlfn.IFNA(VLOOKUP("Hátrányos helyzetű szakgimnáziumi tanulók a nappali oktatásban (fő)",Q!$A$1:$G$132,MATCH($BC5,Q!$A$1:$G$1,FALSE),FALSE),"n.a.") -> 0 | BS5: =_xlfn.IFNA(VLOOKUP("Hátrányos helyzetű szakgimnáziumi tanulók aránya a nappali oktatásban (százalék)",Q!$A$1:$G$132,MATCH($BC5,Q!$A$1:$G$1,FALSE),FALSE),"n.a.") -> n.a. | BU5: =Q!$J$1-4 -> 2019 | BV5: =_xlfn.IFNA(VLOOKUP("Megállapított hátrányos helyzetű gyermekek és nagykorúvá vált gyermekek (fő)",Q!$A$1:$G$132,MATCH($BU5,Q!$A$1:$G$1,FALSE),FALSE),"n.a.") -> 0 | BW5: =_xlfn.IFNA(VLOOKUP("Megállapított halmozottan hátrányos helyzetű gyermekek és nagykorúvá vált gyermekek (fő)",Q!$A$1:$G$132,MATCH($BU5,Q!$A$1:$G$1,FALSE),FALSE),"n.a.") -> 0 | BY5: Óvodai férőhelyek száma (fő) | BZ5: n.a. | CC5: =Q!$J$1-4 -> 2019 | CD5: n.a. | CE5: =_xlfn.IFNA(VLOOKUP("Óvodai gyermekcsoportok (db)",Q!$A$1:$G$132,MATCH($CC5,Q!$A$1:$G$1,FALSE),FALSE),"n.a.") -> 4 | CF5: =_xlfn.IFNA(VLOOKUP("Óvodai férőhelyek (fő)",Q!$A$1:$G$132,MATCH($CC5,Q!$A$1:$G$1,FALSE),FALSE),"n.a.") -> 100 | CG5: =_xlfn.IFNA(VLOOKUP("Óvodai feladatellátási helyek (db)",Q!$A$1:$G$132,MATCH($CC5,Q!$A$1:$G$1,FALSE),FALSE),"n.a.") -> 1 | CH5: =_xlfn.IFNA(VLOOKUP("Óvodába beírt gyermekek (fő)",Q!$A$1:$G$132,MATCH($CC5,Q!$A$1:$G$1,FALSE),FALSE),"n.a.") -> 91 | CI5: =_xlfn.IFNA(VLOOKUP("Óvodai gyermekcsoportok a gyógypedagógiai nevelésben (db)",Q!$A$1:$G$132,MATCH($CC5,Q!$A$1:$G$1,FALSE),FALSE),"n.a.") -> 0 | CJ5: =_xlfn.IFNA(VLOOKUP("Gyógypedagógiai oktatásban részesülő óvodás gyermekek (integráltan oktatott sajátos nevelési igényű gyermekek nélkül) (fő)",Q!$A$1:$G$132,MATCH($CC5,Q!$A$1:$G$1,FALSE),FALSE),"n.a.") -> 0 | CK5: =_xlfn.IFNA(VLOOKUP("Óvodába beírt gyermek, egy gyermekcsoportra (fő)",Q!$A$1:$G$132,MATCH($CC5,Q!$A$1:$G$1,FALSE),FALSE),"n.a.") -> 22.75 | CN5: =Q!$J$1-4 -> 2019 | CO5: =_xlfn.IFNA(VLOOKUP("Általános iskolai osztályok a gyógypedagógiai oktatásban (a nappali oktatásban) (db)",Q!$A$1:$G$132,MATCH($CN5,Q!$A$1:$G$1,FALSE),FALSE),"n.a.") -> 0 | CP5: =_xlfn.IFNA(VLOOKUP("Általános iskolai osztályok a nappali oktatásban (db)",Q!$A$1:$G$132,MATCH($CN5,Q!$A$1:$G$1,FALSE),FALSE),"n.a.") -> 8 | CQ5: =_xlfn.IFNA(VLOOKUP("Általános iskolai feladatellátási helyek (db)",Q!$A$1:$G$132,MATCH($CN5,Q!$A$1:$G$1,FALSE),FALSE),"n.a.") -> 1 | CR5: =_xlfn.IFNA(VLOOKUP("Egy osztályra jutó nappali tagozatos tanulók az általános iskolákban (fő)",Q!$A$1:$G$132,MATCH($CN5,Q!$A$1:$G$1,FALSE),FALSE),"n.a.") -> 16.88 | CS5: =_xlfn.IFNA(VLOOKUP("Más településről bejáró általános iskolai tanulók aránya a nappali oktatásban (százalék)",Q!$A$1:$G$132,MATCH($CN5,Q!$A$1:$G$1,FALSE),FALSE),"n.a.") -> 12.59 | CU5: =Q!$J$1-4 -> 2019 | CV5: =_xlfn.IFNA(VLOOKUP("A 8. évfolyamot eredményesen befejezte a nappali oktatásban (fő)",Q!$A$1:$G$132,MATCH($CN5,Q!$A$1:$G$1,FALSE),FALSE),"n.a.") -> 10 | CY5: =Q!$J$1-4 -> 2019 | CZ5: n.a. | DA5: n.a. | DB5: n.a. | DC5: =_xlfn.IFNA(VLOOKUP("Szünidei étkeztetésben részesült gyermekek (fő)",Q!$A$1:$G$132,MATCH($CN5,Q!$A$1:$G$1,FALSE),FALSE),"n.a.") -> 0
B6: 0-2 évesek (összes száma TS 008, aránya TS 009) | E6: ='Település Bemutatása - Népesség'!I5 -> 105 | F6: ='Település Bemutatása - Népesség'!J5 -> 0.04090377873 | I6: =Q!$J$1-3 -> 2020 | J6: =_xlfn.IFNA(VLOOKUP("Védelembe vett gyermekek (2016-tól érvényes módszertan) (fő)",Q!$A$1:$G$132,MATCH($I6,Q!$A$1:$G$1,FALSE),FALSE),"n.a.") -> 2 | K6: =_xlfn.IFNA(VLOOKUP("Veszélyeztetett kiskorú gyermekek (2016-tól érvényes módszertan) (fő)",Q!$A$1:$G$132,MATCH($I6,Q!$A$1:$G$1,FALSE),FALSE),"n.a.") -> 0 | M6: =Q!$J$1-3 -> 2020 | N6: =_xlfn.IFNA(VLOOKUP("Rendszeres gyermekvédelmi kedvezményben részesítettek havi átlagos létszáma (fő)",Q!$A$1:$G$132,MATCH($M6,Q!$A$1:$G$1,FALSE),FALSE),"n.a.") -> 0 | P6: =Q!$J$1-3 -> 2020 | Q6: =_xlfn.IFNA(VLOOKUP("Árvaellátásban részesülő férfiak (fő)",Q!$A$1:$G$132,MATCH($P6,Q!$A$1:$G$1,FALSE),FALSE),"n.a.") -> 4 | R6: =_xlfn.IFNA(VLOOKUP("Árvaellátásban részesülő nők (fő)",Q!$A$1:$G$132,MATCH($P6,Q!$A$1:$G$1,FALSE),FALSE),"n.a.") -> 7 | S6: 11 | U6: =Q!$J$1-3 -> 2020 | V6: n.a. | W6: n.a. | X6: n.a. | Y6: n.a. | Z6: n.a. | AA6: n.a. | AC6: =Q!$J$1-3 -> 2020 | AD6: =_xlfn.IFNA(VLOOKUP("Betöltött védőnői álláshelyek (db)",Q!$A$1:$G$132,MATCH($AC6,Q!$A$1:$G$1,FALSE),FALSE),"n.a.") -> 1 | AE6: n.a. | AF6: - | AH6: =Q!$J$1-3 -> 2020 | AI6: ='3. Mélyszegények-Romák'!CA6 -> 1 | AJ6: ='3. Mélyszegények-Romák'!CB6 -> 0 | AK6: ='3. Mélyszegények-Romák'!CC6 -> 0 | AL6: n.a. | AM6: n.a. | AO6: =Q!$J$1-3 -> 2020 | AP6: n.a. | AQ6: n.a. | AS6: =Q!$J$1-3 -> 2020 | AT6: =_xlfn.IFNA(VLOOKUP("Működő bölcsődei férőhelyek a munkahelyi bölcsődékben (2017-tól érvényes módszertan) (db)",Q!$A$1:$G$132,MATCH($AS6,Q!$A$1:$G$1,FALSE),FALSE),"n.a.") -> 0 | AU6: =_xlfn.IFNA(VLOOKUP("Bölcsődébe beíratott gyermekek a munkahelyi bölcsődékben (2017-tól érvényes módszertan) (fő)",Q!$A$1:$G$132,MATCH($AS6,Q!$A$1:$G$1,FALSE),FALSE),"n.a.") -> 0 | AV6: =_xlfn.IFNA(VLOOKUP("Működő bölcsődei férőhelyek a családi bölcsődékben (2017-tól érvényes módszertan) (db)",Q!$A$1:$G$132,MATCH($AS6,Q!$A$1:$G$1,FALSE),FALSE),"n.a.") -> 0 | AW6: =_xlfn.IFNA(VLOOKUP("Bölcsődébe beíratott gyermekek a családi bölcsődékben (2017-tól érvényes módszertan) (fő)",Q!$A$1:$G$132,MATCH($AS6,Q!$A$1:$G$1,FALSE),FALSE),"n.a.") -> 0 | AX6: =_xlfn.IFNA(VLOOKUP("Működő bölcsődei férőhelyek a mini bölcsődékben (2017-tól érvényes módszertan) (db)",Q!$A$1:$G$132,MATCH($AS6,Q!$A$1:$G$1,FALSE),FALSE),"n.a.") -> 8 | AY6: =_xlfn.IFNA(VLOOKUP("Bölcsődébe beíratott gyermekek a mini bölcsődékben (2017-tól érvényes módszertan) (fő)",Q!$A$1:$G$132,MATCH($AS6,Q!$A$1:$G$1,FALSE),FALSE),"n.a.") -> 8 | AZ6: =_xlfn.IFNA(VLOOKUP("Működő bölcsődei férőhelyek (2017-tól érvényes módszertan) (db)",Q!$A$1:$G$132,MATCH($AS6,Q!$A$1:$G$1,FALSE),FALSE),"n.a.") -> 0 | BA6: =_xlfn.IFNA(VLOOKUP("Bölcsődébe beírt gyermekek (2017-tól érvényes módszertan) (fő)",Q!$A$1:$G$132,MATCH($AS6,Q!$A$1:$G$1,FALSE),FALSE),"n.a.") -> 0 | BC6: =Q!$J$1-3 -> 2020 | BD6: =_xlfn.IFNA(VLOOKUP("Óvodába beírt gyermekek (fő)",Q!$A$1:$G$132,MATCH($BC6,Q!$A$1:$G$1,FALSE),FALSE),"n.a.") -> 98 | BE6: =_xlfn.IFNA(VLOOKUP("Hátrányos helyzetű óvodás gyermekek (fő)",Q!$A$1:$G$132,MATCH($BC6,Q!$A$1:$G$1,FALSE),FALSE),"n.a.") -> 0 | BF6: =_xlfn.IFNA(VLOOKUP("Hátrányos helyzetű óvodás gyermekek aránya (százalék)",Q!$A$1:$G$132,MATCH($BC6,Q!$A$1:$G$1,FALSE),FALSE),"n.a.") -> 0 | BH6: =Q!$J$1-3 -> 2020 | BI6: n.a. | BJ6: =_xlfn.IFNA(VLOOKUP("Hátrányos helyzetű általános iskolai tanulók a nappali oktatásban (fő)",Q!$A$1:$G$132,MATCH($BC6,Q!$A$1:$G$1,FALSE),FALSE),"n.a.") -> 0 | BK6: =_xlfn.IFNA(VLOOKUP("Hátrányos helyzetű általános iskolai tanulók aránya a nappali oktatásban (százalék)",Q!$A$1:$G$132,MATCH($BC6,Q!$A$1:$G$1,FALSE),FALSE),"n.a.") -> 0 | BM6: =Q!$J$1-3 -> 2020 | BN6: =_xlfn.IFNA(VLOOKUP("Hátrányos helyzetű gimnáziumi tanulók a nappali oktatásban (fő)",Q!$A$1:$G$132,MATCH($BC6,Q!$A$1:$G$1,FALSE),FALSE),"n.a.") -> 0 | BO6: =_xlfn.IFNA(VLOOKUP("Hátrányos helyzetű gimnáziumi tanulók aránya a nappali oktatásban (százalék)",Q!$A$1:$G$132,MATCH($BC6,Q!$A$1:$G$1,FALSE),FALSE),"n.a.") -> n.a. | BP6: =_xlfn.IFNA(VLOOKUP("Hátrányos helyzetű szakközépiskolai, szakiskolai és készségfejlesztő iskolai tanuló a nappali oktatásban (fő)",Q!$A$1:$G$132,MATCH($BC6,Q!$A$1:$G$1,FALSE),FALSE),"n.a.") -> n.a. | BQ6: =_xlfn.IFNA(VLOOKUP("Hátrányos helyzetű szakközépiskolai, szakiskolai és készségfejlesztő iskolai tanulók aránya a nappali oktatásban (százalék)",Q!$A$1:$G$132,MATCH($BC6,Q!$A$1:$G$1,FALSE),FALSE),"n.a.") -> n.a. | BR6: =_xlfn.IFNA(VLOOKUP("Hátrányos helyzetű szakgimnáziumi tanulók a nappali oktatásban (fő)",Q!$A$1:$G$132,MATCH($BC6,Q!$A$1:$G$1,FALSE),FALSE),"n.a.") -> n.a. | BS6: =_xlfn.IFNA(VLOOKUP("Hátrányos helyzetű szakgimnáziumi tanulók aránya a nappali oktatásban (százalék)",Q!$A$1:$G$132,MATCH($BC6,Q!$A$1:$G$1,FALSE),FALSE),"n.a.") -> n.a. | BU6: =Q!$J$1-3 -> 2020 | BV6: =_xlfn.IFNA(VLOOKUP("Megállapított hátrányos helyzetű gyermekek és nagykorúvá vált gyermekek (fő)",Q!$A$1:$G$132,MATCH($BU6,Q!$A$1:$G$1,FALSE),FALSE),"n.a.") -> 0 | BW6: =_xlfn.IFNA(VLOOKUP("Megállapított halmozottan hátrányos helyzetű gyermekek és nagykorúvá vált gyermekek (fő)",Q!$A$1:$G$132,MATCH($BU6,Q!$A$1:$G$1,FALSE),FALSE),"n.a.") -> 0 | BY6: Óvodai gyermekcsoportok száma (gyógypedagógiai neveléssel együtt) (db) | BZ6: n.a. | CC6: =Q!$J$1-3 -> 2020 | CD6: n.a. | CE6: =_xlfn.IFNA(VLOOKUP("Óvodai gyermekcsoportok (db)",Q!$A$1:$G$132,MATCH($CC6,Q!$A$1:$G$1,FALSE),FALSE),"n.a.") -> 4 | CF6: =_xlfn.IFNA(VLOOKUP("Óvodai férőhelyek (fő)",Q!$A$1:$G$132,MATCH($CC6,Q!$A$1:$G$1,FALSE),FALSE),"n.a.") -> 100 | CG6: =_xlfn.IFNA(VLOOKUP("Óvodai feladatellátási helyek (db)",Q!$A$1:$G$132,MATCH($CC6,Q!$A$1:$G$1,FALSE),FALSE),"n.a.") -> 1 | CH6: =_xlfn.IFNA(VLOOKUP("Óvodába beírt gyermekek (fő)",Q!$A$1:$G$132,MATCH($CC6,Q!$A$1:$G$1,FALSE),FALSE),"n.a.") -> 98 | CI6: =_xlfn.IFNA(VLOOKUP("Óvodai gyermekcsoportok a gyógypedagógiai nevelésben (db)",Q!$A$1:$G$132,MATCH($CC6,Q!$A$1:$G$1,FALSE),FALSE),"n.a.") -> 0 | CJ6: =_xlfn.IFNA(VLOOKUP("Gyógypedagógiai oktatásban részesülő óvodás gyermekek (integráltan oktatott sajátos nevelési igényű gyermekek nélkül) (fő)",Q!$A$1:$G$132,MATCH($CC6,Q!$A$1:$G$1,FALSE),FALSE),"n.a.") -> 0 | CK6: =_xlfn.IFNA(VLOOKUP("Óvodába beírt gyermek, egy gyermekcsoportra (fő)",Q!$A$1:$G$132,MATCH($CC6,Q!$A$1:$G$1,FALSE),FALSE),"n.a.") -> 24.5 | CN6: =Q!$J$1-3 -> 2020 | CO6: =_xlfn.IFNA(VLOOKUP("Általános iskolai osztályok a gyógypedagógiai oktatásban (a nappali oktatásban) (db)",Q!$A$1:$G$132,MATCH($CN6,Q!$A$1:$G$1,FALSE),FALSE),"n.a.") -> 0 | CP6: =_xlfn.IFNA(VLOOKUP("Általános iskolai osztályok a nappali oktatásban (db)",Q!$A$1:$G$132,MATCH($CN6,Q!$A$1:$G$1,FALSE),FALSE),"n.a.") -> 8 | CQ6: =_xlfn.IFNA(VLOOKUP("Általános iskolai feladatellátási helyek (db)",Q!$A$1:$G$132,MATCH($CN6,Q!$A$1:$G$1,FALSE),FALSE),"n.a.") -> 1 | CR6: =_xlfn.IFNA(VLOOKUP("Egy osztályra jutó nappali tagozatos tanulók az általános iskolákban (fő)",Q!$A$1:$G$132,MATCH($CN6,Q!$A$1:$G$1,FALSE),FALSE),"n.a.") -> 18.88 | CS6: =_xlfn.IFNA(VLOOKUP("Más településről bejáró általános iskolai tanulók aránya a nappali oktatásban (százalék)",Q!$A$1:$G$132,MATCH($CN6,Q!$A$1:$G$1,FALSE),FALSE),"n.a.") -> 13.25 | CU6: =Q!$J$1-3 -> 2020 | CV6: =_xlfn.IFNA(VLOOKUP("A 8. évfolyamot eredményesen befejezte a nappali oktatásban (fő)",Q!$A$1:$G$132,MATCH($CN6,Q!$A$1:$G$1,FALSE),FALSE),"n.a.") -> 12 | CY6: =Q!$J$1-3 -> 2020 | CZ6: n.a. | DA6: n.a. | DB6: n.a. | DC6: =_xlfn.IFNA(VLOOKUP("Szünidei étkeztetésben részesült gyermekek (fő)",Q!$A$1:$G$132,MATCH($CN6,Q!$A$1:$G$1,FALSE),FALSE),"n.a.") -> 0
B7: 0-14 éves (férfiak TS 010, aránya TS 011; nők TS 012, aránya TS 013) | C7: ='Település Bemutatása - Népesség'!G6 -> 248 | D7: ='Település Bemutatása - Népesség'!H6 -> 228 | E7: =IF(SUM(C7,D7)=0,"-",SUM(C7,D7)) -> 476 | F7: ='Település Bemutatása - Népesség'!J6 -> 0.09661082976 | G7: ='Település Bemutatása - Népesség'!K6 -> 0.08881963381 | I7: =Q!$J$1-2 -> 2021 | J7: =_xlfn.IFNA(VLOOKUP("Védelembe vett gyermekek (2016-tól érvényes módszertan) (fő)",Q!$A$1:$G$132,MATCH($I7,Q!$A$1:$G$1,FALSE),FALSE),"n.a.") -> 0 | K7: =_xlfn.IFNA(VLOOKUP("Veszélyeztetett kiskorú gyermekek (2016-tól érvényes módszertan) (fő)",Q!$A$1:$G$132,MATCH($I7,Q!$A$1:$G$1,FALSE),FALSE),"n.a.") -> 1 | M7: =Q!$J$1-2 -> 2021 | N7: =_xlfn.IFNA(VLOOKUP("Rendszeres gyermekvédelmi kedvezményben részesítettek havi átlagos létszáma (fő)",Q!$A$1:$G$132,MATCH($M7,Q!$A$1:$G$1,FALSE),FALSE),"n.a.") -> 0 | P7: =Q!$J$1-2 -> 2021 | Q7: =_xlfn.IFNA(VLOOKUP("Árvaellátásban részesülő férfiak (fő)",Q!$A$1:$G$132,MATCH($P7,Q!$A$1:$G$1,FALSE),FALSE),"n.a.") -> 3 | R7: =_xlfn.IFNA(VLOOKUP("Árvaellátásban részesülő nők (fő)",Q!$A$1:$G$132,MATCH($P7,Q!$A$1:$G$1,FALSE),FALSE),"n.a.") -> 5 | S7: 8 | U7: =Q!$J$1-2 -> 2021 | V7: n.a. | W7: n.a. | X7: n.a. | Y7: n.a. | Z7: n.a. | AA7: n.a. | AC7: =Q!$J$1-2 -> 2021 | AD7: =_xlfn.IFNA(VLOOKUP("Betöltött védőnői álláshelyek (db)",Q!$A$1:$G$132,MATCH($AC7,Q!$A$1:$G$1,FALSE),FALSE),"n.a.") -> 1 | AE7: n.a. | AF7: - | AH7: =Q!$J$1-2 -> 2021 | AI7: ='3. Mélyszegények-Romák'!CA7 -> 1 | AJ7: ='3. Mélyszegények-Romák'!CB7 -> 0 | AK7: ='3. Mélyszegények-Romák'!CC7 -> 0 | AL7: n.a. | AM7: n.a. | AO7: =Q!$J$1-2 -> 2021 | AP7: n.a. | AQ7: n.a. | AS7: =Q!$J$1-2 -> 2021 | AT7: =_xlfn.IFNA(VLOOKUP("Működő bölcsődei férőhelyek a munkahelyi bölcsődékben (2017-tól érvényes módszertan) (db)",Q!$A$1:$G$132,MATCH($AS7,Q!$A$1:$G$1,FALSE),FALSE),"n.a.") -> 0 | AU7: =_xlfn.IFNA(VLOOKUP("Bölcsődébe beíratott gyermekek a munkahelyi bölcsődékben (2017-tól érvényes módszertan) (fő)",Q!$A$1:$G$132,MATCH($AS7,Q!$A$1:$G$1,FALSE),FALSE),"n.a.") -> 0 | AV7: =_xlfn.IFNA(VLOOKUP("Működő bölcsődei férőhelyek a családi bölcsődékben (2017-tól érvényes módszertan) (db)",Q!$A$1:$G$132,MATCH($AS7,Q!$A$1:$G$1,FALSE),FALSE),"n.a.") -> 0 | AW7: =_xlfn.IFNA(VLOOKUP("Bölcsődébe beíratott gyermekek a családi bölcsődékben (2017-tól érvényes módszertan) (fő)",Q!$A$1:$G$132,MATCH($AS7,Q!$A$1:$G$1,FALSE),FALSE),"n.a.") -> 0 | AX7: =_xlfn.IFNA(VLOOKUP("Működő bölcsődei férőhelyek a mini bölcsődékben (2017-tól érvényes módszertan) (db)",Q!$A$1:$G$132,MATCH($AS7,Q!$A$1:$G$1,FALSE),FALSE),"n.a.") -> 8 | AY7: =_xlfn.IFNA(VLOOKUP("Bölcsődébe beíratott gyermekek a mini bölcsődékben (2017-tól érvényes módszertan) (fő)",Q!$A$1:$G$132,MATCH($AS7,Q!$A$1:$G$1,FALSE),FALSE),"n.a.") -> 8 | AZ7: =_xlfn.IFNA(VLOOKUP("Működő bölcsődei férőhelyek (2017-tól érvényes módszertan) (db)",Q!$A$1:$G$132,MATCH($AS7,Q!$A$1:$G$1,FALSE),FALSE),"n.a.") -> 0 | BA7: =_xlfn.IFNA(VLOOKUP("Bölcsődébe beírt gyermekek (2017-tól érvényes módszertan) (fő)",Q!$A$1:$G$132,MATCH($AS7,Q!$A$1:$G$1,FALSE),FALSE),"n.a.") -> 0 | BC7: =Q!$J$1-2 -> 2021 | BD7: =_xlfn.IFNA(VLOOKUP("Óvodába beírt gyermekek (fő)",Q!$A$1:$G$132,MATCH($BC7,Q!$A$1:$G$1,FALSE),FALSE),"n.a.") -> 99 | BE7: =_xlfn.IFNA(VLOOKUP("Hátrányos helyzetű óvodás gyermekek (fő)",Q!$A$1:$G$132,MATCH($BC7,Q!$A$1:$G$1,FALSE),FALSE),"n.a.") -> 0 | BF7: =_xlfn.IFNA(VLOOKUP("Hátrányos helyzetű óvodás gyermekek aránya (százalék)",Q!$A$1:$G$132,MATCH($BC7,Q!$A$1:$G$1,FALSE),FALSE),"n.a.") -> 0 | BH7: =Q!$J$1-2 -> 2021 | BI7: n.a. | BJ7: =_xlfn.IFNA(VLOOKUP("Hátrányos helyzetű általános iskolai tanulók a nappali oktatásban (fő)",Q!$A$1:$G$132,MATCH($BC7,Q!$A$1:$G$1,FALSE),FALSE),"n.a.") -> 0 | BK7: =_xlfn.IFNA(VLOOKUP("Hátrányos helyzetű általános iskolai tanulók aránya a nappali oktatásban (százalék)",Q!$A$1:$G$132,MATCH($BC7,Q!$A$1:$G$1,FALSE),FALSE),"n.a.") -> 0 | BM7: =Q!$J$1-2 -> 2021 | BN7: =_xlfn.IFNA(VLOOKUP("Hátrányos helyzetű gimnáziumi tanulók a nappali oktatásban (fő)",Q!$A$1:$G$132,MATCH($BC7,Q!$A$1:$G$1,FALSE),FALSE),"n.a.") -> 0 | BO7: =_xlfn.IFNA(VLOOKUP("Hátrányos helyzetű gimnáziumi tanulók aránya a nappali oktatásban (százalék)",Q!$A$1:$G$132,MATCH($BC7,Q!$A$1:$G$1,FALSE),FALSE),"n.a.") -> n.a. | BP7: =_xlfn.IFNA(VLOOKUP("Hátrányos helyzetű szakközépiskolai, szakiskolai és készségfejlesztő iskolai tanuló a nappali oktatásban (fő)",Q!$A$1:$G$132,MATCH($BC7,Q!$A$1:$G$1,FALSE),FALSE),"n.a.") -> n.a. | BQ7: =_xlfn.IFNA(VLOOKUP("Hátrányos helyzetű szakközépiskolai, szakiskolai és készségfejlesztő iskolai tanulók aránya a nappali oktatásban (százalék)",Q!$A$1:$G$132,MATCH($BC7,Q!$A$1:$G$1,FALSE),FALSE),"n.a.") -> n.a. | BR7: =_xlfn.IFNA(VLOOKUP("Hátrányos helyzetű szakgimnáziumi tanulók a nappali oktatásban (fő)",Q!$A$1:$G$132,MATCH($BC7,Q!$A$1:$G$1,FALSE),FALSE),"n.a.") -> n.a. | BS7: =_xlfn.IFNA(VLOOKUP("Hátrányos helyzetű szakgimnáziumi tanulók aránya a nappali oktatásban (százalék)",Q!$A$1:$G$132,MATCH($BC7,Q!$A$1:$G$1,FALSE),FALSE),"n.a.") -> n.a. | BU7: =Q!$J$1-2 -> 2021 | BV7: =_xlfn.IFNA(VLOOKUP("Megállapított hátrányos helyzetű gyermekek és nagykorúvá vált gyermekek (fő)",Q!$A$1:$G$132,MATCH($BU7,Q!$A$1:$G$1,FALSE),FALSE),"n.a.") -> 0 | BW7: =_xlfn.IFNA(VLOOKUP("Megállapított halmozottan hátrányos helyzetű gyermekek és nagykorúvá vált gyermekek (fő)",Q!$A$1:$G$132,MATCH($BU7,Q!$A$1:$G$1,FALSE),FALSE),"n.a.") -> 0 | BY7: Az óvoda nyitvatartási ideje (...h-tól ...h-ig): | BZ7: n.a. | CA7: n.a. | CC7: =Q!$J$1-2 -> 2021 | CD7: n.a. | CE7: =_xlfn.IFNA(VLOOKUP("Óvodai gyermekcsoportok (db)",Q!$A$1:$G$132,MATCH($CC7,Q!$A$1:$G$1,FALSE),FALSE),"n.a.") -> 4 | CF7: =_xlfn.IFNA(VLOOKUP("Óvodai férőhelyek (fő)",Q!$A$1:$G$132,MATCH($CC7,Q!$A$1:$G$1,FALSE),FALSE),"n.a.") -> 100 | CG7: =_xlfn.IFNA(VLOOKUP("Óvodai feladatellátási helyek (db)",Q!$A$1:$G$132,MATCH($CC7,Q!$A$1:$G$1,FALSE),FALSE),"n.a.") -> 1 | CH7: =_xlfn.IFNA(VLOOKUP("Óvodába beírt gyermekek (fő)",Q!$A$1:$G$132,MATCH($CC7,Q!$A$1:$G$1,FALSE),FALSE),"n.a.") -> 99 | CI7: =_xlfn.IFNA(VLOOKUP("Óvodai gyermekcsoportok a gyógypedagógiai nevelésben (db)",Q!$A$1:$G$132,MATCH($CC7,Q!$A$1:$G$1,FALSE),FALSE),"n.a.") -> 0 | CJ7: =_xlfn.IFNA(VLOOKUP("Gyógypedagógiai oktatásban részesülő óvodás gyermekek (integráltan oktatott sajátos nevelési igényű gyermekek nélkül) (fő)",Q!$A$1:$G$132,MATCH($CC7,Q!$A$1:$G$1,FALSE),FALSE),"n.a.") -> 0 | CK7: =_xlfn.IFNA(VLOOKUP("Óvodába beírt gyermek, egy gyermekcsoportra (fő)",Q!$A$1:$G$132,MATCH($CC7,Q!$A$1:$G$1,FALSE),FALSE),"n.a.") -> 24.75 | CN7: =Q!$J$1-2 -> 2021 | CO7: =_xlfn.IFNA(VLOOKUP("Általános iskolai osztályok a gyógypedagógiai oktatásban (a nappali oktatásban) (db)",Q!$A$1:$G$132,MATCH($CN7,Q!$A$1:$G$1,FALSE),FALSE),"n.a.") -> 0 | CP7: =_xlfn.IFNA(VLOOKUP("Általános iskolai osztályok a nappali oktatásban (db)",Q!$A$1:$G$132,MATCH($CN7,Q!$A$1:$G$1,FALSE),FALSE),"n.a.") -> 8 | CQ7: =_xlfn.IFNA(VLOOKUP("Általános iskolai feladatellátási helyek (db)",Q!$A$1:$G$132,MATCH($CN7,Q!$A$1:$G$1,FALSE),FALSE),"n.a.") -> 1 | CR7: =_xlfn.IFNA(VLOOKUP("Egy osztályra jutó nappali tagozatos tanulók az általános iskolákban (fő)",Q!$A$1:$G$132,MATCH($CN7,Q!$A$1:$G$1,FALSE),FALSE),"n.a.") -> 18.5 | CS7: =_xlfn.IFNA(VLOOKUP("Más településről bejáró általános iskolai tanulók aránya a nappali oktatásban (százalék)",Q!$A$1:$G$132,MATCH($CN7,Q!$A$1:$G$1,FALSE),FALSE),"n.a.") -> 6.08 | CU7: =Q!$J$1-2 -> 2021 | CV7: =_xlfn.IFNA(VLOOKUP("A 8. évfolyamot eredményesen befejezte a nappali oktatásban (fő)",Q!$A$1:$G$132,MATCH($CN7,Q!$A$1:$G$1,FALSE),FALSE),"n.a.") -> 21 | CY7: =Q!$J$1-2 -> 2021 | CZ7: n.a. | DA7: n.a. | DB7: n.a. | DC7: =_xlfn.IFNA(VLOOKUP("Szünidei étkeztetésben részesült gyermekek (fő)",Q!$A$1:$G$132,MATCH($CN7,Q!$A$1:$G$1,FALSE),FALSE),"n.a.") -> 0
B8: 15-17 éves (férfiak TS 014, aránya TS 015; nők TS 016, aránya TS 017) | C8: ='Település Bemutatása - Népesség'!G7 -> 38 | D8: ='Település Bemutatása - Népesség'!H7 -> 36 | E8: 74 | F8: ='Település Bemutatása - Népesség'!J7 -> 0.0148032723 | G8: ='Település Bemutatása - Népesség'!K7 -> 0.01402415271 | I8: =Q!$J$1-1 -> 2022 | J8: =_xlfn.IFNA(VLOOKUP("Védelembe vett gyermekek (2016-tól érvényes módszertan) (fő)",Q!$A$1:$G$132,MATCH($I8,Q!$A$1:$G$1,FALSE),FALSE),"n.a.") -> 2 | K8: =_xlfn.IFNA(VLOOKUP("Veszélyeztetett kiskorú gyermekek (2016-tól érvényes módszertan) (fő)",Q!$A$1:$G$132,MATCH($I8,Q!$A$1:$G$1,FALSE),FALSE),"n.a.") -> 0 | M8: =Q!$J$1-1 -> 2022 | N8: =_xlfn.IFNA(VLOOKUP("Rendszeres gyermekvédelmi kedvezményben részesítettek havi átlagos létszáma (fő)",Q!$A$1:$G$132,MATCH($M8,Q!$A$1:$G$1,FALSE),FALSE),"n.a.") -> 0 | P8: =Q!$J$1-1 -> 2022 | Q8: =_xlfn.IFNA(VLOOKUP("Árvaellátásban részesülő férfiak (fő)",Q!$A$1:$G$132,MATCH($P8,Q!$A$1:$G$1,FALSE),FALSE),"n.a.") -> 5 | R8: =_xlfn.IFNA(VLOOKUP("Árvaellátásban részesülő nők (fő)",Q!$A$1:$G$132,MATCH($P8,Q!$A$1:$G$1,FALSE),FALSE),"n.a.") -> 7 | S8: 12 | U8: =Q!$J$1-1 -> 2022 | V8: n.a. | W8: n.a. | X8: n.a. | Y8: n.a. | Z8: n.a. | AA8: n.a. | AC8: =Q!$J$1-1 -> 2022 | AD8: =_xlfn.IFNA(VLOOKUP("Betöltött védőnői álláshelyek (db)",Q!$A$1:$G$132,MATCH($AC8,Q!$A$1:$G$1,FALSE),FALSE),"n.a.") -> 1 | AE8: n.a. | AF8: - | AH8: =Q!$J$1-1 -> 2022 | AI8: ='3. Mélyszegények-Romák'!CA8 -> 1 | AJ8: ='3. Mélyszegények-Romák'!CB8 -> 0 | AK8: ='3. Mélyszegények-Romák'!CC8 -> 0 | AL8: n.a. | AM8: n.a. | AO8: =Q!$J$1-1 -> 2022 | AP8: n.a. | AQ8: n.a. | AS8: =Q!$J$1-1 -> 2022 | AT8: =_xlfn.IFNA(VLOOKUP("Működő bölcsődei férőhelyek a munkahelyi bölcsődékben (2017-tól érvényes módszertan) (db)",Q!$A$1:$G$132,MATCH($AS8,Q!$A$1:$G$1,FALSE),FALSE),"n.a.") -> 0 | AU8: =_xlfn.IFNA(VLOOKUP("Bölcsődébe beíratott gyermekek a munkahelyi bölcsődékben (2017-tól érvényes módszertan) (fő)",Q!$A$1:$G$132,MATCH($AS8,Q!$A$1:$G$1,FALSE),FALSE),"n.a.") -> 0 | AV8: =_xlfn.IFNA(VLOOKUP("Működő bölcsődei férőhelyek a családi bölcsődékben (2017-tól érvényes módszertan) (db)",Q!$A$1:$G$132,MATCH($AS8,Q!$A$1:$G$1,FALSE),FALSE),"n.a.") -> 0 | AW8: =_xlfn.IFNA(VLOOKUP("Bölcsődébe beíratott gyermekek a családi bölcsődékben (2017-tól érvényes módszertan) (fő)",Q!$A$1:$G$132,MATCH($AS8,Q!$A$1:$G$1,FALSE),FALSE),"n.a.") -> 0 | AX8: =_xlfn.IFNA(VLOOKUP("Működő bölcsődei férőhelyek a mini bölcsődékben (2017-tól érvényes módszertan) (db)",Q!$A$1:$G$132,MATCH($AS8,Q!$A$1:$G$1,FALSE),FALSE),"n.a.") -> 8 | AY8: =_xlfn.IFNA(VLOOKUP("Bölcsődébe beíratott gyermekek a mini bölcsődékben (2017-tól érvényes módszertan) (fő)",Q!$A$1:$G$132,MATCH($AS8,Q!$A$1:$G$1,FALSE),FALSE),"n.a.") -> 8 | AZ8: =_xlfn.IFNA(VLOOKUP("Működő bölcsődei férőhelyek (2017-tól érvényes módszertan) (db)",Q!$A$1:$G$132,MATCH($AS8,Q!$A$1:$G$1,FALSE),FALSE),"n.a.") -> 0 | BA8: =_xlfn.IFNA(VLOOKUP("Bölcsődébe beírt gyermekek (2017-tól érvényes módszertan) (fő)",Q!$A$1:$G$132,MATCH($AS8,Q!$A$1:$G$1,FALSE),FALSE),"n.a.") -> 0 | BC8: =Q!$J$1-1 -> 2022 | BD8: =_xlfn.IFNA(VLOOKUP("Óvodába beírt gyermekek (fő)",Q!$A$1:$G$132,MATCH($BC8,Q!$A$1:$G$1,FALSE),FALSE),"n.a.") -> 109 | BE8: =_xlfn.IFNA(VLOOKUP("Hátrányos helyzetű óvodás gyermekek (fő)",Q!$A$1:$G$132,MATCH($BC8,Q!$A$1:$G$1,FALSE),FALSE),"n.a.") -> 0 | BF8: =_xlfn.IFNA(VLOOKUP("Hátrányos helyzetű óvodás gyermekek aránya (százalék)",Q!$A$1:$G$132,MATCH($BC8,Q!$A$1:$G$1,FALSE),FALSE),"n.a.") -> 0 | BH8: =Q!$J$1-1 -> 2022 | BI8: n.a. | BJ8: =_xlfn.IFNA(VLOOKUP("Hátrányos helyzetű általános iskolai tanulók a nappali oktatásban (fő)",Q!$A$1:$G$132,MATCH($BC8,Q!$A$1:$G$1,FALSE),FALSE),"n.a.") -> 0 | BK8: =_xlfn.IFNA(VLOOKUP("Hátrányos helyzetű általános iskolai tanulók aránya a nappali oktatásban (százalék)",Q!$A$1:$G$132,MATCH($BC8,Q!$A$1:$G$1,FALSE),FALSE),"n.a.") -> 0 | BM8: =Q!$J$1-1 -> 2022 | BN8: =_xlfn.IFNA(VLOOKUP("Hátrányos helyzetű gimnáziumi tanulók a nappali oktatásban (fő)",Q!$A$1:$G$132,MATCH($BC8,Q!$A$1:$G$1,FALSE),FALSE),"n.a.") -> 0 | BO8: =_xlfn.IFNA(VLOOKUP("Hátrányos helyzetű gimnáziumi tanulók aránya a nappali oktatásban (százalék)",Q!$A$1:$G$132,MATCH($BC8,Q!$A$1:$G$1,FALSE),FALSE),"n.a.") -> n.a. | BP8: =_xlfn.IFNA(VLOOKUP("Hátrányos helyzetű szakközépiskolai, szakiskolai és készségfejlesztő iskolai tanuló a nappali oktatásban (fő)",Q!$A$1:$G$132,MATCH($BC8,Q!$A$1:$G$1,FALSE),FALSE),"n.a.") -> n.a. | BQ8: =_xlfn.IFNA(VLOOKUP("Hátrányos helyzetű szakközépiskolai, szakiskolai és készségfejlesztő iskolai tanulók aránya a nappali oktatásban (százalék)",Q!$A$1:$G$132,MATCH($BC8,Q!$A$1:$G$1,FALSE),FALSE),"n.a.") -> n.a. | BR8: =_xlfn.IFNA(VLOOKUP("Hátrányos helyzetű szakgimnáziumi tanulók a nappali oktatásban (fő)",Q!$A$1:$G$132,MATCH($BC8,Q!$A$1:$G$1,FALSE),FALSE),"n.a.") -> n.a. | BS8: =_xlfn.IFNA(VLOOKUP("Hátrányos helyzetű szakgimnáziumi tanulók aránya a nappali oktatásban (százalék)",Q!$A$1:$G$132,MATCH($BC8,Q!$A$1:$G$1,FALSE),FALSE),"n.a.") -> n.a. | BU8: =Q!$J$1-1 -> 2022 | BV8: =_xlfn.IFNA(VLOOKUP("Megállapított hátrányos helyzetű gyermekek és nagykorúvá vált gyermekek (fő)",Q!$A$1:$G$132,MATCH($BU8,Q!$A$1:$G$1,FALSE),FALSE),"n.a.") -> 0 | BW8: =_xlfn.IFNA(VLOOKUP("Megállapított halmozottan hátrányos helyzetű gyermekek és nagykorúvá vált gyermekek (fő)",Q!$A$1:$G$132,MATCH($BU8,Q!$A$1:$G$1,FALSE),FALSE),"n.a.") -> 0 | BY8: A nyári óvoda-bezárás időtartama (nap) | BZ8: n.a. | CC8: =Q!$J$1-1 -> 2022 | CD8: n.a. | CE8: =_xlfn.IFNA(VLOOKUP("Óvodai gyermekcsoportok (db)",Q!$A$1:$G$132,MATCH($CC8,Q!$A$1:$G$1,FALSE),FALSE),"n.a.") -> 4 | CF8: =_xlfn.IFNA(VLOOKUP("Óvodai férőhelyek (fő)",Q!$A$1:$G$132,MATCH($CC8,Q!$A$1:$G$1,FALSE),FALSE),"n.a.") -> 100 | CG8: =_xlfn.IFNA(VLOOKUP("Óvodai feladatellátási helyek (db)",Q!$A$1:$G$132,MATCH($CC8,Q!$A$1:$G$1,FALSE),FALSE),"n.a.") -> 1 | CH8: =_xlfn.IFNA(VLOOKUP("Óvodába beírt gyermekek (fő)",Q!$A$1:$G$132,MATCH($CC8,Q!$A$1:$G$1,FALSE),FALSE),"n.a.") -> 109 | CI8: =_xlfn.IFNA(VLOOKUP("Óvodai gyermekcsoportok a gyógypedagógiai nevelésben (db)",Q!$A$1:$G$132,MATCH($CC8,Q!$A$1:$G$1,FALSE),FALSE),"n.a.") -> 0 | CJ8: =_xlfn.IFNA(VLOOKUP("Gyógypedagógiai oktatásban részesülő óvodás gyermekek (integráltan oktatott sajátos nevelési igényű gyermekek nélkül) (fő)",Q!$A$1:$G$132,MATCH($CC8,Q!$A$1:$G$1,FALSE),FALSE),"n.a.") -> 0 | CK8: =_xlfn.IFNA(VLOOKUP("Óvodába beírt gyermek, egy gyermekcsoportra (fő)",Q!$A$1:$G$132,MATCH($CC8,Q!$A$1:$G$1,FALSE),FALSE),"n.a.") -> 27.25 | CN8: =Q!$J$1-1 -> 2022 | CO8: =_xlfn.IFNA(VLOOKUP("Általános iskolai osztályok a gyógypedagógiai oktatásban (a nappali oktatásban) (db)",Q!$A$1:$G$132,MATCH($CN8,Q!$A$1:$G$1,FALSE),FALSE),"n.a.") -> 0 | CP8: =_xlfn.IFNA(VLOOKUP("Általános iskolai osztályok a nappali oktatásban (db)",Q!$A$1:$G$132,MATCH($CN8,Q!$A$1:$G$1,FALSE),FALSE),"n.a.") -> 8 | CQ8: =_xlfn.IFNA(VLOOKUP("Általános iskolai feladatellátási helyek (db)",Q!$A$1:$G$132,MATCH($CN8,Q!$A$1:$G$1,FALSE),FALSE),"n.a.") -> 1 | CR8: =_xlfn.IFNA(VLOOKUP("Egy osztályra jutó nappali tagozatos tanulók az általános iskolákban (fő)",Q!$A$1:$G$132,MATCH($CN8,Q!$A$1:$G$1,FALSE),FALSE),"n.a.") -> 19.38 | CS8: =_xlfn.IFNA(VLOOKUP("Más településről bejáró általános iskolai tanulók aránya a nappali oktatásban (százalék)",Q!$A$1:$G$132,MATCH($CN8,Q!$A$1:$G$1,FALSE),FALSE),"n.a.") -> 7.74 | CU8: =Q!$J$1-1 -> 2022 | CV8: =_xlfn.IFNA(VLOOKUP("A 8. évfolyamot eredményesen befejezte a nappali oktatásban (fő)",Q!$A$1:$G$132,MATCH($CN8,Q!$A$1:$G$1,FALSE),FALSE),"n.a.") -> 15 | CY8: =Q!$J$1-1 -> 2022 | CZ8: n.a. | DA8: n.a. | DB8: n.a. | DC8: =_xlfn.IFNA(VLOOKUP("Szünidei étkeztetésben részesült gyermekek (fő)",Q!$A$1:$G$132,MATCH($CN8,Q!$A$1:$G$1,FALSE),FALSE),"n.a.") -> 0
B9: Forrás: TeIR, KSH Tstar | I9: =Q!$J$1 -> 2023 | J9: =_xlfn.IFNA(VLOOKUP("Védelembe vett gyermekek (2016-tól érvényes módszertan) (fő)",Q!$A$1:$G$132,MATCH($I9,Q!$A$1:$G$1,FALSE),FALSE),"n.a.") -> 7 | K9: =_xlfn.IFNA(VLOOKUP("Veszélyeztetett kiskorú gyermekek (2016-tól érvényes módszertan) (fő)",Q!$A$1:$G$132,MATCH($I9,Q!$A$1:$G$1,FALSE),FALSE),"n.a.") -> 1 | M9: =Q!$J$1 -> 2023 | N9: =_xlfn.IFNA(VLOOKUP("Rendszeres gyermekvédelmi kedvezményben részesítettek havi átlagos létszáma (fő)",Q!$A$1:$G$132,MATCH($M9,Q!$A$1:$G$1,FALSE),FALSE),"n.a.") -> 0 | P9: =Q!$J$1 -> 2023 | Q9: =_xlfn.IFNA(VLOOKUP("Árvaellátásban részesülő férfiak (fő)",Q!$A$1:$G$132,MATCH($P9,Q!$A$1:$G$1,FALSE),FALSE),"n.a.") -> 4 | R9: =_xlfn.IFNA(VLOOKUP("Árvaellátásban részesülő nők (fő)",Q!$A$1:$G$132,MATCH($P9,Q!$A$1:$G$1,FALSE),FALSE),"n.a.") -> 8 | S9: 12 | U9: =Q!$J$1 -> 2023 | V9: n.a. | W9: n.a. | X9: n.a. | Y9: n.a. | Z9: n.a. | AA9: n.a. | AC9: =Q!$J$1 -> 2023 | AD9: =_xlfn.IFNA(VLOOKUP("Betöltött védőnői álláshelyek (db)",Q!$A$1:$G$132,MATCH($AC9,Q!$A$1:$G$1,FALSE),FALSE),"n.a.") -> n.a. | AE9: n.a. | AF9: =IF(ISERR((AE9/AD9)),"-",(AE9/AD9)) -> - | AH9: =Q!$J$1 -> 2023 | AI9: ='3. Mélyszegények-Romák'!CA9 -> 1 | AJ9: ='3. Mélyszegények-Romák'!CB9 -> 0 | AK9: ='3. Mélyszegények-Romák'!CC9 -> 0 | AL9: n.a. | AM9: n.a. | AO9: =Q!$J$1 -> 2023 | AP9: n.a. | AQ9: n.a. | AS9: =Q!$J$1 -> 2023 | AT9: =_xlfn.IFNA(VLOOKUP("Működő bölcsődei férőhelyek a munkahelyi bölcsődékben (2017-tól érvényes módszertan) (db)",Q!$A$1:$G$132,MATCH($AS9,Q!$A$1:$G$1,FALSE),FALSE),"n.a.") -> 0 | AU9: =_xlfn.IFNA(VLOOKUP("Bölcsődébe beíratott gyermekek a munkahelyi bölcsődékben (2017-tól érvényes módszertan) (fő)",Q!$A$1:$G$132,MATCH($AS9,Q!$A$1:$G$1,FALSE),FALSE),"n.a.") -> 0 | AV9: =_xlfn.IFNA(VLOOKUP("Működő bölcsődei férőhelyek a családi bölcsődékben (2017-tól érvényes módszertan) (db)",Q!$A$1:$G$132,MATCH($AS9,Q!$A$1:$G$1,FALSE),FALSE),"n.a.") -> 0 | AW9: =_xlfn.IFNA(VLOOKUP("Bölcsődébe beíratott gyermekek a családi bölcsődékben (2017-tól érvényes módszertan) (fő)",Q!$A$1:$G$132,MATCH($AS9,Q!$A$1:$G$1,FALSE),FALSE),"n.a.") -> 0 | AX9: =_xlfn.IFNA(VLOOKUP("Működő bölcsődei férőhelyek a mini bölcsődékben (2017-tól érvényes módszertan) (db)",Q!$A$1:$G$132,MATCH($AS9,Q!$A$1:$G$1,FALSE),FALSE),"n.a.") -> 8 | AY9: =_xlfn.IFNA(VLOOKUP("Bölcsődébe beíratott gyermekek a mini bölcsődékben (2017-tól érvényes módszertan) (fő)",Q!$A$1:$G$132,MATCH($AS9,Q!$A$1:$G$1,FALSE),FALSE),"n.a.") -> 8 | AZ9: =_xlfn.IFNA(VLOOKUP("Működő bölcsődei férőhelyek (2017-tól érvényes módszertan) (db)",Q!$A$1:$G$132,MATCH($AS9,Q!$A$1:$G$1,FALSE),FALSE),"n.a.") -> 0 | BA9: =_xlfn.IFNA(VLOOKUP("Bölcsődébe beírt gyermekek (2017-tól érvényes módszertan) (fő)",Q!$A$1:$G$132,MATCH($AS9,Q!$A$1:$G$1,FALSE),FALSE),"n.a.") -> 0 | BC9: =Q!$J$1 -> 2023 | BD9: =_xlfn.IFNA(VLOOKUP("Óvodába beírt gyermekek (fő)",Q!$A$1:$G$132,MATCH($BC9,Q!$A$1:$G$1,FALSE),FALSE),"n.a.") -> 120 | BE9: =_xlfn.IFNA(VLOOKUP("Hátrányos helyzetű óvodás gyermekek (fő)",Q!$A$1:$G$132,MATCH($BC9,Q!$A$1:$G$1,FALSE),FALSE),"n.a.") -> 0 | BF9: =_xlfn.IFNA(VLOOKUP("Hátrányos helyzetű óvodás gyermekek aránya (százalék)",Q!$A$1:$G$132,MATCH($BC9,Q!$A$1:$G$1,FALSE),FALSE),"n.a.") -> 0 | BH9: =Q!$J$1 -> 2023 | BI9: n.a. | BJ9: =_xlfn.IFNA(VLOOKUP("Hátrányos helyzetű általános iskolai tanulók a nappali oktatásban (fő)",Q!$A$1:$G$132,MATCH($BC9,Q!$A$1:$G$1,FALSE),FALSE),"n.a.") -> 0 | BK9: =_xlfn.IFNA(VLOOKUP("Hátrányos helyzetű általános iskolai tanulók aránya a nappali oktatásban (százalék)",Q!$A$1:$G$132,MATCH($BC9,Q!$A$1:$G$1,FALSE),FALSE),"n.a.") -> 0 | BM9: =Q!$J$1 -> 2023 | BN9: =_xlfn.IFNA(VLOOKUP("Hátrányos helyzetű gimnáziumi tanulók a nappali oktatásban (fő)",Q!$A$1:$G$132,MATCH($BC9,Q!$A$1:$G$1,FALSE),FALSE),"n.a.") -> 0 | BO9: =_xlfn.IFNA(VLOOKUP("Hátrányos helyzetű gimnáziumi tanulók aránya a nappali oktatásban (százalék)",Q!$A$1:$G$132,MATCH($BC9,Q!$A$1:$G$1,FALSE),FALSE),"n.a.") -> n.a. | BP9: =_xlfn.IFNA(VLOOKUP("Hátrányos helyzetű szakközépiskolai, szakiskolai és készségfejlesztő iskolai tanuló a nappali oktatásban (fő)",Q!$A$1:$G$132,MATCH($BC9,Q!$A$1:$G$1,FALSE),FALSE),"n.a.") -> n.a. | BQ9: =_xlfn.IFNA(VLOOKUP("Hátrányos helyzetű szakközépiskolai, szakiskolai és készségfejlesztő iskolai tanulók aránya a nappali oktatásban (százalék)",Q!$A$1:$G$132,MATCH($BC9,Q!$A$1:$G$1,FALSE),FALSE),"n.a.") -> n.a. | BR9: =_xlfn.IFNA(VLOOKUP("Hátrányos helyzetű szakgimnáziumi tanulók a nappali oktatásban (fő)",Q!$A$1:$G$132,MATCH($BC9,Q!$A$1:$G$1,FALSE),FALSE),"n.a.") -> n.a. | BS9: =_xlfn.IFNA(VLOOKUP("Hátrányos helyzetű szakgimnáziumi tanulók aránya a nappali oktatásban (százalék)",Q!$A$1:$G$132,MATCH($BC9,Q!$A$1:$G$1,FALSE),FALSE),"n.a.") -> n.a. | BU9: =Q!$J$1 -> 2023 | BV9: =_xlfn.IFNA(VLOOKUP("Megállapított hátrányos helyzetű gyermekek és nagykorúvá vált gyermekek (fő)",Q!$A$1:$G$132,MATCH($BU9,Q!$A$1:$G$1,FALSE),FALSE),"n.a.") -> 0 | BW9: =_xlfn.IFNA(VLOOKUP("Megállapított halmozottan hátrányos helyzetű gyermekek és nagykorúvá vált gyermekek (fő)",Q!$A$1:$G$132,MATCH($BU9,Q!$A$1:$G$1,FALSE),FALSE),"n.a.") -> 0 | BY9: Személyi feltételek | BZ9: Fő | CA9: Hiányzó létszám | CC9: =Q!$J$1 -> 2023 | CD9: n.a. | CE9: =_xlfn.IFNA(VLOOKUP("Óvodai gyermekcsoportok (db)",Q!$A$1:$G$132,MATCH($CC9,Q!$A$1:$G$1,FALSE),FALSE),"n.a.") -> 4 | CF9: =_xlfn.IFNA(VLOOKUP("Óvodai férőhelyek (fő)",Q!$A$1:$G$132,MATCH($CC9,Q!$A$1:$G$1,FALSE),FALSE),"n.a.") -> 120 | CG9: =_xlfn.IFNA(VLOOKUP("Óvodai feladatellátási helyek (db)",Q!$A$1:$G$132,MATCH($CC9,Q!$A$1:$G$1,FALSE),FALSE),"n.a.") -> 1 | CH9: =_xlfn.IFNA(VLOOKUP("Óvodába beírt gyermekek (fő)",Q!$A$1:$G$132,MATCH($CC9,Q!$A$1:$G$1,FALSE),FALSE),"n.a.") -> 120 | CI9: =_xlfn.IFNA(VLOOKUP("Óvodai gyermekcsoportok a gyógypedagógiai nevelésben (db)",Q!$A$1:$G$132,MATCH($CC9,Q!$A$1:$G$1,FALSE),FALSE),"n.a.") -> 0 | CJ9: =_xlfn.IFNA(VLOOKUP("Gyógypedagógiai oktatásban részesülő óvodás gyermekek (integráltan oktatott sajátos nevelési igényű gyermekek nélkül) (fő)",Q!$A$1:$G$132,MATCH($CC9,Q!$A$1:$G$1,FALSE),FALSE),"n.a.") -> 0 | CK9: =_xlfn.IFNA(VLOOKUP("Óvodába beírt gyermek, egy gyermekcsoportra (fő)",Q!$A$1:$G$132,MATCH($CC9,Q!$A$1:$G$1,FALSE),FALSE),"n.a.") -> 30 | CN9: =Q!$J$1 -> 2023 | CO9: =_xlfn.IFNA(VLOOKUP("Általános iskolai osztályok a gyógypedagógiai oktatásban (a nappali oktatásban) (db)",Q!$A$1:$G$132,MATCH($CN9,Q!$A$1:$G$1,FALSE),FALSE),"n.a.") -> 0 | CP9: =_xlfn.IFNA(VLOOKUP("Általános iskolai osztályok a nappali oktatásban (db)",Q!$A$1:$G$132,MATCH($CN9,Q!$A$1:$G$1,FALSE),FALSE),"n.a.") -> 8 | CQ9: =_xlfn.IFNA(VLOOKUP("Általános iskolai feladatellátási helyek (db)",Q!$A$1:$G$132,MATCH($CN9,Q!$A$1:$G$1,FALSE),FALSE),"n.a.") -> 1 | CR9: =_xlfn.IFNA(VLOOKUP("Egy osztályra jutó nappali tagozatos tanulók az általános iskolákban (fő)",Q!$A$1:$G$132,MATCH($CN9,Q!$A$1:$G$1,FALSE),FALSE),"n.a.") -> 18.88 | CS9: =_xlfn.IFNA(VLOOKUP("Más településről bejáró általános iskolai tanulók aránya a nappali oktatásban (százalék)",Q!$A$1:$G$132,MATCH($CN9,Q!$A$1:$G$1,FALSE),FALSE),"n.a.") -> 5.3 | CU9: =Q!$J$1 -> 2023 | CV9: =_xlfn.IFNA(VLOOKUP("A 8. évfolyamot eredményesen befejezte a nappali oktatásban (fő)",Q!$A$1:$G$132,MATCH($CN9,Q!$A$1:$G$1,FALSE),FALSE),"n.a.") -> 19 | CY9: =Q!$J$1 -> 2023 | CZ9: n.a. | DA9: n.a. | DB9: n.a. | DC9: =_xlfn.IFNA(VLOOKUP("Szünidei étkeztetésben részesült gyermekek (fő)",Q!$A$1:$G$132,MATCH($CN9,Q!$A$1:$G$1,FALSE),FALSE),"n.a.") -> 0
I10: Forrás: TeIR, KSH Tstar | M10: Forrás: TeIR, KSH Tstar, Önkormányzati adatok | P10: Forrás: TeIR, KSH Tstar, Önkormányzati adatok | U10: Forrás: TeIR, KSH Tstar, Önkormányzati adatok | AC10: Forrás: TeIR, KSH Tstar, Önkormányzati adatok | AH10: Forrás: TeIR, KSH Tstar, Önkormányzati adatok | AO10: Forrás: Önkormányzati és intézményi adatgyűjtés | AT10: Forrás: TeIR, KSH Tstar | BC10: Forrás: TeIR, KSH Tstar | BH10: Forrás: TeIR, KSH Tstar, Önkormányzati és intézményi adatgyűjtés | BM10: Forrás: TeIR, KSH Tstar | BU10: Forrás: TeIR, KSH Tstar | BY10: Óvodapedagógusok száma | BZ10: n.a. | CA10: n.a. | CC10: Forrás: TeIR, KSH Tstar, Önkormányzati adatgyűjtés | CN10: Forrás: TeIR, KSH Tstar | CU10: Forrás: TeIR, KSH Tstar | CY10: Forrás: TeIR, KSH Tstar, Önkormányzati és intézményfenntartói adatok
BY11: Ebből diplomás óvodapedagógusok száma | BZ11: n.a. | CA11: n.a.
BY12: Gyógypedagógusok létszáma | BZ12: n.a. | CA12: n.a.
BY13: Dajka/gondozónő | BZ13: n.a. | CA13: n.a.
BY14: Kisegítő személyzet | BZ14: n.a. | CA14: n.a.
BY15: Forrás: Önkormányzati, intézményi adatgyűjtés

Sheet 5. Nők
B1: 5.1.1. számú táblázat - Munkanélküliségi ráta nemek szerint (a 3.2.1. táblával azonos) | G1: 5.1.2. számú tábla - A 180 napnál hosszabb ideje nyilvántartott álláskeresők (a 3.2.3. táblával azonos) | K1: 5.1.3. számú táblázat - Pályakezdő álláskeresők száma (a 3.2.6. táblával azonos) | O1: 5. 2. 1. számú táblázat – Védőnői álláshelyek száma (a 4.3.1. táblával azonos) | T1: 5.2.2. a) Bölcsődék és bölcsődébe beíratott gyermekek száma (4.3.3. a.) számú táblázatból | X1: 5.2.2. b) Bölcsődék és bölcsődébe beíratott gyermekek száma (4.3.3. b.) számú táblázatból
B2: Év | C2: Nyilvántartott álláskeresők aránya az állandó népességben a 15-64 évesek körében | G2: Év | H2: 180 napnál hosszabb ideje regisztrált munkanélküliek aránya (TS 057) | I2: Nők aránya a 180 napon túli nyilvántartott álláskeresőkön belül (TS 058) | K2: Év | L2: Nyilvántartott álláskeresők száma (TS 052) | M2: Nyilvántartott pályakezdő álláskeresők száma (TS 053) | O2: Év | P2: Betöltött védőnői álláshelyek száma (TS 109) | Q2: 0-3 év közötti gyermekek száma | R2: Átlagos gyermekszám védőnőnként | T2: Év | U2: Működő, önkormányzati bölcsődei férőhelyek száma | V2: Önkormányzati bölcsődébe beírt gyerekek száma | X2: Év | Y2: Működő munkahelyi bölcsődei férőhelyek száma (TS 126) | Z2: Munkahelyi bölcsődébe beírt gyerekek száma (TS 122) | AA2: Működő családi bölcsödei férőhelyek száma (TS 125) | AB2: Családi bölcsődébe beírt gyerekek száma (TS 121) | AC2: Működő mini bölcsődei férőhelyek száma (TS 127) | AD2: Mini bölcsődébe beírt gyerekek száma (TS 123) | AE2: Működő (összes) bölcsődei férőhelyek száma (TS 124) | AF2: Bölcsődébe (összes) beírt gyermekek száma (TS 120)
C3: Férfiak aránya (TS 033) | D3: Nők aránya (TS 034) | E3: Összesen | L3: fő | M3: Fő | P3: db | Q3: fő | R3: fő | U3: db | V3: Fő | Y3: db | Z3: Fő | AA3: db | AB3: Fő | AC3: db | AD3: Fő | AE3: db | AF3: Fő
C4: % | D4: % | E4: % | H4: % | I4: % | K4: =$B5 -> 2018 | L4: ='3. Mélyszegények-Romák'!AK4 -> 17 | M4: ='3. Mélyszegények-Romák'!AL4 -> 0 | O4: =$B5 -> 2018 | P4: ='4. Gyermekek'!AD4 -> 1 | Q4: ='4. Gyermekek'!AE4 -> n.a. | R4: ='4. Gyermekek'!AF4 -> - | T4: =$B5 -> 2018 | U4: ='4. Gyermekek'!AP4 -> n.a. | V4: ='4. Gyermekek'!AQ4 -> n.a. | X4: =$B5 -> 2018 | Y4: ='4. Gyermekek'!AT4 -> 0 | Z4: ='4. Gyermekek'!AU4 -> 0 | AA4: ='4. Gyermekek'!AV4 -> 0 | AB4: ='4. Gyermekek'!AW4 -> 0 | AC4: ='4. Gyermekek'!AX4 -> 0 | AD4: ='4. Gyermekek'!AY4 -> 0 | AE4: ='4. Gyermekek'!AZ4 -> 0 | AF4: ='4. Gyermekek'!BA4 -> 0
B5: =Q!$J$1-5 -> 2018 | C5: ='3. Mélyszegények-Romák'!F4 -> 0.95 | D5: ='3. Mélyszegények-Romák'!G4 -> 1.33 | E5: ='3. Mélyszegények-Romák'!H4 -> 0.0114 | G5: =$B5 -> 2018 | H5: ='3. Mélyszegények-Romák'!T5 -> 41.18 | I5: ='3. Mélyszegények-Romák'!U5 -> 57.14 | K5: =$B6 -> 2019 | L5: ='3. Mélyszegények-Romák'!AK5 -> 18 | M5: ='3. Mélyszegények-Romák'!AL5 -> 0 | O5: =$B6 -> 2019 | P5: ='4. Gyermekek'!AD5 -> 1 | Q5: ='4. Gyermekek'!AE5 -> n.a. | R5: ='4. Gyermekek'!AF5 -> - | T5: =$B6 -> 2019 | U5: ='4. Gyermekek'!AP5 -> n.a. | V5: ='4. Gyermekek'!AQ5 -> n.a. | X5: =$B6 -> 2019 | Y5: ='4. Gyermekek'!AT5 -> 0 | Z5: ='4. Gyermekek'!AU5 -> 0 | AA5: ='4. Gyermekek'!AV5 -> 0 | AB5: ='4. Gyermekek'!AW5 -> 0 | AC5: ='4. Gyermekek'!AX5 -> 7 | AD5: ='4. Gyermekek'!AY5 -> 7 | AE5: ='4. Gyermekek'!AZ5 -> 0 | AF5: ='4. Gyermekek'!BA5 -> 0
B6: =Q!$J$1-4 -> 2019 | C6: ='3. Mélyszegények-Romák'!F5 -> 1.19 | D6: ='3. Mélyszegények-Romák'!G5 -> 1.16 | E6: ='3. Mélyszegények-Romák'!H5 -> 0.01175 | G6: =$B6 -> 2019 | H6: ='3. Mélyszegények-Romák'!T6 -> 27.78 | I6: ='3. Mélyszegények-Romák'!U6 -> 60 | K6: 2020 | L6: ='3. Mélyszegények-Romák'!AK6 -> 26 | M6: ='3. Mélyszegények-Romák'!AL6 -> 1 | O6: 2020 | P6: ='4. Gyermekek'!AD6 -> 1 | Q6: ='4. Gyermekek'!AE6 -> n.a. | R6: ='4. Gyermekek'!AF6 -> - | T6: 2020 | U6: ='4. Gyermekek'!AP6 -> n.a. | V6: ='4. Gyermekek'!AQ6 -> n.a. | X6: 2020 | Y6: ='4. Gyermekek'!AT6 -> 0 | Z6: ='4. Gyermekek'!AU6 -> 0 | AA6: ='4. Gyermekek'!AV6 -> 0 | AB6: ='4. Gyermekek'!AW6 -> 0 | AC6: ='4. Gyermekek'!AX6 -> 8 | AD6: ='4. Gyermekek'!AY6 -> 8 | AE6: ='4. Gyermekek'!AZ6 -> 0 | AF6: ='4. Gyermekek'!BA6 -> 0
B7: =Q!$J$1-3 -> 2020 | C7: ='3. Mélyszegények-Romák'!F6 -> 0.86 | D7: ='3. Mélyszegények-Romák'!G6 -> 2.31 | E7: ='3. Mélyszegények-Romák'!H6 -> 0.01585 | G7: 2020 | H7: ='3. Mélyszegények-Romák'!T7 -> 34.62 | I7: ='3. Mélyszegények-Romák'!U7 -> 66.67 | K7: 2021 | L7: ='3. Mélyszegények-Romák'!AK7 -> 13 | M7: ='3. Mélyszegények-Romák'!AL7 -> 0 | O7: 2021 | P7: ='4. Gyermekek'!AD7 -> 1 | Q7: ='4. Gyermekek'!AE7 -> n.a. | R7: ='4. Gyermekek'!AF7 -> - | T7: 2021 | U7: ='4. Gyermekek'!AP7 -> n.a. | V7: ='4. Gyermekek'!AQ7 -> n.a. | X7: 2021 | Y7: ='4. Gyermekek'!AT7 -> 0 | Z7: ='4. Gyermekek'!AU7 -> 0 | AA7: ='4. Gyermekek'!AV7 -> 0 | AB7: ='4. Gyermekek'!AW7 -> 0 | AC7: ='4. Gyermekek'!AX7 -> 8 | AD7: ='4. Gyermekek'!AY7 -> 8 | AE7: ='4. Gyermekek'!AZ7 -> 0 | AF7: ='4. Gyermekek'!BA7 -> 0
B8: =Q!$J$1-2 -> 2021 | C8: ='3. Mélyszegények-Romák'!F7 -> 0.48 | D8: ='3. Mélyszegények-Romák'!G7 -> 1.05 | E8: ='3. Mélyszegények-Romák'!H7 -> 0.00765 | G8: 2021 | H8: ='3. Mélyszegények-Romák'!T8 -> 30.77 | I8: ='3. Mélyszegények-Romák'!U8 -> 75 | K8: 2022 | L8: ='3. Mélyszegények-Romák'!AK8 -> 18 | M8: ='3. Mélyszegények-Romák'!AL8 -> 0 | O8: 2022 | P8: ='4. Gyermekek'!AD8 -> 1 | Q8: ='4. Gyermekek'!AE8 -> n.a. | R8: ='4. Gyermekek'!AF8 -> - | T8: 2022 | U8: ='4. Gyermekek'!AP8 -> n.a. | V8: ='4. Gyermekek'!AQ8 -> n.a. | X8: 2022 | Y8: ='4. Gyermekek'!AT8 -> 0 | Z8: ='4. Gyermekek'!AU8 -> 0 | AA8: ='4. Gyermekek'!AV8 -> 0 | AB8: ='4. Gyermekek'!AW8 -> 0 | AC8: ='4. Gyermekek'!AX8 -> 8 | AD8: ='4. Gyermekek'!AY8 -> 8 | AE8: ='4. Gyermekek'!AZ8 -> 0 | AF8: ='4. Gyermekek'!BA8 -> 0
B9: =Q!$J$1-1 -> 2022 | C9: ='3. Mélyszegények-Romák'!F8 -> 1.03 | D9: ='3. Mélyszegények-Romák'!G8 -> 1 | E9: ='3. Mélyszegények-Romák'!H8 -> 0.01015 | G9: 2022 | H9: ='3. Mélyszegények-Romák'!T9 -> 22.22 | I9: ='3. Mélyszegények-Romák'!U9 -> 75 | K9: 2023 | L9: ='3. Mélyszegények-Romák'!AK9 -> 26 | M9: ='3. Mélyszegények-Romák'!AL9 -> 0 | O9: 2023 | P9: ='4. Gyermekek'!AD9 -> n.a. | Q9: ='4. Gyermekek'!AE9 -> n.a. | R9: ='4. Gyermekek'!AF9 -> - | T9: 2023 | U9: ='4. Gyermekek'!AP9 -> n.a. | V9: ='4. Gyermekek'!AQ9 -> n.a. | X9: 2023 | Y9: ='4. Gyermekek'!AT9 -> 0 | Z9: ='4. Gyermekek'!AU9 -> 0 | AA9: ='4. Gyermekek'!AV9 -> 0 | AB9: ='4. Gyermekek'!AW9 -> 0 | AC9: ='4. Gyermekek'!AX9 -> 8 | AD9: ='4. Gyermekek'!AY9 -> 8 | AE9: ='4. Gyermekek'!AZ9 -> 0 | AF9: ='4. Gyermekek'!BA9 -> 0
B10: =Q!$J$1 -> 2023 | C10: ='3. Mélyszegények-Romák'!F9 -> 1.47 | D10: ='3. Mélyszegények-Romák'!G9 -> 1.41 | E10: ='3. Mélyszegények-Romák'!H9 -> 0.0144 | G10: 2023 | H10: ='3. Mélyszegények-Romák'!T10 -> 19.23 | I10: ='3. Mélyszegények-Romák'!U10 -> 20 | K10: Forrás: TeIR, Nemzeti Munkaügyi Hivatal | O10: Forrás: TeIR, KSH Tstar, Önkormányzati adatok | T10: Forrás: Önkormányzati és intézményi adatgyűjtés | Y10: Forrás: TeIR, KSH Tstar
B11: Forrás: TeIR, Nemzeti Munkaügyi Hivatal | G11: Forrás: TeIR, Nemzeti Munkaügyi Hivatal

Sheet 6. Idősek
B1: 6.1. számú táblázat - Öregedési index (3. táblával azonos) | G1: 6.1.1. számú táblázat – Nyugdíjban, ellátásban, járadékban és egyéb járandóságban részesülők száma | L1: 6.1.2. számú táblázat - Nyugdíjszerű ellátások | U1: 6.2. számú táblázat - Hátrányos megkülönböztetés a foglalkoztatás terén (a 3.2.2. táblázatból) | AD1: 6.3. számú táblázat – Nyugdíjban, ellátásban, járadékban és egyéb járandóságban részesülők száma (Megegyezik a 6.1.1-es táblázattal) | AJ1: 6.3.1. számú táblázat - 65 évnél idősebb népesség és nappali ellátásban részesülő időskorúak száma
B2: Év | C2: 65 év feletti állandó lakosok száma (fő) (TS 026 és TS 028 összesen) | D2: 0-14 éves korú állandó lakosok száma (fő) (TS 010 és TS 012 összesen) | E2: Öregedési index % (TS 030) | G2: Év | H2: Nyugdíjban, ellátásban, járadékban és egyéb járandóságban részesülő férfiak száma (TS 063) | I2: Nyugdíjban, ellátásban, járadékban és egyéb járandóságban részesülő nők száma (TS 064) | J2: Összes nyugdíjas | L2: Év | M2: Életkoron alapuló ellátásban részesülő férfiak száma (TS 067) | N2: Életkoron alapuló ellátásban részesülő nők száma (TS 068) | O2: Öregségi nyugdíjban részesülő férfiak száma (TS 069) | P2: Öregségi nyugdíjban részesülő nők száma (TS 070) | Q2: Özvegyi és szülői nyugdíjban részesülő férfiak száma (TS 071) | R2: Özvegyi és szülői nyugdíjban részesülő nők száma (TS 072) | S2: Időskorúak járadékában részesítettek havi átlagos száma (fő) (TS 134) | U2: Nyilvántartott álláskeresők száma összesen | V2: Év | W2: ='3. Mélyszegények-Romák'!L2 -> 2018 | X2: ='3. Mélyszegények-Romák'!M2 -> 2019 | Y2: ='3. Mélyszegények-Romák'!N2 -> 2020 | Z2: ='3. Mélyszegények-Romák'!O2 -> 2021 | AA2: ='3. Mélyszegények-Romák'!P2 -> 2022 | AB2: ='3. Mélyszegények-Romák'!Q2 -> 2023 | AD2: Év | AE2: Nyugdíjban, ellátásban, járadékban és egyéb járandóságban részesülő férfiak száma (TS 063) | AF2: Nyugdíjban, ellátásban, járadékban és egyéb járandóságban részesülő nők száma (TS 064) | AG2: Összes nyugdíjas | AJ2: Év | AK2: 65 év feletti lakosság száma (férfiak TS 026, nők TS 028) | AL2: Nappali ellátásban részesülő időskorúak száma (TS 129) | AM2: Házi segítségnyújtásban részesülők száma (TS 130) | AN2: Szociális étkeztetésben részesülők száma (TS 131)
B3: =Q!$J$1-5 -> 2018 | C3: ='Település Bemutatása - Népesség'!O3 -> 327 | D3: ='Település Bemutatása - Népesség'!P3 -> 346 | E3: ='Település Bemutatása - Népesség'!Q3 -> 0.9450867052 | G3: =$B3 -> 2018 | H3: =_xlfn.IFNA(VLOOKUP("Nyugdíjban, ellátásban, járadékban és egyéb járandóságban részesülő férfiak (fő)",Q!$A$1:$G$132,MATCH($G3,Q!$A$1:$G$1,FALSE),FALSE),"n.a.") -> 179 | I3: =_xlfn.IFNA(VLOOKUP("Nyugdíjban, ellátásban, járadékban és egyéb járandóságban részesülő nők (fő)",Q!$A$1:$G$132,MATCH($G3,Q!$A$1:$G$1,FALSE),FALSE),"n.a.") -> 300 | J3: =IF(ISERR((H3+I3)*1),"-",(H3+I3)*1) -> 479 | L3: =$B3 -> 2018 | M3: =_xlfn.IFNA(VLOOKUP("Életkoron alapuló ellátásban részesülő férfiak (fő)",Q!$A$1:$G$132,MATCH($L3,Q!$A$1:$G$1,FALSE),FALSE),"n.a.") -> 11 | N3: =_xlfn.IFNA(VLOOKUP("Életkoron alapuló ellátásban részesülő nők (fő)",Q!$A$1:$G$132,MATCH($L3,Q!$A$1:$G$1,FALSE),FALSE),"n.a.") -> 2 | O3: =_xlfn.IFNA(VLOOKUP("Öregségi nyugdíjban részesülő férfiak (fő)",Q!$A$1:$G$132,MATCH($L3,Q!$A$1:$G$1,FALSE),FALSE),"n.a.") -> 139 | P3: =_xlfn.IFNA(VLOOKUP("Öregségi nyugdíjban részesülő nők (fő)",Q!$A$1:$G$132,MATCH($L3,Q!$A$1:$G$1,FALSE),FALSE),"n.a.") -> 257 | Q3: =_xlfn.IFNA(VLOOKUP("Özvegyi és szülői nyugdíjban részesülő férfiak (fő)",Q!$A$1:$G$132,MATCH($L3,Q!$A$1:$G$1,FALSE),FALSE),"n.a.") -> 1 | R3: =_xlfn.IFNA(VLOOKUP("Özvegyi és szülői nyugdíjban részesülő nők (fő)",Q!$A$1:$G$132,MATCH($L3,Q!$A$1:$G$1,FALSE),FALSE),"n.a.") -> 4 | S3: =_xlfn.IFNA(VLOOKUP("Időskorúak járadékában részesítettek havi átlagos létszáma (fő)",Q!$A$1:$G$132,MATCH($L3,Q!$A$1:$G$1,FALSE),FALSE),"n.a.") -> 0 | V3: Fő összesen | W3: ='3. Mélyszegények-Romák'!L3 -> 17 | X3: ='3. Mélyszegények-Romák'!M3 -> 18 | Y3: ='3. Mélyszegények-Romák'!N3 -> 26 | Z3: ='3. Mélyszegények-Romák'!O3 -> 13 | AA3: ='3. Mélyszegények-Romák'!P3 -> 18 | AB3: ='3. Mélyszegények-Romák'!Q3 -> 26 | AD3: =$B3 -> 2018 | AE3: =H3 -> 179 | AF3: =I3 -> 300 | AG3: =J3 -> 479 | AK3: Fő | AL3: Fő | AM3: fő | AN3: fő
B4: =Q!$J$1-4 -> 2019 | C4: ='Település Bemutatása - Népesség'!O4 -> 354 | D4: ='Település Bemutatása - Népesség'!P4 -> 385 | E4: ='Település Bemutatása - Népesség'!Q4 -> 0.9194805195 | G4: =$B4 -> 2019 | H4: =_xlfn.IFNA(VLOOKUP("Nyugdíjban, ellátásban, járadékban és egyéb járandóságban részesülő férfiak (fő)",Q!$A$1:$G$132,MATCH($G4,Q!$A$1:$G$1,FALSE),FALSE),"n.a.") -> 184 | I4: =_xlfn.IFNA(VLOOKUP("Nyugdíjban, ellátásban, járadékban és egyéb járandóságban részesülő nők (fő)",Q!$A$1:$G$132,MATCH($G4,Q!$A$1:$G$1,FALSE),FALSE),"n.a.") -> 307 | J4: 491 | L4: =$B4 -> 2019 | M4: =_xlfn.IFNA(VLOOKUP("Életkoron alapuló ellátásban részesülő férfiak (fő)",Q!$A$1:$G$132,MATCH($L4,Q!$A$1:$G$1,FALSE),FALSE),"n.a.") -> 10 | N4: =_xlfn.IFNA(VLOOKUP("Életkoron alapuló ellátásban részesülő nők (fő)",Q!$A$1:$G$132,MATCH($L4,Q!$A$1:$G$1,FALSE),FALSE),"n.a.") -> 0 | O4: =_xlfn.IFNA(VLOOKUP("Öregségi nyugdíjban részesülő férfiak (fő)",Q!$A$1:$G$132,MATCH($L4,Q!$A$1:$G$1,FALSE),FALSE),"n.a.") -> 143 | P4: =_xlfn.IFNA(VLOOKUP("Öregségi nyugdíjban részesülő nők (fő)",Q!$A$1:$G$132,MATCH($L4,Q!$A$1:$G$1,FALSE),FALSE),"n.a.") -> 269 | Q4: =_xlfn.IFNA(VLOOKUP("Özvegyi és szülői nyugdíjban részesülő férfiak (fő)",Q!$A$1:$G$132,MATCH($L4,Q!$A$1:$G$1,FALSE),FALSE),"n.a.") -> 1 | R4: =_xlfn.IFNA(VLOOKUP("Özvegyi és szülői nyugdíjban részesülő nők (fő)",Q!$A$1:$G$132,MATCH($L4,Q!$A$1:$G$1,FALSE),FALSE),"n.a.") -> 4 | S4: =_xlfn.IFNA(VLOOKUP("Időskorúak járadékában részesítettek havi átlagos létszáma (fő)",Q!$A$1:$G$132,MATCH($L4,Q!$A$1:$G$1,FALSE),FALSE),"n.a.") -> 0 | U4: 41-45 év (TS 042) | V4: Fő | W4: ='3. Mélyszegények-Romák'!L14 -> 2 | X4: ='3. Mélyszegények-Romák'!M14 -> 2 | Y4: ='3. Mélyszegények-Romák'!N14 -> 3 | Z4: ='3. Mélyszegények-Romák'!O14 -> 1 | AA4: ='3. Mélyszegények-Romák'!P14 -> 2 | AB4: ='3. Mélyszegények-Romák'!Q14 -> 5 | AD4: =$B4 -> 2019 | AE4: =H4 -> 184 | AF4: 307 | AG4: 491 | AJ4: =$B3 -> 2018 | AK4: =C3 -> 327 | AL4: =_xlfn.IFNA(VLOOKUP("Idősek nappali ellátásában részesülők (fő)",Q!$A$1:$G$132,MATCH($AJ4,Q!$A$1:$G$1,FALSE),FALSE),"n.a.") -> 0 | AM4: =_xlfn.IFNA(VLOOKUP("Házi segítségnyújtásban részesülők (fő)",Q!$A$1:$G$132,MATCH($AJ4,Q!$A$1:$G$1,FALSE),FALSE),"n.a.") -> 1 | AN4: =_xlfn.IFNA(VLOOKUP("Szociális étkeztetésben részesülők (fő)",Q!$A$1:$G$132,MATCH($AJ4,Q!$A$1:$G$1,FALSE),FALSE),"n.a.") -> 22
B5: =Q!$J$1-3 -> 2020 | C5: ='Település Bemutatása - Népesség'!O5 -> 380 | D5: ='Település Bemutatása - Népesség'!P5 -> 439 | E5: ='Település Bemutatása - Népesség'!Q5 -> 0.8656036446 | G5: 2020 | H5: =_xlfn.IFNA(VLOOKUP("Nyugdíjban, ellátásban, járadékban és egyéb járandóságban részesülő férfiak (fő)",Q!$A$1:$G$132,MATCH($G5,Q!$A$1:$G$1,FALSE),FALSE),"n.a.") -> 187 | I5: =_xlfn.IFNA(VLOOKUP("Nyugdíjban, ellátásban, járadékban és egyéb járandóságban részesülő nők (fő)",Q!$A$1:$G$132,MATCH($G5,Q!$A$1:$G$1,FALSE),FALSE),"n.a.") -> 300 | J5: 487 | L5: 2020 | M5: =_xlfn.IFNA(VLOOKUP("Életkoron alapuló ellátásban részesülő férfiak (fő)",Q!$A$1:$G$132,MATCH($L5,Q!$A$1:$G$1,FALSE),FALSE),"n.a.") -> 9 | N5: =_xlfn.IFNA(VLOOKUP("Életkoron alapuló ellátásban részesülő nők (fő)",Q!$A$1:$G$132,MATCH($L5,Q!$A$1:$G$1,FALSE),FALSE),"n.a.") -> 0 | O5: =_xlfn.IFNA(VLOOKUP("Öregségi nyugdíjban részesülő férfiak (fő)",Q!$A$1:$G$132,MATCH($L5,Q!$A$1:$G$1,FALSE),FALSE),"n.a.") -> 145 | P5: =_xlfn.IFNA(VLOOKUP("Öregségi nyugdíjban részesülő nők (fő)",Q!$A$1:$G$132,MATCH($L5,Q!$A$1:$G$1,FALSE),FALSE),"n.a.") -> 261 | Q5: =_xlfn.IFNA(VLOOKUP("Özvegyi és szülői nyugdíjban részesülő férfiak (fő)",Q!$A$1:$G$132,MATCH($L5,Q!$A$1:$G$1,FALSE),FALSE),"n.a.") -> 2 | R5: =_xlfn.IFNA(VLOOKUP("Özvegyi és szülői nyugdíjban részesülő nők (fő)",Q!$A$1:$G$132,MATCH($L5,Q!$A$1:$G$1,FALSE),FALSE),"n.a.") -> 2 | S5: =_xlfn.IFNA(VLOOKUP("Időskorúak járadékában részesítettek havi átlagos létszáma (fő)",Q!$A$1:$G$132,MATCH($L5,Q!$A$1:$G$1,FALSE),FALSE),"n.a.") -> 0 | V5: % | W5: ='3. Mélyszegények-Romák'!L15 -> 0.1176470588 | X5: ='3. Mélyszegények-Romák'!M15 -> 0.1111111111 | Y5: ='3. Mélyszegények-Romák'!N15 -> 0.1153846154 | Z5: ='3. Mélyszegények-Romák'!O15 -> 0.07692307692 | AA5: ='3. Mélyszegények-Romák'!P15 -> 0.1111111111 | AB5: ='3. Mélyszegények-Romák'!Q15 -> 0.1923076923 | AD5: 2020 | AE5: 187 | AF5: 300 | AG5: 487 | AJ5: =$B4 -> 2019 | AK5: =C4 -> 354 | AL5: =_xlfn.IFNA(VLOOKUP("Idősek nappali ellátásában részesülők (fő)",Q!$A$1:$G$132,MATCH($AJ5,Q!$A$1:$G$1,FALSE),FALSE),"n.a.") -> 0 | AM5: =_xlfn.IFNA(VLOOKUP("Házi segítségnyújtásban részesülők (fő)",Q!$A$1:$G$132,MATCH($AJ5,Q!$A$1:$G$1,FALSE),FALSE),"n.a.") -> 1 | AN5: =_xlfn.IFNA(VLOOKUP("Szociális étkeztetésben részesülők (fő)",Q!$A$1:$G$132,MATCH($AJ5,Q!$A$1:$G$1,FALSE),FALSE),"n.a.") -> 25
B6: =Q!$J$1-2 -> 2021 | C6: ='Település Bemutatása - Népesség'!O6 -> 394 | D6: ='Település Bemutatása - Népesség'!P6 -> 476 | E6: ='Település Bemutatása - Népesség'!Q6 -> 0.8277310924 | G6: 2021 | H6: =_xlfn.IFNA(VLOOKUP("Nyugdíjban, ellátásban, járadékban és egyéb járandóságban részesülő férfiak (fő)",Q!$A$1:$G$132,MATCH($G6,Q!$A$1:$G$1,FALSE),FALSE),"n.a.") -> 186 | I6: =_xlfn.IFNA(VLOOKUP("Nyugdíjban, ellátásban, járadékban és egyéb járandóságban részesülő nők (fő)",Q!$A$1:$G$132,MATCH($G6,Q!$A$1:$G$1,FALSE),FALSE),"n.a.") -> 297 | J6: 483 | L6: 2021 | M6: =_xlfn.IFNA(VLOOKUP("Életkoron alapuló ellátásban részesülő férfiak (fő)",Q!$A$1:$G$132,MATCH($L6,Q!$A$1:$G$1,FALSE),FALSE),"n.a.") -> 10 | N6: =_xlfn.IFNA(VLOOKUP("Életkoron alapuló ellátásban részesülő nők (fő)",Q!$A$1:$G$132,MATCH($L6,Q!$A$1:$G$1,FALSE),FALSE),"n.a.") -> 0 | O6: =_xlfn.IFNA(VLOOKUP("Öregségi nyugdíjban részesülő férfiak (fő)",Q!$A$1:$G$132,MATCH($L6,Q!$A$1:$G$1,FALSE),FALSE),"n.a.") -> 145 | P6: =_xlfn.IFNA(VLOOKUP("Öregségi nyugdíjban részesülő nők (fő)",Q!$A$1:$G$132,MATCH($L6,Q!$A$1:$G$1,FALSE),FALSE),"n.a.") -> 260 | Q6: =_xlfn.IFNA(VLOOKUP("Özvegyi és szülői nyugdíjban részesülő férfiak (fő)",Q!$A$1:$G$132,MATCH($L6,Q!$A$1:$G$1,FALSE),FALSE),"n.a.") -> 0 | R6: =_xlfn.IFNA(VLOOKUP("Özvegyi és szülői nyugdíjban részesülő nők (fő)",Q!$A$1:$G$132,MATCH($L6,Q!$A$1:$G$1,FALSE),FALSE),"n.a.") -> 3 | S6: =_xlfn.IFNA(VLOOKUP("Időskorúak járadékában részesítettek havi átlagos létszáma (fő)",Q!$A$1:$G$132,MATCH($L6,Q!$A$1:$G$1,FALSE),FALSE),"n.a.") -> 0 | U6: 46-50 év (TS 043) | V6: Fő | W6: ='3. Mélyszegények-Romák'!L16 -> 0 | X6: ='3. Mélyszegények-Romák'!M16 -> 1 | Y6: ='3. Mélyszegények-Romák'!N16 -> 1 | Z6: ='3. Mélyszegények-Romák'!O16 -> 1 | AA6: ='3. Mélyszegények-Romák'!P16 -> 1 | AB6: ='3. Mélyszegények-Romák'!Q16 -> 2 | AD6: 2021 | AE6: 186 | AF6: 297 | AG6: 483 | AJ6: 2020 | AK6: 380 | AL6: =_xlfn.IFNA(VLOOKUP("Idősek nappali ellátásában részesülők (fő)",Q!$A$1:$G$132,MATCH($AJ6,Q!$A$1:$G$1,FALSE),FALSE),"n.a.") -> 0 | AM6: =_xlfn.IFNA(VLOOKUP("Házi segítségnyújtásban részesülők (fő)",Q!$A$1:$G$132,MATCH($AJ6,Q!$A$1:$G$1,FALSE),FALSE),"n.a.") -> 1 | AN6: =_xlfn.IFNA(VLOOKUP("Szociális étkeztetésben részesülők (fő)",Q!$A$1:$G$132,MATCH($AJ6,Q!$A$1:$G$1,FALSE),FALSE),"n.a.") -> 28
B7: =Q!$J$1-1 -> 2022 | C7: ='Település Bemutatása - Népesség'!O7 -> 407 | D7: ='Település Bemutatása - Népesség'!P7 -> 526 | E7: ='Település Bemutatása - Népesség'!Q7 -> 0.7737642586 | G7: 2022 | H7: =_xlfn.IFNA(VLOOKUP("Nyugdíjban, ellátásban, járadékban és egyéb járandóságban részesülő férfiak (fő)",Q!$A$1:$G$132,MATCH($G7,Q!$A$1:$G$1,FALSE),FALSE),"n.a.") -> 191 | I7: =_xlfn.IFNA(VLOOKUP("Nyugdíjban, ellátásban, járadékban és egyéb járandóságban részesülő nők (fő)",Q!$A$1:$G$132,MATCH($G7,Q!$A$1:$G$1,FALSE),FALSE),"n.a.") -> 291 | J7: 482 | L7: 2022 | M7: =_xlfn.IFNA(VLOOKUP("Életkoron alapuló ellátásban részesülő férfiak (fő)",Q!$A$1:$G$132,MATCH($L7,Q!$A$1:$G$1,FALSE),FALSE),"n.a.") -> 9 | N7: =_xlfn.IFNA(VLOOKUP("Életkoron alapuló ellátásban részesülő nők (fő)",Q!$A$1:$G$132,MATCH($L7,Q!$A$1:$G$1,FALSE),FALSE),"n.a.") -> 0 | O7: =_xlfn.IFNA(VLOOKUP("Öregségi nyugdíjban részesülő férfiak (fő)",Q!$A$1:$G$132,MATCH($L7,Q!$A$1:$G$1,FALSE),FALSE),"n.a.") -> 150 | P7: =_xlfn.IFNA(VLOOKUP("Öregségi nyugdíjban részesülő nők (fő)",Q!$A$1:$G$132,MATCH($L7,Q!$A$1:$G$1,FALSE),FALSE),"n.a.") -> 258 | Q7: =_xlfn.IFNA(VLOOKUP("Özvegyi és szülői nyugdíjban részesülő férfiak (fő)",Q!$A$1:$G$132,MATCH($L7,Q!$A$1:$G$1,FALSE),FALSE),"n.a.") -> 1 | R7: =_xlfn.IFNA(VLOOKUP("Özvegyi és szülői nyugdíjban részesülő nők (fő)",Q!$A$1:$G$132,MATCH($L7,Q!$A$1:$G$1,FALSE),FALSE),"n.a.") -> 2 | S7: =_xlfn.IFNA(VLOOKUP("Időskorúak járadékában részesítettek havi átlagos létszáma (fő)",Q!$A$1:$G$132,MATCH($L7,Q!$A$1:$G$1,FALSE),FALSE),"n.a.") -> 0 | V7: % | W7: ='3. Mélyszegények-Romák'!L17 -> 0 | X7: ='3. Mélyszegények-Romák'!M17 -> 0.05555555556 | Y7: ='3. Mélyszegények-Romák'!N17 -> 0.03846153846 | Z7: ='3. Mélyszegények-Romák'!O17 -> 0.07692307692 | AA7: ='3. Mélyszegények-Romák'!P17 -> 0.05555555556 | AB7: ='3. Mélyszegények-Romák'!Q17 -> 0.07692307692 | AD7: 2022 | AE7: 191 | AF7: 291 | AG7: 482 | AJ7: 2021 | AK7: 394 | AL7: =_xlfn.IFNA(VLOOKUP("Idősek nappali ellátásában részesülők (fő)",Q!$A$1:$G$132,MATCH($AJ7,Q!$A$1:$G$1,FALSE),FALSE),"n.a.") -> 0 | AM7: =_xlfn.IFNA(VLOOKUP("Házi segítségnyújtásban részesülők (fő)",Q!$A$1:$G$132,MATCH($AJ7,Q!$A$1:$G$1,FALSE),FALSE),"n.a.") -> 2 | AN7: =_xlfn.IFNA(VLOOKUP("Szociális étkeztetésben részesülők (fő)",Q!$A$1:$G$132,MATCH($AJ7,Q!$A$1:$G$1,FALSE),FALSE),"n.a.") -> 17
B8: =Q!$J$1 -> 2023 | C8: ='Település Bemutatása - Népesség'!O8 -> 406 | D8: ='Település Bemutatása - Népesség'!P8 -> 551 | E8: ='Település Bemutatása - Népesség'!Q8 -> 0.7368421053 | G8: 2023 | H8: =_xlfn.IFNA(VLOOKUP("Nyugdíjban, ellátásban, járadékban és egyéb járandóságban részesülő férfiak (fő)",Q!$A$1:$G$132,MATCH($G8,Q!$A$1:$G$1,FALSE),FALSE),"n.a.") -> 193 | I8: =_xlfn.IFNA(VLOOKUP("Nyugdíjban, ellátásban, járadékban és egyéb járandóságban részesülő nők (fő)",Q!$A$1:$G$132,MATCH($G8,Q!$A$1:$G$1,FALSE),FALSE),"n.a.") -> 287 | J8: 480 | L8: 2023 | M8: =_xlfn.IFNA(VLOOKUP("Életkoron alapuló ellátásban részesülő férfiak (fő)",Q!$A$1:$G$132,MATCH($L8,Q!$A$1:$G$1,FALSE),FALSE),"n.a.") -> 9 | N8: =_xlfn.IFNA(VLOOKUP("Életkoron alapuló ellátásban részesülő nők (fő)",Q!$A$1:$G$132,MATCH($L8,Q!$A$1:$G$1,FALSE),FALSE),"n.a.") -> 0 | O8: =_xlfn.IFNA(VLOOKUP("Öregségi nyugdíjban részesülő férfiak (fő)",Q!$A$1:$G$132,MATCH($L8,Q!$A$1:$G$1,FALSE),FALSE),"n.a.") -> 152 | P8: =_xlfn.IFNA(VLOOKUP("Öregségi nyugdíjban részesülő nők (fő)",Q!$A$1:$G$132,MATCH($L8,Q!$A$1:$G$1,FALSE),FALSE),"n.a.") -> 251 | Q8: =_xlfn.IFNA(VLOOKUP("Özvegyi és szülői nyugdíjban részesülő férfiak (fő)",Q!$A$1:$G$132,MATCH($L8,Q!$A$1:$G$1,FALSE),FALSE),"n.a.") -> 1 | R8: =_xlfn.IFNA(VLOOKUP("Özvegyi és szülői nyugdíjban részesülő nők (fő)",Q!$A$1:$G$132,MATCH($L8,Q!$A$1:$G$1,FALSE),FALSE),"n.a.") -> 4 | S8: =_xlfn.IFNA(VLOOKUP("Időskorúak járadékában részesítettek havi átlagos létszáma (fő)",Q!$A$1:$G$132,MATCH($L8,Q!$A$1:$G$1,FALSE),FALSE),"n.a.") -> 0 | U8: 51-55 év (TS 044) | V8: Fő | W8: ='3. Mélyszegények-Romák'!L18 -> 1 | X8: ='3. Mélyszegények-Romák'!M18 -> 2 | Y8: ='3. Mélyszegények-Romák'!N18 -> 2 | Z8: ='3. Mélyszegények-Romák'!O18 -> 2 | AA8: ='3. Mélyszegények-Romák'!P18 -> 1 | AB8: ='3. Mélyszegények-Romák'!Q18 -> 3 | AD8: 2023 | AE8: 193 | AF8: 287 | AG8: 480 | AJ8: 2022 | AK8: 407 | AL8: =_xlfn.IFNA(VLOOKUP("Idősek nappali ellátásában részesülők (fő)",Q!$A$1:$G$132,MATCH($AJ8,Q!$A$1:$G$1,FALSE),FALSE),"n.a.") -> 0 | AM8: =_xlfn.IFNA(VLOOKUP("Házi segítségnyújtásban részesülők (fő)",Q!$A$1:$G$132,MATCH($AJ8,Q!$A$1:$G$1,FALSE),FALSE),"n.a.") -> 2 | AN8: =_xlfn.IFNA(VLOOKUP("Szociális étkeztetésben részesülők (fő)",Q!$A$1:$G$132,MATCH($AJ8,Q!$A$1:$G$1,FALSE),FALSE),"n.a.") -> 16
B9: Forrás: TeIR, KSH-TSTAR | G9: Forrás: TeIR, KSH Tstar | L9: Forrás: TeIR, KSH Tstar | V9: % | W9: ='3. Mélyszegények-Romák'!L19 -> 0.05882352941 | X9: ='3. Mélyszegények-Romák'!M19 -> 0.1111111111 | Y9: ='3. Mélyszegények-Romák'!N19 -> 0.07692307692 | Z9: ='3. Mélyszegények-Romák'!O19 -> 0.1538461538 | AA9: ='3. Mélyszegények-Romák'!P19 -> 0.05555555556 | AB9: ='3. Mélyszegények-Romák'!Q19 -> 0.1153846154 | AD9: Forrás: TeIR, KSH Tstar | AJ9: 2023 | AK9: 406 | AL9: =_xlfn.IFNA(VLOOKUP("Idősek nappali ellátásában részesülők (fő)",Q!$A$1:$G$132,MATCH($AJ9,Q!$A$1:$G$1,FALSE),FALSE),"n.a.") -> 0 | AM9: =_xlfn.IFNA(VLOOKUP("Házi segítségnyújtásban részesülők (fő)",Q!$A$1:$G$132,MATCH($AJ9,Q!$A$1:$G$1,FALSE),FALSE),"n.a.") -> 3 | AN9: =_xlfn.IFNA(VLOOKUP("Szociális étkeztetésben részesülők (fő)",Q!$A$1:$G$132,MATCH($AJ9,Q!$A$1:$G$1,FALSE),FALSE),"n.a.") -> 21
U10: 56-60 év (TS 045) | V10: Fő | W10: ='3. Mélyszegények-Romák'!L20 -> 1 | X10: ='3. Mélyszegények-Romák'!M20 -> 2 | Y10: ='3. Mélyszegények-Romák'!N20 -> 1 | Z10: ='3. Mélyszegények-Romák'!O20 -> 0 | AA10: ='3. Mélyszegények-Romák'!P20 -> 1 | AB10: ='3. Mélyszegények-Romák'!Q20 -> 0 | AJ10: Forrás: TeIR, KSH Tstar
V11: % | W11: ='3. Mélyszegények-Romák'!L21 -> 0.05882352941 | X11: ='3. Mélyszegények-Romák'!M21 -> 0.1111111111 | Y11: ='3. Mélyszegények-Romák'!N21 -> 0.03846153846 | Z11: ='3. Mélyszegények-Romák'!O21 -> 0 | AA11: ='3. Mélyszegények-Romák'!P21 -> 0.05555555556 | AB11: ='3. Mélyszegények-Romák'!Q21 -> 0
U12: 61 éves, vagy afeletti (TS 046) | V12: Fő | W12: ='3. Mélyszegények-Romák'!L22 -> 6 | X12: ='3. Mélyszegények-Romák'!M22 -> 5 | Y12: ='3. Mélyszegények-Romák'!N22 -> 6 | Z12: ='3. Mélyszegények-Romák'!O22 -> 5 | AA12: ='3. Mélyszegények-Romák'!P22 -> 6 | AB12: ='3. Mélyszegények-Romák'!Q22 -> 6
V13: % | W13: ='3. Mélyszegények-Romák'!L23 -> 0.3529411765 | X13: ='3. Mélyszegények-Romák'!M23 -> 0.2777777778 | Y13: ='3. Mélyszegények-Romák'!N23 -> 0.2307692308 | Z13: ='3. Mélyszegények-Romák'!O23 -> 0.3846153846 | AA13: ='3. Mélyszegények-Romák'!P23 -> 0.3333333333 | AB13: ='3. Mélyszegények-Romák'!Q23 -> 0.2307692308
U14: Forrás: TeIR, Nemzeti Munkaügyi Hivatal

Sheet 7.Fogyatékkal élők
B1: 7.1.1 számú táblázat - Megváltozott munkaképességű személyek ellátásaiban részesülők száma nemenként | G1: 7.1.2. számú táblázat - Nappali ellátásban részesülő fogyatékkal élők száma
B2: Év | C2: Megváltozott munkaképességű személyek ellátásaiban részesülők száma - Férfiak (TS 061) | D2: Megváltozott munkaképességű személyek ellátásaiban részesülők száma - Nők (TS 062) | E2: Összesen | G2: Év | H2: Nappali ellátásban részesülő fogyatékos személyek száma (TS 128)
B3: =Q!$J$1-5 -> 2018 | C3: =_xlfn.IFNA(VLOOKUP("Megváltozott munkaképességűeknek járó ellátásban részesülő férfiak (fő)",Q!$A$1:$G$132,MATCH($B3,Q!$A$1:$G$1,FALSE),FALSE),"n.a.") -> 24 | D3: =_xlfn.IFNA(VLOOKUP("Megváltozott munkaképességűeknek járó ellátásban részesülő nők (fő)",Q!$A$1:$G$132,MATCH($B3,Q!$A$1:$G$1,FALSE),FALSE),"n.a.") -> 28 | E3: =IF(ISERR((C3+D3)),"-",(C3+D3)) -> 52 | G3: =B3 -> 2018 | H3: =_xlfn.IFNA(VLOOKUP("Fogyatékosok nappali ellátásában részesülők (fő)",Q!$A$1:$G$132,MATCH($G3,Q!$A$1:$G$1,FALSE),FALSE),"n.a.") -> 0
B4: =Q!$J$1-4 -> 2019 | C4: =_xlfn.IFNA(VLOOKUP("Megváltozott munkaképességűeknek járó ellátásban részesülő férfiak (fő)",Q!$A$1:$G$132,MATCH($B4,Q!$A$1:$G$1,FALSE),FALSE),"n.a.") -> 25 | D4: =_xlfn.IFNA(VLOOKUP("Megváltozott munkaképességűeknek járó ellátásban részesülő nők (fő)",Q!$A$1:$G$132,MATCH($B4,Q!$A$1:$G$1,FALSE),FALSE),"n.a.") -> 24 | E4: 49 | G4: =B4 -> 2019 | H4: =_xlfn.IFNA(VLOOKUP("Fogyatékosok nappali ellátásában részesülők (fő)",Q!$A$1:$G$132,MATCH($G4,Q!$A$1:$G$1,FALSE),FALSE),"n.a.") -> 0
B5: =Q!$J$1-3 -> 2020 | C5: =_xlfn.IFNA(VLOOKUP("Megváltozott munkaképességűeknek járó ellátásban részesülő férfiak (fő)",Q!$A$1:$G$132,MATCH($B5,Q!$A$1:$G$1,FALSE),FALSE),"n.a.") -> 25 | D5: =_xlfn.IFNA(VLOOKUP("Megváltozott munkaképességűeknek járó ellátásban részesülő nők (fő)",Q!$A$1:$G$132,MATCH($B5,Q!$A$1:$G$1,FALSE),FALSE),"n.a.") -> 26 | E5: 51 | G5: 2020 | H5: =_xlfn.IFNA(VLOOKUP("Fogyatékosok nappali ellátásában részesülők (fő)",Q!$A$1:$G$132,MATCH($G5,Q!$A$1:$G$1,FALSE),FALSE),"n.a.") -> 0
B6: =Q!$J$1-2 -> 2021 | C6: =_xlfn.IFNA(VLOOKUP("Megváltozott munkaképességűeknek járó ellátásban részesülő férfiak (fő)",Q!$A$1:$G$132,MATCH($B6,Q!$A$1:$G$1,FALSE),FALSE),"n.a.") -> 26 | D6: =_xlfn.IFNA(VLOOKUP("Megváltozott munkaképességűeknek járó ellátásban részesülő nők (fő)",Q!$A$1:$G$132,MATCH($B6,Q!$A$1:$G$1,FALSE),FALSE),"n.a.") -> 25 | E6: 51 | G6: 2021 | H6: =_xlfn.IFNA(VLOOKUP("Fogyatékosok nappali ellátásában részesülők (fő)",Q!$A$1:$G$132,MATCH($G6,Q!$A$1:$G$1,FALSE),FALSE),"n.a.") -> 0
B7: =Q!$J$1-1 -> 2022 | C7: =_xlfn.IFNA(VLOOKUP("Megváltozott munkaképességűeknek járó ellátásban részesülő férfiak (fő)",Q!$A$1:$G$132,MATCH($B7,Q!$A$1:$G$1,FALSE),FALSE),"n.a.") -> 24 | D7: =_xlfn.IFNA(VLOOKUP("Megváltozott munkaképességűeknek járó ellátásban részesülő nők (fő)",Q!$A$1:$G$132,MATCH($B7,Q!$A$1:$G$1,FALSE),FALSE),"n.a.") -> 21 | E7: 45 | G7: 2022 | H7: =_xlfn.IFNA(VLOOKUP("Fogyatékosok nappali ellátásában részesülők (fő)",Q!$A$1:$G$132,MATCH($G7,Q!$A$1:$G$1,FALSE),FALSE),"n.a.") -> 0
B8: =Q!$J$1 -> 2023 | C8: =_xlfn.IFNA(VLOOKUP("Megváltozott munkaképességűeknek járó ellátásban részesülő férfiak (fő)",Q!$A$1:$G$132,MATCH($B8,Q!$A$1:$G$1,FALSE),FALSE),"n.a.") -> 25 | D8: =_xlfn.IFNA(VLOOKUP("Megváltozott munkaképességűeknek járó ellátásban részesülő nők (fő)",Q!$A$1:$G$132,MATCH($B8,Q!$A$1:$G$1,FALSE),FALSE),"n.a.") -> 21 | E8: 46 | G8: 2023 | H8: =_xlfn.IFNA(VLOOKUP("Fogyatékosok nappali ellátásában részesülők (fő)",Q!$A$1:$G$132,MATCH($G8,Q!$A$1:$G$1,FALSE),FALSE),"n.a.") -> 0
B9: Forrás: TeIR, KSH Tstar | G9: Forrás: TeIR, KSH Tstar; és helyi adatszolgáltatók
